﻿Department family,Entity,Date of payment,Expense type,Expense area,Supplier,Transaction number,Amount in Sterling,Supplier VAT Registration Number
Department of Health,Guys and St Thomas NHS Foundation Trust,24/04/2020,(55040) Admin & Clerical,(id:2002419) Cancer Supportive Services and R&D,KINGS COLLEGE LONDON:03529700,id:12941989   ,2998.48
Department of Health,Guys and St Thomas NHS Foundation Trust,24/04/2020,(55040) Admin & Clerical,(id:2002419) Cancer Supportive Services and R&D,KINGS COLLEGE LONDON:03529700,id:12913633   ,3014.90
Department of Health,Guys and St Thomas NHS Foundation Trust,24/04/2020,(80200) Drug Costs,(id:42276) Cancer Supportive Services and R&D,VIAPATH SERVICES LLP,id:12363151, 675.00
Department of Health,Guys and St Thomas NHS Foundation Trust,24/04/2020,(80200) Drug Costs,(id:42276) Cancer Supportive Services and R&D,VIAPATH SERVICES LLP,id:12363292, 675.00
Department of Health,Guys and St Thomas NHS Foundation Trust,03/04/2020,(89440) Research and Development,(id:42279) Cancer Supportive Services and R&D,KINGS COLLEGE LONDON:03529700,id:12946095  ,    12000.00
Department of Health,Guys and St Thomas NHS Foundation Trust,03/04/2020,(81100) Dressings,(id:42270) Haematology,NHS SUPPLY CHAIN (MAIDSTONE),id:12891174 , 124.31
Department of Health,Guys and St Thomas NHS Foundation Trust,03/04/2020,(83400) Office Equipment,(id:42270) Haematology,NHS SUPPLY CHAIN (MAIDSTONE),id:12912734    , 184.14
Department of Health,Guys and St Thomas NHS Foundation Trust,03/04/2020,(83400) Office Equipment,(id:42270) Haematology,NHS SUPPLY CHAIN (MAIDSTONE),id:12891174    ,  70.02
Department of Health,Guys and St Thomas NHS Foundation Trust,03/04/2020,(82000) Provisions & Kitchens,(id:42270) Haematology,NHS SUPPLY CHAIN (MAIDSTONE),id:12912734    ,  23.40
Department of Health,Guys and St Thomas NHS Foundation Trust,17/04/2020,(81000) Surgical Appliances,(id:42268) Haematology,TALAR MADE ORTHOTICS LTD,id:12968777, 247.44
Department of Health,Guys and St Thomas NHS Foundation Trust,29/04/2020,(50202) Consultants,(id:42267) Haematology,PRICEWATERHOUSECOOPERS LLP,id:12999514 ,1043.83
Department of Health,Guys and St Thomas NHS Foundation Trust,03/04/2020,(82700) Uniforms & Clothing,(id:42265) Haematology,NHS SUPPLY CHAIN (MAIDSTONE),id:12912734 ,  31.68
Department of Health,Guys and St Thomas NHS Foundation Trust,03/04/2020,(82000) Provisions & Kitchens,(id:42265) Haematology,NHS SUPPLY CHAIN (MAIDSTONE),id:12912734    ,  38.58
Department of Health,Guys and St Thomas NHS Foundation Trust,03/04/2020,(82600) Uniforms & Clothing,(id:42265) Haematology,NHS SUPPLY CHAIN (MAIDSTONE),id:12912734 , 209.89
Department of Health,Guys and St Thomas NHS Foundation Trust,03/04/2020,(50522) Unqualified Nursing Staff,(id:42265) Haematology,MSI GROUP LTD,id:12952767, 245.37
Department of Health,Guys and St Thomas NHS Foundation Trust,24/04/2020,(50522) Unqualified Nursing Staff,(id:42265) Haematology,MSI GROUP LTD,id:12989161, 283.09
Department of Health,Guys and St Thomas NHS Foundation Trust,03/04/2020,(81000) Surgical Appliances,(id:42272) Haematology,MEDI UK LTD,id:12940514   , 130.08
Department of Health,Guys and St Thomas NHS Foundation Trust,09/04/2020,(80205) Drug Costs,(id:42273) Haematology,HEALTHCARE AT HOME LTD,id:12958059 ,3750.00
Department of Health,Guys and St Thomas NHS Foundation Trust,09/04/2020,(80205) Drug Costs,(id:42273) Haematology,HEALTHCARE AT HOME LTD,id:12958070 ,3875.00
Department of Health,Guys and St Thomas NHS Foundation Trust,24/04/2020,(80205) Drug Costs,(id:42273) Haematology,HEALTHCARE AT HOME LTD,id:12990723 ,1553.70
Department of Health,Guys and St Thomas NHS Foundation Trust,24/04/2020,(80205) Drug Costs,(id:42273) Haematology,HEALTHCARE AT HOME LTD,id:12990583 ,3875.00
Department of Health,Guys and St Thomas NHS Foundation Trust,24/04/2020,(80205) Drug Costs,(id:42273) Haematology,HEALTHCARE AT HOME LTD,id:12990580 ,4925.00
Department of Health,Guys and St Thomas NHS Foundation Trust,24/04/2020,(80205) Drug Costs,(id:42273) Haematology,HEALTHCARE AT HOME LTD,id:12990679 ,5525.00
Department of Health,Guys and St Thomas NHS Foundation Trust,24/04/2020,(80205) Drug Costs,(id:42273) Haematology,HEALTHCARE AT HOME LTD,id:12990669 ,6687.50
Department of Health,Guys and St Thomas NHS Foundation Trust,24/04/2020,(80205) Drug Costs,(id:42273) Haematology,HEALTHCARE AT HOME LTD,id:12990752 ,9095.00
Department of Health,Guys and St Thomas NHS Foundation Trust,03/04/2020,(80205) Drug Costs,(id:42273) Haematology,BAXALTA UK LTD,id:12935325    ,3237.20
Department of Health,Guys and St Thomas NHS Foundation Trust,03/04/2020,(80205) Drug Costs,(id:42273) Haematology,HEALTHCARE AT HOME LTD,id:12945295 ,3875.00
Department of Health,Guys and St Thomas NHS Foundation Trust,03/04/2020,(80205) Drug Costs,(id:42273) Haematology,HEALTHCARE AT HOME LTD,id:12945229 ,3975.00
Department of Health,Guys and St Thomas NHS Foundation Trust,03/04/2020,(80205) Drug Costs,(id:42273) Haematology,HEALTHCARE AT HOME LTD,id:12945294 ,6125.00
Department of Health,Guys and St Thomas NHS Foundation Trust,03/04/2020,(80205) Drug Costs,(id:42273) Haematology,HEALTHCARE AT HOME LTD,id:12945237 ,7625.00
Department of Health,Guys and St Thomas NHS Foundation Trust,03/04/2020,(80205) Drug Costs,(id:42273) Haematology,HEALTHCARE AT HOME LTD,id:12945238 ,8225.00
Department of Health,Guys and St Thomas NHS Foundation Trust,17/04/2020,(80205) Drug Costs,(id:42273) Haematology,HEALTHCARE AT HOME LTD,id:12969001 ,1883.40
Department of Health,Guys and St Thomas NHS Foundation Trust,17/04/2020,(80205) Drug Costs,(id:42273) Haematology,HEALTHCARE AT HOME LTD,id:12969114 ,2125.00
Department of Health,Guys and St Thomas NHS Foundation Trust,17/04/2020,(80205) Drug Costs,(id:42273) Haematology,HEALTHCARE AT HOME LTD,id:12969008 ,3625.00
Department of Health,Guys and St Thomas NHS Foundation Trust,17/04/2020,(80205) Drug Costs,(id:42273) Haematology,HEALTHCARE AT HOME LTD,id:12969015 ,    19525.00
Department of Health,Guys and St Thomas NHS Foundation Trust,24/04/2020,(89200) Other - Patient travel,(id:42130) Haematology,F A ALBIN & SONS,id:12985876, 860.00
Department of Health,Guys and St Thomas NHS Foundation Trust,09/04/2020,(54052) Technical Officers,(id:42128) Haematology,TOTAL ASSIST RECRUITMENT LTD,id:12956655  ,1161.17
Department of Health,Guys and St Thomas NHS Foundation Trust,24/04/2020,(54052) Technical Officers,(id:42128) Haematology,TOTAL ASSIST RECRUITMENT LTD,id:12989225  ,1280.70
Department of Health,Guys and St Thomas NHS Foundation Trust,03/04/2020,(54052) Technical Officers,(id:42128) Haematology,TOTAL ASSIST RECRUITMENT LTD,id:12952479  ,1280.70
Department of Health,Guys and St Thomas NHS Foundation Trust,17/04/2020,(81000) Surgical Appliances,(id:42257) Oncology Services,MEDI UK LTD,id:12969415  , 241.88
Department of Health,Guys and St Thomas NHS Foundation Trust,24/04/2020,(50200) Consultants,(id:42261) Oncology Services,KINGS COLLEGE LONDON:03529700,id:12913633  ,    24325.63
Department of Health,Guys and St Thomas NHS Foundation Trust,24/04/2020,(83610) IT Costs,(id:42261) Oncology Services,BUSINESS DICTATION LTD,id:12975632  ,1775.99
Department of Health,Guys and St Thomas NHS Foundation Trust,09/04/2020,(50202) Consultants,(id:42261) Oncology Services,MEDITEAM RECRUITMENT LTD,id:12963612  ,6214.73
Department of Health,Guys and St Thomas NHS Foundation Trust,03/04/2020,(82600) Uniforms & Clothing,(id:42260) Oncology Services,NHS SUPPLY CHAIN (MAIDSTONE),id:12891174, 189.00
Department of Health,Guys and St Thomas NHS Foundation Trust,03/04/2020,(82800) Bedding & Linen,(id:42260) Oncology Services,NHS SUPPLY CHAIN (MAIDSTONE),id:12891174    , 112.63
Department of Health,Guys and St Thomas NHS Foundation Trust,03/04/2020,(81100) Dressings,(id:42260) Oncology Services,NHS SUPPLY CHAIN (MAIDSTONE),id:12912734,2074.82
Department of Health,Guys and St Thomas NHS Foundation Trust,03/04/2020,(83400) Office Equipment,(id:42259) Oncology Services,NHS SUPPLY CHAIN (MAIDSTONE),id:12891174   , 151.31
Department of Health,Guys and St Thomas NHS Foundation Trust,03/04/2020,(81225) Medical Surgical Supplies & Equipment,(id:42259) Oncology Services,NHS SUPPLY CHAIN (MAIDSTONE),id:12891174  ,  30.24
Department of Health,Guys and St Thomas NHS Foundation Trust,03/04/2020,(81255) Medical Surgical Supplies & Equipment,(id:42259) Oncology Services,NHS SUPPLY CHAIN (MAIDSTONE),id:12891174  ,   5.90
Department of Health,Guys and St Thomas NHS Foundation Trust,24/04/2020,(50200) Consultants,(id:42280) Surgical Oncology,KINGS COLLEGE LONDON:03529700,id:12941989  ,    15255.32
Department of Health,Guys and St Thomas NHS Foundation Trust,03/04/2020,(82000) Provisions & Kitchens,(id:42280) Surgical Oncology,NHS SUPPLY CHAIN (MAIDSTONE),id:12891174   ,  29.40
Department of Health,Guys and St Thomas NHS Foundation Trust,03/04/2020,(82600) Uniforms & Clothing,(id:243406) Surgical Oncology,NHS SUPPLY CHAIN (MAIDSTONE),id:12912734    , 333.60
Department of Health,Guys and St Thomas NHS Foundation Trust,03/04/2020,(82800) Bedding & Linen,(id:42474) Surgical Oncology,NHS SUPPLY CHAIN (MAIDSTONE),id:12912734    ,  80.35
Department of Health,Guys and St Thomas NHS Foundation Trust,17/04/2020,(81200) Medical Surgical Supplies & Equipment,(id:42473) Surgical Oncology,LINDSAY SURGICAL SUPPLIES LIMITED,id:12975726  ,2065.68
Department of Health,Guys and St Thomas NHS Foundation Trust,17/04/2020,(81200) Medical Surgical Supplies & Equipment,(id:42473) Surgical Oncology,KARL STORZ ENDOSCOPY UK LTD,id:12949077   ,    11926.80
Department of Health,Guys and St Thomas NHS Foundation Trust,03/04/2020,(83400) Office Equipment,(id:42475) Surgical Oncology,NHS SUPPLY CHAIN (MAIDSTONE),id:12912734   ,  18.42
Department of Health,Guys and St Thomas NHS Foundation Trust,03/04/2020,(83400) Office Equipment,(id:42475) Surgical Oncology,NHS SUPPLY CHAIN (MAIDSTONE),id:12891174   ,  15.98
Department of Health,Guys and St Thomas NHS Foundation Trust,28/04/2020,(54062) Technical Officers,(id:42475) Surgical Oncology,PRICEWATERHOUSECOOPERS LLP,id:12997374   , 948.66
Department of Health,Guys and St Thomas NHS Foundation Trust,03/04/2020,(81225) Medical Surgical Supplies & Equipment,(id:42475) Surgical Oncology,COCHLEAR EUROPE LTD,id:12928247 ,1659.60
Department of Health,Guys and St Thomas NHS Foundation Trust,24/04/2020,(50522) Unqualified Nursing Staff,(id:42284) Surgical Oncology,MSI GROUP LTD,id:12989087    , 254.59
Department of Health,Guys and St Thomas NHS Foundation Trust,03/04/2020,(83400) Office Equipment,(id:42284) Surgical Oncology,NHS SUPPLY CHAIN (MAIDSTONE),id:12891174   , 185.71
Department of Health,Guys and St Thomas NHS Foundation Trust,03/04/2020,(83400) Office Equipment,(id:42470) Surgical Oncology,NHS SUPPLY CHAIN (MAIDSTONE),id:12912734   , 181.61
Department of Health,Guys and St Thomas NHS Foundation Trust,03/04/2020,(83400) Office Equipment,(id:42470) Surgical Oncology,NHS SUPPLY CHAIN (MAIDSTONE),id:12891174   , 176.60
Department of Health,Guys and St Thomas NHS Foundation Trust,03/04/2020,(81200) Medical Surgical Supplies & Equipment,(id:4259419) Integrated Therapies and Medicine,ROBLETT ELECTRICAL SUPPLIES LTD,id:12843100 , 548.28
Department of Health,Guys and St Thomas NHS Foundation Trust,29/04/2020,(51862) Physiotherapists,(id:42230) Integrated Therapies and Medicine,PRICEWATERHOUSECOOPERS LLP,id:12999514    ,2803.31
Department of Health,Guys and St Thomas NHS Foundation Trust,20/04/2020,(51472) Occupational Therapists,(id:42240) Integrated Therapies and Medicine,PRICEWATERHOUSECOOPERS LLP,id:12983678  ,2274.86
Department of Health,Guys and St Thomas NHS Foundation Trust,09/04/2020,(81200) Medical Surgical Supplies & Equipment,(id:42240) Integrated Therapies and Medicine,PERFORMANCE HEALTH INTERNATIONAL LTD (PATTERSON),id:12951357 , 481.56
Department of Health,Guys and St Thomas NHS Foundation Trust,24/04/2020,(81225) Medical Surgical Supplies & Equipment,(id:42240) Integrated Therapies and Medicine,PERFORMANCE HEALTH INTERNATIONAL LTD (PATTERSON),id:12918054 ,1298.47
Department of Health,Guys and St Thomas NHS Foundation Trust,03/04/2020,(81100) Dressings,(id:42239) Integrated Therapies and Medicine,NHS SUPPLY CHAIN (MAIDSTONE),id:12891174    , 289.89
Department of Health,Guys and St Thomas NHS Foundation Trust,20/04/2020,(51872) Physiotherapists,(id:42239) Integrated Therapies and Medicine,PRICEWATERHOUSECOOPERS LLP,id:12983554    ,1741.91
Department of Health,Guys and St Thomas NHS Foundation Trust,28/04/2020,(51872) Physiotherapists,(id:42239) Integrated Therapies and Medicine,PRICEWATERHOUSECOOPERS LLP,id:12997374    ,1127.67
Department of Health,Guys and St Thomas NHS Foundation Trust,03/04/2020,(81200) Medical Surgical Supplies & Equipment,(id:42239) Integrated Therapies and Medicine,NHS SUPPLY CHAIN (MAIDSTONE),id:12912734 ,  21.74
Department of Health,Guys and St Thomas NHS Foundation Trust,03/04/2020,(82000) Provisions & Kitchens,(id:42239) Integrated Therapies and Medicine,NHS SUPPLY CHAIN (MAIDSTONE),id:12912734  ,  20.02
Department of Health,Guys and St Thomas NHS Foundation Trust,03/04/2020,(83400) Office Equipment,(id:590530) Integrated Therapies and Medicine,NHS SUPPLY CHAIN (MAIDSTONE),id:12912734 ,  76.46
Department of Health,Guys and St Thomas NHS Foundation Trust,24/04/2020,(81100) Dressings,(id:590530) Integrated Therapies and Medicine,BAILEY INSTRUMENTS LIMITED,id:12980042, 574.87
Department of Health,Guys and St Thomas NHS Foundation Trust,03/04/2020,(82800) Bedding & Linen,(id:590530) Integrated Therapies and Medicine,NHS SUPPLY CHAIN (MAIDSTONE),id:12912734  ,  19.25
Department of Health,Guys and St Thomas NHS Foundation Trust,03/04/2020,(81200) Medical Surgical Supplies & Equipment,(id:590530) Integrated Therapies and Medicine,NHS SUPPLY CHAIN (MAIDSTONE),id:12912734, 315.85
Department of Health,Guys and St Thomas NHS Foundation Trust,03/04/2020,(81200) Medical Surgical Supplies & Equipment,(id:590490) Integrated Therapies and Medicine,NHS SUPPLY CHAIN (MAIDSTONE),id:12891174,  80.74
Department of Health,Guys and St Thomas NHS Foundation Trust,03/04/2020,(83400) Office Equipment,(id:42243) Integrated Therapies and Medicine,NHS SUPPLY CHAIN (MAIDSTONE),id:12912734  ,  82.70
Department of Health,Guys and St Thomas NHS Foundation Trust,03/04/2020,(82800) Bedding & Linen,(id:42243) Integrated Therapies and Medicine,NHS SUPPLY CHAIN (MAIDSTONE),id:12891174   ,  53.72
Department of Health,Guys and St Thomas NHS Foundation Trust,17/04/2020,(81000) Surgical Appliances,(id:42243) Integrated Therapies and Medicine,TALAR MADE ORTHOTICS LTD,id:12968777   ,   6.00
Department of Health,Guys and St Thomas NHS Foundation Trust,03/04/2020,(81200) Medical Surgical Supplies & Equipment,(id:42243) Integrated Therapies and Medicine,NHS SUPPLY CHAIN (MAIDSTONE),id:12912734 ,  44.32
Department of Health,Guys and St Thomas NHS Foundation Trust,24/04/2020,(81200) Medical Surgical Supplies & Equipment,(id:590499) Integrated Therapies and Medicine,HILL-ROM LTD,id:12984075 ,5637.01
Department of Health,Guys and St Thomas NHS Foundation Trust,24/04/2020,(81200) Medical Surgical Supplies & Equipment,(id:590499) Integrated Therapies and Medicine,INVACARE LTD,id:12941757 , 668.40
Department of Health,Guys and St Thomas NHS Foundation Trust,24/04/2020,(81200) Medical Surgical Supplies & Equipment,(id:590499) Integrated Therapies and Medicine,TENDERCARE LTD,id:12946094    ,1875.73
Department of Health,Guys and St Thomas NHS Foundation Trust,24/04/2020,(81200) Medical Surgical Supplies & Equipment,(id:590499) Integrated Therapies and Medicine,INVACARE LTD,id:12945316 ,2419.20
Department of Health,Guys and St Thomas NHS Foundation Trust,24/04/2020,(81200) Medical Surgical Supplies & Equipment,(id:590499) Integrated Therapies and Medicine,INVACARE LTD,id:12941756 ,6015.60
Department of Health,Guys and St Thomas NHS Foundation Trust,24/04/2020,(81225) Medical Surgical Supplies & Equipment,(id:590499) Integrated Therapies and Medicine,QBITUS PRODUCTS LTD,id:12941775    ,2840.94
Department of Health,Guys and St Thomas NHS Foundation Trust,24/04/2020,(89595) Non-Healthcare from Foundation Trusts,(id:590499) Integrated Therapies and Medicine,KING'S COLLEGE HOSPITAL NHS FOUNDATION TRUST,id:12918515    ,    28296.25
Department of Health,Guys and St Thomas NHS Foundation Trust,24/04/2020,(89595) Non-Healthcare from Foundation Trusts,(id:590499) Integrated Therapies and Medicine,KING'S COLLEGE HOSPITAL NHS FOUNDATION TRUST,id:12918494    ,    48317.42
Department of Health,Guys and St Thomas NHS Foundation Trust,20/04/2020,(51862) Physiotherapists,(id:590499) Integrated Therapies and Medicine,PRICEWATERHOUSECOOPERS LLP,id:12983554   ,1205.11
Department of Health,Guys and St Thomas NHS Foundation Trust,24/04/2020,(81225) Medical Surgical Supplies & Equipment,(id:590498) Integrated Therapies and Medicine,JANE SAUNDERS & MANNING LTD,id:12945220 , 717.64
Department of Health,Guys and St Thomas NHS Foundation Trust,24/04/2020,(81000) Surgical Appliances,(id:590498) Integrated Therapies and Medicine,MEDI UK LTD,id:12949358,1520.18
Department of Health,Guys and St Thomas NHS Foundation Trust,24/04/2020,(81400) Medical Surgical Supplies & Equipment,(id:590498) Integrated Therapies and Medicine,NPD ORTHOTICS LTD,id:12946577 , 793.09
Department of Health,Guys and St Thomas NHS Foundation Trust,03/04/2020,(89595) Non-Healthcare from Foundation Trusts,(id:590498) Integrated Therapies and Medicine,KENT COMMUNITY HEALTH NHS FOUNDATION TRUST,id:12921551 ,4483.50
Department of Health,Guys and St Thomas NHS Foundation Trust,24/04/2020,(83500) Furniture & Fittings,(id:590497) Integrated Therapies and Medicine,HOSPITAL METALCRAFT LTD,id:12988550  , 572.21
Department of Health,Guys and St Thomas NHS Foundation Trust,03/04/2020,(82000) Provisions & Kitchens,(id:1042419) Integrated Therapies and Medicine,NHS SUPPLY CHAIN (MAIDSTONE),id:12912734,  68.83
Department of Health,Guys and St Thomas NHS Foundation Trust,03/04/2020,(82600) Uniforms & Clothing,(id:1042419) Integrated Therapies and Medicine,NHS SUPPLY CHAIN (MAIDSTONE),id:12891174  ,  50.90
Department of Health,Guys and St Thomas NHS Foundation Trust,03/04/2020,(83400) Office Equipment,(id:1042419) Integrated Therapies and Medicine,NHS SUPPLY CHAIN (MAIDSTONE),id:12891174,  40.80
Department of Health,Guys and St Thomas NHS Foundation Trust,03/04/2020,(82600) Uniforms & Clothing,(id:2182419) Integrated Therapies and Medicine,NHS SUPPLY CHAIN (MAIDSTONE),id:12891174  ,1054.46
Department of Health,Guys and St Thomas NHS Foundation Trust,03/04/2020,(81200) Medical Surgical Supplies & Equipment,(id:2182419) Integrated Therapies and Medicine,NHS SUPPLY CHAIN (MAIDSTONE),id:12891174    ,3536.20
Department of Health,Guys and St Thomas NHS Foundation Trust,24/04/2020,(50552) Qualified Nursing Staff,(id:2182419) Integrated Therapies and Medicine,GLOBE LOCUMS LTD,id:12989258, 293.59
Department of Health,Guys and St Thomas NHS Foundation Trust,24/04/2020,(50552) Qualified Nursing Staff,(id:2182419) Integrated Therapies and Medicine,GLOBE LOCUMS LTD,id:12989172, 920.07
Department of Health,Guys and St Thomas NHS Foundation Trust,17/04/2020,(50552) Qualified Nursing Staff,(id:2182419) Integrated Therapies and Medicine,GLOBE LOCUMS LTD,id:12978754, 909.96
Department of Health,Guys and St Thomas NHS Foundation Trust,17/04/2020,(50552) Qualified Nursing Staff,(id:2182419) Integrated Therapies and Medicine,GLOBE LOCUMS LTD,id:12978766, 330.26
Department of Health,Guys and St Thomas NHS Foundation Trust,09/04/2020,(50552) Qualified Nursing Staff,(id:2182419) Integrated Therapies and Medicine,GLOBE LOCUMS LTD,id:12963460, 334.84
Department of Health,Guys and St Thomas NHS Foundation Trust,03/04/2020,(82000) Provisions & Kitchens,(id:41860) Integrated Therapies and Medicine,NHS SUPPLY CHAIN (MAIDSTONE),id:12912734  , 207.03
Department of Health,Guys and St Thomas NHS Foundation Trust,03/04/2020,(83400) Office Equipment,(id:41860) Integrated Therapies and Medicine,NHS SUPPLY CHAIN (MAIDSTONE),id:12891174  , 130.08
Department of Health,Guys and St Thomas NHS Foundation Trust,17/04/2020,(83500) Furniture & Fittings,(id:41860) Integrated Therapies and Medicine,BHC HEALTHCARE FURNITURE,id:12935055  ,1520.54
Department of Health,Guys and St Thomas NHS Foundation Trust,24/04/2020,(50552) Qualified Nursing Staff,(id:41860) Integrated Therapies and Medicine,CONTINENTAL NURSE LTD,id:12993279  ,2564.14
Department of Health,Guys and St Thomas NHS Foundation Trust,03/04/2020,(50522) Unqualified Nursing Staff,(id:41860) Integrated Therapies and Medicine,MSI GROUP LTD,id:12952554   , 417.87
Department of Health,Guys and St Thomas NHS Foundation Trust,03/04/2020,(50522) Unqualified Nursing Staff,(id:41860) Integrated Therapies and Medicine,MSI GROUP LTD,id:12952641   , 229.47
Department of Health,Guys and St Thomas NHS Foundation Trust,03/04/2020,(82800) Bedding & Linen,(id:41859) Integrated Therapies and Medicine,NHS SUPPLY CHAIN (MAIDSTONE),id:12912734   , 126.99
Department of Health,Guys and St Thomas NHS Foundation Trust,03/04/2020,(81100) Dressings,(id:41859) Integrated Therapies and Medicine,NHS SUPPLY CHAIN (MAIDSTONE),id:12891174    , 529.55
Department of Health,Guys and St Thomas NHS Foundation Trust,03/04/2020,(50552) Qualified Nursing Staff,(id:41859) Integrated Therapies and Medicine,MSI GROUP LTD,id:12952472, 304.52
Department of Health,Guys and St Thomas NHS Foundation Trust,17/04/2020,(50552) Qualified Nursing Staff,(id:41859) Integrated Therapies and Medicine,CARE PROVIDERS HEALTHCARE,id:12978215   , 304.75
Department of Health,Guys and St Thomas NHS Foundation Trust,09/04/2020,(50552) Qualified Nursing Staff,(id:41859) Integrated Therapies and Medicine,GLOBE LOCUMS LTD,id:12963694  , 348.40
Department of Health,Guys and St Thomas NHS Foundation Trust,09/04/2020,(50552) Qualified Nursing Staff,(id:41859) Integrated Therapies and Medicine,GLOBE LOCUMS LTD,id:12963523  , 295.67
Department of Health,Guys and St Thomas NHS Foundation Trust,17/04/2020,(50522) Unqualified Nursing Staff,(id:41859) Integrated Therapies and Medicine,GLOBE LOCUMS LTD,id:12978764, 711.53
Department of Health,Guys and St Thomas NHS Foundation Trust,03/04/2020,(82600) Uniforms & Clothing,(id:41858) Integrated Therapies and Medicine,NHS SUPPLY CHAIN (MAIDSTONE),id:12912734    ,  49.22
Department of Health,Guys and St Thomas NHS Foundation Trust,03/04/2020,(83400) Office Equipment,(id:41858) Integrated Therapies and Medicine,NHS SUPPLY CHAIN (MAIDSTONE),id:12912734  , 158.64
Department of Health,Guys and St Thomas NHS Foundation Trust,03/04/2020,(82800) Bedding & Linen,(id:41858) Integrated Therapies and Medicine,NHS SUPPLY CHAIN (MAIDSTONE),id:12891174   ,  29.18
Department of Health,Guys and St Thomas NHS Foundation Trust,24/04/2020,(50552) Qualified Nursing Staff,(id:41858) Integrated Therapies and Medicine,CONTINENTAL NURSE LTD,id:12992821  , 338.70
Department of Health,Guys and St Thomas NHS Foundation Trust,03/04/2020,(81200) Medical Surgical Supplies & Equipment,(id:41858) Integrated Therapies and Medicine,NHS SUPPLY CHAIN (MAIDSTONE),id:12912734 , 426.52
Department of Health,Guys and St Thomas NHS Foundation Trust,03/04/2020,(81200) Medical Surgical Supplies & Equipment,(id:41858) Integrated Therapies and Medicine,NHS SUPPLY CHAIN (MAIDSTONE),id:12891174 , 481.07
Department of Health,Guys and St Thomas NHS Foundation Trust,03/04/2020,(81275) Medical Surgical Supplies & Equipment,(id:41858) Integrated Therapies and Medicine,NHS SUPPLY CHAIN (MAIDSTONE),id:12891174 ,  55.50
Department of Health,Guys and St Thomas NHS Foundation Trust,24/04/2020,(50203) Consultants,(id:41855) Integrated Therapies and Medicine,KINGS COLLEGE LONDON:03529700,id:12930363 ,6249.58
Department of Health,Guys and St Thomas NHS Foundation Trust,03/04/2020,(50552) Qualified Nursing Staff,(id:41872) Integrated Therapies and Medicine,CONTINENTAL NURSE LTD,id:12952609  ,1399.90
Department of Health,Guys and St Thomas NHS Foundation Trust,03/04/2020,(50552) Qualified Nursing Staff,(id:41872) Integrated Therapies and Medicine,CONTINENTAL NURSE LTD,id:12952561  ,1399.90
Department of Health,Guys and St Thomas NHS Foundation Trust,24/04/2020,(50552) Qualified Nursing Staff,(id:41872) Integrated Therapies and Medicine,GLOBE LOCUMS LTD,id:12989101  , 315.70
Department of Health,Guys and St Thomas NHS Foundation Trust,24/04/2020,(50552) Qualified Nursing Staff,(id:41872) Integrated Therapies and Medicine,FIRSTPOINT HEALTHCARE LTD,id:12992773   , 635.01
Department of Health,Guys and St Thomas NHS Foundation Trust,17/04/2020,(50552) Qualified Nursing Staff,(id:41872) Integrated Therapies and Medicine,CONTINENTAL NURSE LTD,id:12975264  , 206.78
Department of Health,Guys and St Thomas NHS Foundation Trust,17/04/2020,(50552) Qualified Nursing Staff,(id:41872) Integrated Therapies and Medicine,CARE PROVIDERS HEALTHCARE,id:12975320   , 689.66
Department of Health,Guys and St Thomas NHS Foundation Trust,09/04/2020,(50552) Qualified Nursing Staff,(id:41872) Integrated Therapies and Medicine,CONTINENTAL NURSE LTD,id:12963368  ,2453.71
Department of Health,Guys and St Thomas NHS Foundation Trust,09/04/2020,(50552) Qualified Nursing Staff,(id:41872) Integrated Therapies and Medicine,YOUR NURSE LIMITED,id:12963431, 426.19
Department of Health,Guys and St Thomas NHS Foundation Trust,03/04/2020,(50552) Qualified Nursing Staff,(id:41870) Integrated Therapies and Medicine,MSI GROUP LTD,id:12952721, 327.12
Department of Health,Guys and St Thomas NHS Foundation Trust,03/04/2020,(82600) Uniforms & Clothing,(id:41869) Integrated Therapies and Medicine,NHS SUPPLY CHAIN (MAIDSTONE),id:12912734    , 536.38
Department of Health,Guys and St Thomas NHS Foundation Trust,03/04/2020,(82600) Uniforms & Clothing,(id:41869) Integrated Therapies and Medicine,SQUADRON MEDICAL LTD,id:12845899  , 370.66
Department of Health,Guys and St Thomas NHS Foundation Trust,17/04/2020,(84500) Establishment,(id:41869) Integrated Therapies and Medicine,BELMONT MEDICAL TECHNOLOGIES LTD (FORMERLY HC LIFE LIMITED),id:12975574    ,1639.20
Department of Health,Guys and St Thomas NHS Foundation Trust,17/04/2020,(84500) Establishment,(id:41869) Integrated Therapies and Medicine,STATIC SYSTEMS GROUP PLC CIS5,id:12778194    ,4126.62
Department of Health,Guys and St Thomas NHS Foundation Trust,17/04/2020,(84500) Establishment,(id:41869) Integrated Therapies and Medicine,ROCHE DIAGNOSTICS LTD,id:12948134  ,2502.61
Department of Health,Guys and St Thomas NHS Foundation Trust,03/04/2020,(83400) Office Equipment,(id:41869) Integrated Therapies and Medicine,NHS SUPPLY CHAIN (MAIDSTONE),id:12891174  , 257.79
Department of Health,Guys and St Thomas NHS Foundation Trust,24/04/2020,(83400) Office Equipment,(id:41869) Integrated Therapies and Medicine,SQUADRON MEDICAL LTD,id:12952266,   7.10
Department of Health,Guys and St Thomas NHS Foundation Trust,09/04/2020,(83400) Office Equipment,(id:41869) Integrated Therapies and Medicine,SQUADRON MEDICAL LTD,id:12928639, 175.34
Department of Health,Guys and St Thomas NHS Foundation Trust,09/04/2020,(83400) Office Equipment,(id:41869) Integrated Therapies and Medicine,SQUADRON MEDICAL LTD,id:12919571, 195.22
Department of Health,Guys and St Thomas NHS Foundation Trust,24/04/2020,(83500) Furniture & Fittings,(id:41869) Integrated Therapies and Medicine,TECHNIBLINDS LTD,id:12985678, 834.00
Department of Health,Guys and St Thomas NHS Foundation Trust,17/04/2020,(83500) Furniture & Fittings,(id:41869) Integrated Therapies and Medicine,TECHNIBLINDS LTD,id:12960554, 834.00
Department of Health,Guys and St Thomas NHS Foundation Trust,03/04/2020,(81200) Medical Surgical Supplies & Equipment,(id:41869) Integrated Therapies and Medicine,SQUADRON MEDICAL LTD,id:12897690    ,1128.05
Department of Health,Guys and St Thomas NHS Foundation Trust,03/04/2020,(81200) Medical Surgical Supplies & Equipment,(id:41869) Integrated Therapies and Medicine,SQUADRON MEDICAL LTD,id:12915467    , 210.69
Department of Health,Guys and St Thomas NHS Foundation Trust,09/04/2020,(81200) Medical Surgical Supplies & Equipment,(id:41869) Integrated Therapies and Medicine,SQUADRON MEDICAL LTD,id:12924005    , 501.20
Department of Health,Guys and St Thomas NHS Foundation Trust,09/04/2020,(81200) Medical Surgical Supplies & Equipment,(id:41869) Integrated Therapies and Medicine,SQUADRON MEDICAL LTD,id:12916479    , 790.40
Department of Health,Guys and St Thomas NHS Foundation Trust,09/04/2020,(81200) Medical Surgical Supplies & Equipment,(id:41869) Integrated Therapies and Medicine,SQUADRON MEDICAL LTD,id:12928773    , 535.21
Department of Health,Guys and St Thomas NHS Foundation Trust,09/04/2020,(81200) Medical Surgical Supplies & Equipment,(id:41869) Integrated Therapies and Medicine,SQUADRON MEDICAL LTD,id:12919571    , 623.39
Department of Health,Guys and St Thomas NHS Foundation Trust,17/04/2020,(81200) Medical Surgical Supplies & Equipment,(id:41869) Integrated Therapies and Medicine,WILLIAMS MEDICAL SUPPLIES PLC,id:12967940, 532.80
Department of Health,Guys and St Thomas NHS Foundation Trust,17/04/2020,(81200) Medical Surgical Supplies & Equipment,(id:41869) Integrated Therapies and Medicine,SQUADRON MEDICAL LTD,id:12946187    , 715.37
Department of Health,Guys and St Thomas NHS Foundation Trust,17/04/2020,(81200) Medical Surgical Supplies & Equipment,(id:41869) Integrated Therapies and Medicine,SQUADRON MEDICAL LTD,id:12950274    , 651.78
Department of Health,Guys and St Thomas NHS Foundation Trust,24/04/2020,(81200) Medical Surgical Supplies & Equipment,(id:41869) Integrated Therapies and Medicine,SQUADRON MEDICAL LTD,id:12952274    ,1580.45
Department of Health,Guys and St Thomas NHS Foundation Trust,03/04/2020,(81255) Medical Surgical Supplies & Equipment,(id:41869) Integrated Therapies and Medicine,NHS SUPPLY CHAIN (MAIDSTONE),id:12912734 ,   1.56
Department of Health,Guys and St Thomas NHS Foundation Trust,09/04/2020,(81700) Lab Equipment Purchase,(id:41869) Integrated Therapies and Medicine,SQUADRON MEDICAL LTD,id:12931263    ,  19.30
Department of Health,Guys and St Thomas NHS Foundation Trust,09/04/2020,(81700) Lab Equipment Purchase,(id:41869) Integrated Therapies and Medicine,SQUADRON MEDICAL LTD,id:12926215    ,  33.77
Department of Health,Guys and St Thomas NHS Foundation Trust,17/04/2020,(81700) Lab Equipment Purchase,(id:41869) Integrated Therapies and Medicine,SQUADRON MEDICAL LTD,id:12937792    ,  19.30
Department of Health,Guys and St Thomas NHS Foundation Trust,03/04/2020,(81700) Lab Equipment Purchase,(id:41869) Integrated Therapies and Medicine,SQUADRON MEDICAL LTD,id:12916199    ,  38.59
Department of Health,Guys and St Thomas NHS Foundation Trust,03/04/2020,(82600) Uniforms & Clothing,(id:41868) Integrated Therapies and Medicine,NHS SUPPLY CHAIN (MAIDSTONE),id:12912734    , 159.93
Department of Health,Guys and St Thomas NHS Foundation Trust,03/04/2020,(81100) Dressings,(id:41868) Integrated Therapies and Medicine,SQUADRON MEDICAL LTD,id:12827955  ,   5.71
Department of Health,Guys and St Thomas NHS Foundation Trust,24/04/2020,(81100) Dressings,(id:41868) Integrated Therapies and Medicine,SQUADRON MEDICAL LTD,id:12973892  ,  12.63
Department of Health,Guys and St Thomas NHS Foundation Trust,03/04/2020,(81200) Medical Surgical Supplies & Equipment,(id:41868) Integrated Therapies and Medicine,SQUADRON MEDICAL LTD,id:12827955    , 492.82
Department of Health,Guys and St Thomas NHS Foundation Trust,03/04/2020,(83400) Office Equipment,(id:41868) Integrated Therapies and Medicine,SQUADRON MEDICAL LTD,id:12827955,  53.95
Department of Health,Guys and St Thomas NHS Foundation Trust,03/04/2020,(82000) Provisions & Kitchens,(id:41882) Integrated Therapies and Medicine,NHS SUPPLY CHAIN (MAIDSTONE),id:12891174  ,  10.27
Department of Health,Guys and St Thomas NHS Foundation Trust,03/04/2020,(82700) Uniforms & Clothing,(id:41880) Integrated Therapies and Medicine,NHS SUPPLY CHAIN (MAIDSTONE),id:12891174    ,  10.56
Department of Health,Guys and St Thomas NHS Foundation Trust,03/04/2020,(81100) Dressings,(id:41880) Integrated Therapies and Medicine,NHS SUPPLY CHAIN (MAIDSTONE),id:12912734    , 209.68
Department of Health,Guys and St Thomas NHS Foundation Trust,03/04/2020,(81200) Medical Surgical Supplies & Equipment,(id:41880) Integrated Therapies and Medicine,NHS SUPPLY CHAIN (MAIDSTONE),id:12891174 ,1317.16
Department of Health,Guys and St Thomas NHS Foundation Trust,17/04/2020,(50522) Unqualified Nursing Staff,(id:41880) Integrated Therapies and Medicine,MSI GROUP LTD,id:12978136   , 262.37
Department of Health,Guys and St Thomas NHS Foundation Trust,09/04/2020,(50522) Unqualified Nursing Staff,(id:41880) Integrated Therapies and Medicine,MSI GROUP LTD,id:12966324   , 268.16
Department of Health,Guys and St Thomas NHS Foundation Trust,03/04/2020,(50522) Unqualified Nursing Staff,(id:41880) Integrated Therapies and Medicine,MSI GROUP LTD,id:12952511   , 269.22
Department of Health,Guys and St Thomas NHS Foundation Trust,03/04/2020,(50522) Unqualified Nursing Staff,(id:41880) Integrated Therapies and Medicine,MSI GROUP LTD,id:12952594   , 274.36
Department of Health,Guys and St Thomas NHS Foundation Trust,24/04/2020,(50522) Unqualified Nursing Staff,(id:41880) Integrated Therapies and Medicine,GLOBE LOCUMS LTD,id:12989100, 262.06
Department of Health,Guys and St Thomas NHS Foundation Trust,03/04/2020,(82700) Uniforms & Clothing,(id:41879) Integrated Therapies and Medicine,NHS SUPPLY CHAIN (MAIDSTONE),id:12912734    ,  10.56
Department of Health,Guys and St Thomas NHS Foundation Trust,17/04/2020,(50522) Unqualified Nursing Staff,(id:41879) Integrated Therapies and Medicine,CARE PROVIDERS HEALTHCARE,id:12978115 ,1212.72
Department of Health,Guys and St Thomas NHS Foundation Trust,17/04/2020,(50522) Unqualified Nursing Staff,(id:41879) Integrated Therapies and Medicine,MSI GROUP LTD,id:12978275   , 790.17
Department of Health,Guys and St Thomas NHS Foundation Trust,09/04/2020,(50522) Unqualified Nursing Staff,(id:41879) Integrated Therapies and Medicine,CARE PROVIDERS HEALTHCARE,id:12966289 ,1093.36
Department of Health,Guys and St Thomas NHS Foundation Trust,09/04/2020,(50522) Unqualified Nursing Staff,(id:41879) Integrated Therapies and Medicine,CARE PROVIDERS HEALTHCARE,id:12956707 , 472.32
Department of Health,Guys and St Thomas NHS Foundation Trust,03/04/2020,(83400) Office Equipment,(id:41878) Integrated Therapies and Medicine,NHS SUPPLY CHAIN (MAIDSTONE),id:12891174  , 180.96
Department of Health,Guys and St Thomas NHS Foundation Trust,09/04/2020,(50522) Unqualified Nursing Staff,(id:41878) Integrated Therapies and Medicine,CARE PROVIDERS HEALTHCARE,id:12963626 , 828.05
Department of Health,Guys and St Thomas NHS Foundation Trust,09/04/2020,(50522) Unqualified Nursing Staff,(id:41878) Integrated Therapies and Medicine,MSI GROUP LTD,id:12966338   , 262.59
Department of Health,Guys and St Thomas NHS Foundation Trust,03/04/2020,(83400) Office Equipment,(id:41881) Integrated Therapies and Medicine,NHS SUPPLY CHAIN (MAIDSTONE),id:12912734  , 158.94
Department of Health,Guys and St Thomas NHS Foundation Trust,09/04/2020,(50522) Unqualified Nursing Staff,(id:41881) Integrated Therapies and Medicine,GLOBE LOCUMS LTD,id:12963402, 222.51
Department of Health,Guys and St Thomas NHS Foundation Trust,09/04/2020,(50522) Unqualified Nursing Staff,(id:41881) Integrated Therapies and Medicine,MSI GROUP LTD,id:12966324   , 268.16
Department of Health,Guys and St Thomas NHS Foundation Trust,03/04/2020,(50522) Unqualified Nursing Staff,(id:41881) Integrated Therapies and Medicine,MSI GROUP LTD,id:12952641   , 229.47
Department of Health,Guys and St Thomas NHS Foundation Trust,03/04/2020,(50522) Unqualified Nursing Staff,(id:41881) Integrated Therapies and Medicine,MSI GROUP LTD,id:12952781   , 269.07
Department of Health,Guys and St Thomas NHS Foundation Trust,03/04/2020,(81200) Medical Surgical Supplies & Equipment,(id:41881) Integrated Therapies and Medicine,NHS SUPPLY CHAIN (MAIDSTONE),id:12912734 , 954.03
Department of Health,Guys and St Thomas NHS Foundation Trust,03/04/2020,(83400) Office Equipment,(id:590598) Integrated Local Services,NHS SUPPLY CHAIN (MAIDSTONE),id:12912734    ,  82.94
Department of Health,Guys and St Thomas NHS Foundation Trust,03/04/2020,(83400) Office Equipment,(id:590595) Integrated Local Services,NHS SUPPLY CHAIN (MAIDSTONE),id:12912734    ,  49.13
Department of Health,Guys and St Thomas NHS Foundation Trust,03/04/2020,(82000) Provisions & Kitchens,(id:590591) Integrated Local Services,NHS SUPPLY CHAIN (MAIDSTONE),id:12891174    ,   3.64
Department of Health,Guys and St Thomas NHS Foundation Trust,03/04/2020,(83400) Office Equipment,(id:590591) Integrated Local Services,NHS SUPPLY CHAIN (MAIDSTONE),id:12891174    ,   6.69
Department of Health,Guys and St Thomas NHS Foundation Trust,03/04/2020,(83400) Office Equipment,(id:590466) Integrated Local Services,NHS SUPPLY CHAIN (MAIDSTONE),id:12912734    ,  48.86
Department of Health,Guys and St Thomas NHS Foundation Trust,03/04/2020,(82000) Provisions & Kitchens,(id:590464) Integrated Local Services,NHS SUPPLY CHAIN (MAIDSTONE),id:12912734    ,  27.42
Department of Health,Guys and St Thomas NHS Foundation Trust,24/04/2020,(50562) Qualified Nursing Staff,(id:590563) Integrated Local Services,NURSING 2000 LTD,id:12992751    , 785.37
Department of Health,Guys and St Thomas NHS Foundation Trust,03/04/2020,(83400) Office Equipment,(id:590494) Integrated Local Services,NHS SUPPLY CHAIN (MAIDSTONE),id:12912734    ,   4.92
Department of Health,Guys and St Thomas NHS Foundation Trust,20/04/2020,(51832) Physiotherapists,(id:1371419) Integrated Local Services,PRICEWATERHOUSECOOPERS LLP,id:12983554, 724.86
Department of Health,Guys and St Thomas NHS Foundation Trust,17/04/2020,(50562) Qualified Nursing Staff,(id:1371419) Integrated Local Services,MSI GROUP LTD,id:12978165 ,1256.85
Department of Health,Guys and St Thomas NHS Foundation Trust,03/04/2020,(50562) Qualified Nursing Staff,(id:699422) Integrated Local Services,MSI GROUP LTD,id:12952596  , 941.09
Department of Health,Guys and St Thomas NHS Foundation Trust,03/04/2020,(50572) Qualified Nursing Staff,(id:699422) Integrated Local Services,MSI GROUP LTD,id:12952654  ,1501.70
Department of Health,Guys and St Thomas NHS Foundation Trust,29/04/2020,(51832) Physiotherapists,(id:590523) Integrated Local Services,PRICEWATERHOUSECOOPERS LLP,id:12999514 ,3252.35
Department of Health,Guys and St Thomas NHS Foundation Trust,09/04/2020,(89595) Non-Healthcare from Foundation Trusts,(id:590492) Integrated Local Services,KING'S COLLEGE HOSPITAL NHS FOUNDATION TRUST,id:12918487  ,4069.83
Department of Health,Guys and St Thomas NHS Foundation Trust,03/04/2020,(82800) Bedding & Linen,(id:1888419) Integrated Local Services,NHS SUPPLY CHAIN (MAIDSTONE),id:12912734    ,  80.36
Department of Health,Guys and St Thomas NHS Foundation Trust,03/04/2020,(82600) Uniforms & Clothing,(id:1888419) Integrated Local Services,NHS SUPPLY CHAIN (MAIDSTONE),id:12912734,   9.26
Department of Health,Guys and St Thomas NHS Foundation Trust,20/04/2020,(51862) Physiotherapists,(id:684419) Integrated Local Services,PRICEWATERHOUSECOOPERS LLP,id:12983678 ,2006.72
Department of Health,Guys and St Thomas NHS Foundation Trust,29/04/2020,(51852) Physiotherapists,(id:590503) Integrated Local Services,PRICEWATERHOUSECOOPERS LLP,id:12999514 , 985.55
Department of Health,Guys and St Thomas NHS Foundation Trust,24/04/2020,(51842) Physiotherapists,(id:590503) Integrated Local Services,PSL RECRUITMENT SERVICES LTD,id:12989010    , 704.16
Department of Health,Guys and St Thomas NHS Foundation Trust,17/04/2020,(50552) Qualified Nursing Staff,(id:4460419) Integrated Local Services,YOUR WORLD RECRUITMENT LIMITED(YOUR WORLD HEALTHCARE),id:12978731 ,1224.81
Department of Health,Guys and St Thomas NHS Foundation Trust,03/04/2020,(83400) Office Equipment,(id:590521) Integrated Local Services,NHS SUPPLY CHAIN (MAIDSTONE),id:12891174    ,  42.27
Department of Health,Guys and St Thomas NHS Foundation Trust,09/04/2020,(50552) Qualified Nursing Staff,(id:590473) Integrated Local Services,MSI GROUP LTD,id:12966268  , 581.63
Department of Health,Guys and St Thomas NHS Foundation Trust,24/04/2020,(50552) Qualified Nursing Staff,(id:590473) Integrated Local Services,NURSING 2000 LTD,id:12993325    ,1005.56
Department of Health,Guys and St Thomas NHS Foundation Trust,03/04/2020,(83400) Office Equipment,(id:590471) Integrated Local Services,NHS SUPPLY CHAIN (MAIDSTONE),id:12912734    ,  29.86
Department of Health,Guys and St Thomas NHS Foundation Trust,03/04/2020,(81200) Medical Surgical Supplies & Equipment,(id:590471) Integrated Local Services,NHS SUPPLY CHAIN (MAIDSTONE),id:12891174   , 360.00
Department of Health,Guys and St Thomas NHS Foundation Trust,24/04/2020,(50552) Qualified Nursing Staff,(id:590470) Integrated Local Services,NURSING 2000 LTD,id:12993331    , 887.76
Department of Health,Guys and St Thomas NHS Foundation Trust,03/04/2020,(81100) Dressings,(id:590527) Integrated Local Services,NHS SUPPLY CHAIN (MAIDSTONE),id:12891174 ,  99.99
Department of Health,Guys and St Thomas NHS Foundation Trust,03/04/2020,(81700) Lab Equipment Purchase,(id:590527) Integrated Local Services,NHS SUPPLY CHAIN (MAIDSTONE),id:12912734   ,  23.70
Department of Health,Guys and St Thomas NHS Foundation Trust,03/04/2020,(82800) Bedding & Linen,(id:590526) Integrated Local Services,NHS SUPPLY CHAIN (MAIDSTONE),id:12912734, 169.18
Department of Health,Guys and St Thomas NHS Foundation Trust,03/04/2020,(81225) Medical Surgical Supplies & Equipment,(id:590526) Integrated Local Services,NHS SUPPLY CHAIN (MAIDSTONE),id:12912734   ,  21.24
Department of Health,Guys and St Thomas NHS Foundation Trust,20/04/2020,(51462) Occupational Therapists,(id:903421) Integrated Local Services,PRICEWATERHOUSECOOPERS LLP,id:12983554    , 687.46
Department of Health,Guys and St Thomas NHS Foundation Trust,24/04/2020,(89270) Establishment,(id:903421) Integrated Local Services,SELDOC LTD,id:12988265,7453.58
Department of Health,Guys and St Thomas NHS Foundation Trust,24/04/2020,(89270) Establishment,(id:903421) Integrated Local Services,SELDOC LTD,id:12988262,    70383.39
Department of Health,Guys and St Thomas NHS Foundation Trust,29/04/2020,(51862) Physiotherapists,(id:903421) Integrated Local Services,PRICEWATERHOUSECOOPERS LLP,id:12999514 ,2795.22
Department of Health,Guys and St Thomas NHS Foundation Trust,24/04/2020,(81400) Medical Surgical Supplies & Equipment,(id:590491) Integrated Local Services,VIAPATH ANALYTICS LLP,id:12480437,5246.82
Department of Health,Guys and St Thomas NHS Foundation Trust,03/04/2020,(81200) Medical Surgical Supplies & Equipment,(id:4263422) Integrated Local Services,NHS SUPPLY CHAIN (MAIDSTONE),id:12891174  ,  38.40
Department of Health,Guys and St Thomas NHS Foundation Trust,17/04/2020,(84657) Establishment,(id:590608) Integrated Care SBU Management,IRON MOUNTAIN (UK) LTD,id:12510488   , 806.89
Department of Health,Guys and St Thomas NHS Foundation Trust,03/04/2020,(82000) Provisions & Kitchens,(id:42518) Evelina Womens Services,NHS SUPPLY CHAIN (MAIDSTONE),id:12891174  ,  16.32
Department of Health,Guys and St Thomas NHS Foundation Trust,17/04/2020,(50562) Qualified Nursing Staff,(id:42518) Evelina Womens Services,MEDICSPRO LTD,id:12975216, 938.39
Department of Health,Guys and St Thomas NHS Foundation Trust,03/04/2020,(81100) Dressings,(id:42518) Evelina Womens Services,NHS SUPPLY CHAIN (MAIDSTONE),id:12891174    , 141.77
Department of Health,Guys and St Thomas NHS Foundation Trust,03/04/2020,(82800) Bedding & Linen,(id:42517) Evelina Womens Services,NHS SUPPLY CHAIN (MAIDSTONE),id:12912734   , 214.30
Department of Health,Guys and St Thomas NHS Foundation Trust,17/04/2020,(81400) Medical Surgical Supplies & Equipment,(id:42517) Evelina Womens Services,VALIDAIR MONITORING SOLUTIONS LTD,id:12939849 ,4520.00
Department of Health,Guys and St Thomas NHS Foundation Trust,24/04/2020,(89270) Establishment,(id:42517) Evelina Womens Services,CALLITECH LIMITED T/A MONEYPENNY,id:12988240 ,    10118.38
Department of Health,Guys and St Thomas NHS Foundation Trust,03/04/2020,(81200) Medical Surgical Supplies & Equipment,(id:42517) Evelina Womens Services,NHS SUPPLY CHAIN (MAIDSTONE),id:12891174 , 284.27
Department of Health,Guys and St Thomas NHS Foundation Trust,03/04/2020,(81700) Lab Equipment Purchase,(id:42517) Evelina Womens Services,PARALLABS LTD,id:12940174 ,1266.00
Department of Health,Guys and St Thomas NHS Foundation Trust,09/04/2020,(81700) Lab Equipment Purchase,(id:42517) Evelina Womens Services,THERMO FISHER SCIENTIFIC,id:12892534,1907.34
Department of Health,Guys and St Thomas NHS Foundation Trust,03/04/2020,(82000) Provisions & Kitchens,(id:42513) Evelina Womens Services,NHS SUPPLY CHAIN (MAIDSTONE),id:12891174  ,  93.95
Department of Health,Guys and St Thomas NHS Foundation Trust,03/04/2020,(81200) Medical Surgical Supplies & Equipment,(id:42511) Evelina Womens Services,NHS SUPPLY CHAIN (MAIDSTONE),id:12912734 , 440.96
Department of Health,Guys and St Thomas NHS Foundation Trust,03/04/2020,(81200) Medical Surgical Supplies & Equipment,(id:42511) Evelina Womens Services,CRYOLIFE EUROPA LTD,id:12925258, 726.00
Department of Health,Guys and St Thomas NHS Foundation Trust,03/04/2020,(82800) Bedding & Linen,(id:42510) Evelina Womens Services,NHS SUPPLY CHAIN (MAIDSTONE),id:12891174   ,  33.69
Department of Health,Guys and St Thomas NHS Foundation Trust,03/04/2020,(81200) Medical Surgical Supplies & Equipment,(id:42510) Evelina Womens Services,NHS SUPPLY CHAIN (MAIDSTONE),id:12912734 , 291.70
Department of Health,Guys and St Thomas NHS Foundation Trust,03/04/2020,(81700) Lab Equipment Purchase,(id:42510) Evelina Womens Services,NHS SUPPLY CHAIN (MAIDSTONE),id:12912734 ,  55.47
Department of Health,Guys and St Thomas NHS Foundation Trust,03/04/2020,(81200) Medical Surgical Supplies & Equipment,(id:42509) Evelina Womens Services,SQUADRON MEDICAL LTD,id:12897711    , 936.37
Department of Health,Guys and St Thomas NHS Foundation Trust,03/04/2020,(81200) Medical Surgical Supplies & Equipment,(id:42509) Evelina Womens Services,SQUADRON MEDICAL LTD,id:12895034    , 505.51
Department of Health,Guys and St Thomas NHS Foundation Trust,03/04/2020,(81200) Medical Surgical Supplies & Equipment,(id:42509) Evelina Womens Services,SQUADRON MEDICAL LTD,id:12919365    ,2792.15
Department of Health,Guys and St Thomas NHS Foundation Trust,03/04/2020,(83400) Office Equipment,(id:42508) Evelina Womens Services,NHS SUPPLY CHAIN (MAIDSTONE),id:12912734  ,   7.32
Department of Health,Guys and St Thomas NHS Foundation Trust,03/04/2020,(83400) Office Equipment,(id:42508) Evelina Womens Services,NHS SUPPLY CHAIN (MAIDSTONE),id:12891174  ,  12.64
Department of Health,Guys and St Thomas NHS Foundation Trust,03/04/2020,(81200) Medical Surgical Supplies & Equipment,(id:42506) Evelina Womens Services,NHS SUPPLY CHAIN (MAIDSTONE),id:12912734 ,4860.77
Department of Health,Guys and St Thomas NHS Foundation Trust,24/04/2020,(81200) Medical Surgical Supplies & Equipment,(id:42506) Evelina Womens Services,POSTURITE (UK) LTD,id:12929701 ,  39.54
Department of Health,Guys and St Thomas NHS Foundation Trust,03/04/2020,(83400) Office Equipment,(id:42506) Evelina Womens Services,NHS SUPPLY CHAIN (MAIDSTONE),id:12912734  ,  37.25
Department of Health,Guys and St Thomas NHS Foundation Trust,03/04/2020,(81700) Lab Equipment Purchase,(id:42506) Evelina Womens Services,NHS SUPPLY CHAIN (MAIDSTONE),id:12891174 ,  72.12
Department of Health,Guys and St Thomas NHS Foundation Trust,03/04/2020,(81550) X Ray Equipment Purchase,(id:42506) Evelina Womens Services,NHS SUPPLY CHAIN (MAIDSTONE),id:12912734    , 317.99
Department of Health,Guys and St Thomas NHS Foundation Trust,03/04/2020,(82800) Bedding & Linen,(id:42506) Evelina Womens Services,NHS SUPPLY CHAIN (MAIDSTONE),id:12891174   ,  20.30
Department of Health,Guys and St Thomas NHS Foundation Trust,03/04/2020,(81200) Medical Surgical Supplies & Equipment,(id:42486) Evelina Womens Services,NHS SUPPLY CHAIN (MAIDSTONE),id:12912734 , 136.03
Department of Health,Guys and St Thomas NHS Foundation Trust,17/04/2020,(81200) Medical Surgical Supplies & Equipment,(id:42486) Evelina Womens Services,SQUADRON MEDICAL LTD,id:12952222    , 687.41
Department of Health,Guys and St Thomas NHS Foundation Trust,03/04/2020,(81225) Medical Surgical Supplies & Equipment,(id:42486) Evelina Womens Services,NHS SUPPLY CHAIN (MAIDSTONE),id:12891174 ,   6.73
Department of Health,Guys and St Thomas NHS Foundation Trust,09/04/2020,(81900) Lab Equipment Purchase,(id:42486) Evelina Womens Services,VIAPATH SERVICES LLP,id:12956460    ,2433.32
Department of Health,Guys and St Thomas NHS Foundation Trust,03/04/2020,(82600) Uniforms & Clothing,(id:42486) Evelina Womens Services,NHS SUPPLY CHAIN (MAIDSTONE),id:12891174    ,  20.40
Department of Health,Guys and St Thomas NHS Foundation Trust,03/04/2020,(83400) Office Equipment,(id:42488) Evelina Womens Services,NHS SUPPLY CHAIN (MAIDSTONE),id:12912734  ,  51.80
Department of Health,Guys and St Thomas NHS Foundation Trust,03/04/2020,(81100) Dressings,(id:42488) Evelina Womens Services,NHS SUPPLY CHAIN (MAIDSTONE),id:12912734    ,   4.00
Department of Health,Guys and St Thomas NHS Foundation Trust,03/04/2020,(81700) Lab Equipment Purchase,(id:42488) Evelina Womens Services,NHS SUPPLY CHAIN (MAIDSTONE),id:12912734 ,  53.28
Department of Health,Guys and St Thomas NHS Foundation Trust,09/04/2020,(50562) Qualified Nursing Staff,(id:42497) Evelina Womens Services,PULSE HEALTHCARE LIMITED,id:12956675    , 429.52
Department of Health,Guys and St Thomas NHS Foundation Trust,17/04/2020,(80200) Drug Costs,(id:42496) Evelina Womens Services,VIAPATH SERVICES LLP,id:12896532 ,3626.00
Department of Health,Guys and St Thomas NHS Foundation Trust,17/04/2020,(80200) Drug Costs,(id:42496) Evelina Womens Services,VIAPATH SERVICES LLP,id:12843086 ,3626.00
Department of Health,Guys and St Thomas NHS Foundation Trust,03/04/2020,(82600) Uniforms & Clothing,(id:42493) Evelina Womens Services,NHS SUPPLY CHAIN (MAIDSTONE),id:12891174    ,  61.20
Department of Health,Guys and St Thomas NHS Foundation Trust,03/04/2020,(82700) Uniforms & Clothing,(id:42493) Evelina Womens Services,NHS SUPPLY CHAIN (MAIDSTONE),id:12912734    ,  10.56
Department of Health,Guys and St Thomas NHS Foundation Trust,03/04/2020,(82800) Bedding & Linen,(id:42493) Evelina Womens Services,NHS SUPPLY CHAIN (MAIDSTONE),id:12891174   ,  56.15
Department of Health,Guys and St Thomas NHS Foundation Trust,03/04/2020,(81200) Medical Surgical Supplies & Equipment,(id:42493) Evelina Womens Services,NHS SUPPLY CHAIN (MAIDSTONE),id:12891174 , 564.92
Department of Health,Guys and St Thomas NHS Foundation Trust,03/04/2020,(81275) Medical Surgical Supplies & Equipment,(id:42493) Evelina Womens Services,NHS SUPPLY CHAIN (MAIDSTONE),id:12912734 ,  11.86
Department of Health,Guys and St Thomas NHS Foundation Trust,17/04/2020,(50562) Qualified Nursing Staff,(id:42493) Evelina Womens Services,PULSE HEALTHCARE LIMITED,id:12978142    , 506.67
Department of Health,Guys and St Thomas NHS Foundation Trust,03/04/2020,(82800) Bedding & Linen,(id:42492) Evelina Womens Services,NHS SUPPLY CHAIN (MAIDSTONE),id:12912734   ,2222.54
Department of Health,Guys and St Thomas NHS Foundation Trust,03/04/2020,(81100) Dressings,(id:42492) Evelina Womens Services,NHS SUPPLY CHAIN (MAIDSTONE),id:12912734    ,5189.83
Department of Health,Guys and St Thomas NHS Foundation Trust,17/04/2020,(83350) Premises Services,(id:42492) Evelina Womens Services,LAZERBEAM FIRE AND SECURITY LTD,id:12967814   ,1750.00
Department of Health,Guys and St Thomas NHS Foundation Trust,03/04/2020,(81200) Medical Surgical Supplies & Equipment,(id:42492) Evelina Womens Services,JOHNSON & JOHNSON MEDICAL LTD,id:12919070,2454.72
Department of Health,Guys and St Thomas NHS Foundation Trust,03/04/2020,(81225) Medical Surgical Supplies & Equipment,(id:42492) Evelina Womens Services,NHS SUPPLY CHAIN (MAIDSTONE),id:12912734 , 236.97
Department of Health,Guys and St Thomas NHS Foundation Trust,17/04/2020,(50562) Qualified Nursing Staff,(id:42492) Evelina Womens Services,CARE PROVIDERS HEALTHCARE,id:12978286   , 969.16
Department of Health,Guys and St Thomas NHS Foundation Trust,03/04/2020,(82600) Uniforms & Clothing,(id:42491) Evelina Womens Services,NHS SUPPLY CHAIN (MAIDSTONE),id:12891174    , 159.94
Department of Health,Guys and St Thomas NHS Foundation Trust,03/04/2020,(82700) Uniforms & Clothing,(id:42491) Evelina Womens Services,NHS SUPPLY CHAIN (MAIDSTONE),id:12891174    ,  21.12
Department of Health,Guys and St Thomas NHS Foundation Trust,09/04/2020,(89595) Non-Healthcare from Foundation Trusts,(id:42504) Evelina Womens Services,ST GEORGE'S UNIVERSITY HOSPITALS NHS FOUNDATION TRUST,id:12357731 ,6932.57
Department of Health,Guys and St Thomas NHS Foundation Trust,24/04/2020,(50470) Medical Training Grades,(id:42504) Evelina Womens Services,KINGS COLLEGE LONDON:03529700,id:12930134    ,6800.77
Department of Health,Guys and St Thomas NHS Foundation Trust,17/04/2020,(89640) Non-Healthcare from NHS Trusts,(id:42504) Evelina Womens Services,LEWISHAM AND GREENWICH NHS TRUST,id:12588938    ,2110.41
Department of Health,Guys and St Thomas NHS Foundation Trust,24/04/2020,(89640) Non-Healthcare from NHS Trusts,(id:42504) Evelina Womens Services,NORTH MIDDLESEX UNIVERSITY HOSPITAL NHS TRUST,id:12972855 ,    -1232.76
Department of Health,Guys and St Thomas NHS Foundation Trust,03/04/2020,(82700) Uniforms & Clothing,(id:42348) Evelina Central,NHS SUPPLY CHAIN (MAIDSTONE),id:12912734  , 105.86
Department of Health,Guys and St Thomas NHS Foundation Trust,24/04/2020,(81100) Dressings,(id:42348) Evelina Central,NXSTAGE MEDICAL UK LIMITED,id:12723002    ,1696.00
Department of Health,Guys and St Thomas NHS Foundation Trust,24/04/2020,(80150) Drug Costs,(id:42348) Evelina Central,NXSTAGE MEDICAL UK LIMITED,id:12798281   , 600.00
Department of Health,Guys and St Thomas NHS Foundation Trust,03/04/2020,(83400) Office Equipment,(id:42348) Evelina Central,NHS SUPPLY CHAIN (MAIDSTONE),id:12891174, 252.34
Department of Health,Guys and St Thomas NHS Foundation Trust,03/04/2020,(82600) Uniforms & Clothing,(id:42331) Evelina Central,NHS SUPPLY CHAIN (MAIDSTONE),id:12891174  ,  24.48
Department of Health,Guys and St Thomas NHS Foundation Trust,03/04/2020,(83400) Office Equipment,(id:42331) Evelina Central,NHS SUPPLY CHAIN (MAIDSTONE),id:12891174, 527.40
Department of Health,Guys and St Thomas NHS Foundation Trust,03/04/2020,(81700) Lab Equipment Purchase,(id:42331) Evelina Central,NHS SUPPLY CHAIN (MAIDSTONE),id:12912734    ,  46.11
Department of Health,Guys and St Thomas NHS Foundation Trust,03/04/2020,(82000) Provisions & Kitchens,(id:42331) Evelina Central,NHS SUPPLY CHAIN (MAIDSTONE),id:12891174, 267.10
Department of Health,Guys and St Thomas NHS Foundation Trust,03/04/2020,(81225) Medical Surgical Supplies & Equipment,(id:42325) Evelina Central,NHS SUPPLY CHAIN (MAIDSTONE),id:12891174    , 119.64
Department of Health,Guys and St Thomas NHS Foundation Trust,09/04/2020,(83500) Furniture & Fittings,(id:42325) Evelina Central,TECHNIBLINDS LTD,id:12945838   , 667.20
Department of Health,Guys and St Thomas NHS Foundation Trust,03/04/2020,(81200) Medical Surgical Supplies & Equipment,(id:42319) Evelina Central,NHS SUPPLY CHAIN (MAIDSTONE),id:12912734    , 185.31
Department of Health,Guys and St Thomas NHS Foundation Trust,24/04/2020,(89270) Establishment,(id:2634419) Evelina Central,KING'S COLLEGE HOSPITAL NHS FOUNDATION TRUST,id:12969734, 947.24
Department of Health,Guys and St Thomas NHS Foundation Trust,24/04/2020,(55072) Admin & Clerical,(id:2634419) Evelina Central,KING'S COLLEGE HOSPITAL NHS FOUNDATION TRUST,id:12969731  ,1502.26
Department of Health,Guys and St Thomas NHS Foundation Trust,03/04/2020,(83400) Office Equipment,(id:590417) Evelina Community Services,NHS SUPPLY CHAIN (MAIDSTONE),id:12912734   ,  28.20
Department of Health,Guys and St Thomas NHS Foundation Trust,03/04/2020,(83400) Office Equipment,(id:590416) Evelina Community Services,NHS SUPPLY CHAIN (MAIDSTONE),id:12912734   ,  56.40
Department of Health,Guys and St Thomas NHS Foundation Trust,03/04/2020,(81275) Medical Surgical Supplies & Equipment,(id:590545) Evelina Community Services,NHS SUPPLY CHAIN (MAIDSTONE),id:12891174  , 129.23
Department of Health,Guys and St Thomas NHS Foundation Trust,29/04/2020,(51462) Occupational Therapists,(id:706419) Evelina Community Services,PRICEWATERHOUSECOOPERS LLP,id:12999514   ,2384.35
Department of Health,Guys and St Thomas NHS Foundation Trust,20/04/2020,(51462) Occupational Therapists,(id:706419) Evelina Community Services,PRICEWATERHOUSECOOPERS LLP,id:12983678   ,2367.14
Department of Health,Guys and St Thomas NHS Foundation Trust,20/04/2020,(51462) Occupational Therapists,(id:590549) Evelina Community Services,PRICEWATERHOUSECOOPERS LLP,id:12983554   ,1204.76
Department of Health,Guys and St Thomas NHS Foundation Trust,29/04/2020,(51462) Occupational Therapists,(id:590549) Evelina Community Services,PRICEWATERHOUSECOOPERS LLP,id:12999514   ,1239.37
Department of Health,Guys and St Thomas NHS Foundation Trust,03/04/2020,(83400) Office Equipment,(id:590446) Evelina Community Services,NHS SUPPLY CHAIN (MAIDSTONE),id:12891174   , 119.90
Department of Health,Guys and St Thomas NHS Foundation Trust,03/04/2020,(89595) Non-Healthcare from Foundation Trusts,(id:42326) Evelina Medicine & Neonatology,ROYAL DEVON AND EXETER NHS FOUNDATION TRUST,id:12932617    , 750.00
Department of Health,Guys and St Thomas NHS Foundation Trust,24/04/2020,(89595) Non-Healthcare from Foundation Trusts,(id:42326) Evelina Medicine & Neonatology,GREAT ORMOND STREET HOSPITAL FOR CHILDREN NHS FOUNDATION TRUST,id:12675780, 880.00
Department of Health,Guys and St Thomas NHS Foundation Trust,24/04/2020,(50200) Consultants,(id:42327) Evelina Medicine & Neonatology,KINGS COLLEGE LONDON:03529700,id:12914540    ,6653.05
Department of Health,Guys and St Thomas NHS Foundation Trust,03/04/2020,(81100) Dressings,(id:42327) Evelina Medicine & Neonatology,NHS SUPPLY CHAIN (MAIDSTONE),id:12912734  ,3211.21
Department of Health,Guys and St Thomas NHS Foundation Trust,17/04/2020,(81200) Medical Surgical Supplies & Equipment,(id:42327) Evelina Medicine & Neonatology,SQUADRON MEDICAL LTD,id:12947381  , 803.68
Department of Health,Guys and St Thomas NHS Foundation Trust,24/04/2020,(81200) Medical Surgical Supplies & Equipment,(id:42327) Evelina Medicine & Neonatology,SQUADRON MEDICAL LTD,id:12973891  , 641.70
Department of Health,Guys and St Thomas NHS Foundation Trust,24/04/2020,(50552) Qualified Nursing Staff,(id:42327) Evelina Medicine & Neonatology,CONTINENTAL NURSE LTD,id:12989272,2129.36
Department of Health,Guys and St Thomas NHS Foundation Trust,03/04/2020,(81230) Medical Surgical Supplies & Equipment,(id:42327) Evelina Medicine & Neonatology,NHS SUPPLY CHAIN (MAIDSTONE),id:12891174    , 670.80
Department of Health,Guys and St Thomas NHS Foundation Trust,03/04/2020,(50200) Consultants,(id:42335) Evelina Medicine & Neonatology,SOUTH LONDON AND MAUDSLEY NHS FOUNDATION TRUST,id:12918200  ,    13926.24
Department of Health,Guys and St Thomas NHS Foundation Trust,24/04/2020,(80150) Drug Costs,(id:42350) Evelina Medicine & Neonatology,LINC MEDICAL SYSTEMS  LTD,id:12959842    ,3416.40
Department of Health,Guys and St Thomas NHS Foundation Trust,03/04/2020,(81200) Medical Surgical Supplies & Equipment,(id:42349) Evelina Medicine & Neonatology,SQUADRON MEDICAL LTD,id:12885755  , 523.25
Department of Health,Guys and St Thomas NHS Foundation Trust,24/04/2020,(81200) Medical Surgical Supplies & Equipment,(id:42349) Evelina Medicine & Neonatology,SQUADRON MEDICAL LTD,id:12970232  , 452.70
Department of Health,Guys and St Thomas NHS Foundation Trust,09/04/2020,(81200) Medical Surgical Supplies & Equipment,(id:1196422) Evelina Medicine & Neonatology,LINDSAY SURGICAL SUPPLIES LIMITED,id:12939836  ,1104.00
Department of Health,Guys and St Thomas NHS Foundation Trust,03/04/2020,(81700) Lab Equipment Purchase,(id:1561419) Evelina Medicine & Neonatology,NHS SUPPLY CHAIN (MAIDSTONE),id:12891174  ,  49.40
Department of Health,Guys and St Thomas NHS Foundation Trust,03/04/2020,(81255) Medical Surgical Supplies & Equipment,(id:42323) Evelina Medicine & Neonatology,NHS SUPPLY CHAIN (MAIDSTONE),id:12891174    ,  18.60
Department of Health,Guys and St Thomas NHS Foundation Trust,03/04/2020,(81700) Lab Equipment Purchase,(id:42323) Evelina Medicine & Neonatology,NHS SUPPLY CHAIN (MAIDSTONE),id:12912734    ,  33.46
Department of Health,Guys and St Thomas NHS Foundation Trust,03/04/2020,(81200) Medical Surgical Supplies & Equipment,(id:42315) Evelina Medicine & Neonatology,NHS SUPPLY CHAIN (MAIDSTONE),id:12912734    , 372.97
Department of Health,Guys and St Thomas NHS Foundation Trust,03/04/2020,(83400) Office Equipment,(id:2356419) Evelina Medicine & Neonatology,NHS SUPPLY CHAIN (MAIDSTONE),id:12912734   ,  23.10
Department of Health,Guys and St Thomas NHS Foundation Trust,03/04/2020,(81230) Medical Surgical Supplies & Equipment,(id:2356419) Evelina Medicine & Neonatology,NHS SUPPLY CHAIN (MAIDSTONE),id:12912734  , 182.70
Department of Health,Guys and St Thomas NHS Foundation Trust,03/04/2020,(83400) Office Equipment,(id:42058) Evelina Medicine & Neonatology,NHS SUPPLY CHAIN (MAIDSTONE),id:12912734,  28.20
Department of Health,Guys and St Thomas NHS Foundation Trust,24/04/2020,(50200) Consultants,(id:42058) Evelina Medicine & Neonatology,KINGS COLLEGE LONDON:03529700,id:12930268    ,6658.38
Department of Health,Guys and St Thomas NHS Foundation Trust,24/04/2020,(81200) Medical Surgical Supplies & Equipment,(id:2981419) Evelina Medicine & Neonatology,MEDTRONIC LTD,id:12973857  ,2202.00
Department of Health,Guys and St Thomas NHS Foundation Trust,03/04/2020,(81200) Medical Surgical Supplies & Equipment,(id:2496419) Evelina Medicine & Neonatology,NHS SUPPLY CHAIN (MAIDSTONE),id:12891174  , 337.64
Department of Health,Guys and St Thomas NHS Foundation Trust,03/04/2020,(82000) Provisions & Kitchens,(id:2496419) Evelina Medicine & Neonatology,NHS SUPPLY CHAIN (MAIDSTONE),id:12891174   ,  33.80
Department of Health,Guys and St Thomas NHS Foundation Trust,03/04/2020,(82600) Uniforms & Clothing,(id:2496419) Evelina Medicine & Neonatology,NHS SUPPLY CHAIN (MAIDSTONE),id:12912734,  20.01
Department of Health,Guys and St Thomas NHS Foundation Trust,03/04/2020,(81100) Dressings,(id:2496419) Evelina Medicine & Neonatology,NHS SUPPLY CHAIN (MAIDSTONE),id:12912734,   2.64
Department of Health,Guys and St Thomas NHS Foundation Trust,24/04/2020,(81200) Medical Surgical Supplies & Equipment,(id:1196420) Evelina Medicine & Neonatology,DEXCOM UK,id:12988803 , 793.50
Department of Health,Guys and St Thomas NHS Foundation Trust,17/04/2020,(81200) Medical Surgical Supplies & Equipment,(id:817420) Evelina Medicine & Neonatology,S-MED LTD,id:12959396  ,1188.00
Department of Health,Guys and St Thomas NHS Foundation Trust,17/04/2020,(50552) Qualified Nursing Staff,(id:41874) Evelina Medicine & Neonatology,CONTINENTAL NURSE LTD,id:12975223, 316.14
Department of Health,Guys and St Thomas NHS Foundation Trust,03/04/2020,(81200) Medical Surgical Supplies & Equipment,(id:41874) Evelina Medicine & Neonatology,NHS SUPPLY CHAIN (MAIDSTONE),id:12912734    ,  32.78
Department of Health,Guys and St Thomas NHS Foundation Trust,09/04/2020,(81200) Medical Surgical Supplies & Equipment,(id:42312) Evelina Surgery Theatres & PICU,WL GORE & ASSOCIATES (UK) LTD,id:12956996  ,    11160.00
Department of Health,Guys and St Thomas NHS Foundation Trust,24/04/2020,(81400) Medical Surgical Supplies & Equipment,(id:42312) Evelina Surgery Theatres & PICU,CANON MEDICAL SYSTEMS LTD,id:12990330 ,    10275.00
Department of Health,Guys and St Thomas NHS Foundation Trust,24/04/2020,(89270) Establishment,(id:42312) Evelina Surgery Theatres & PICU,INNOVATIVE DISPLAYS (TALKSIGN LTD),id:12975094 , 453.72
Department of Health,Guys and St Thomas NHS Foundation Trust,03/04/2020,(81280) Medical Surgical Supplies & Equipment,(id:42312) Evelina Surgery Theatres & PICU,NHS BLOOD AND TRANSPLANT,id:12920468  , 604.03
Department of Health,Guys and St Thomas NHS Foundation Trust,03/04/2020,(81230) Medical Surgical Supplies & Equipment,(id:42312) Evelina Surgery Theatres & PICU,COOK UK LTD,id:12874569, 678.00
Department of Health,Guys and St Thomas NHS Foundation Trust,09/04/2020,(81230) Medical Surgical Supplies & Equipment,(id:42312) Evelina Surgery Theatres & PICU,COOK UK LTD,id:12747266,1092.00
Department of Health,Guys and St Thomas NHS Foundation Trust,17/04/2020,(81230) Medical Surgical Supplies & Equipment,(id:42312) Evelina Surgery Theatres & PICU,COOK UK LTD,id:12950298, 750.00
Department of Health,Guys and St Thomas NHS Foundation Trust,03/04/2020,(81255) Medical Surgical Supplies & Equipment,(id:42339) Evelina Surgery Theatres & PICU,NHS SUPPLY CHAIN (MAIDSTONE),id:12891174   , 573.36
Department of Health,Guys and St Thomas NHS Foundation Trust,03/04/2020,(81100) Dressings,(id:42339) Evelina Surgery Theatres & PICU,NHS SUPPLY CHAIN (MAIDSTONE),id:12891174 , 323.34
Department of Health,Guys and St Thomas NHS Foundation Trust,24/04/2020,(81200) Medical Surgical Supplies & Equipment,(id:42339) Evelina Surgery Theatres & PICU,ADVANCED STERILIZATION PRODUCTS (UK) LTD,id:12988074 , 835.27
Department of Health,Guys and St Thomas NHS Foundation Trust,24/04/2020,(81200) Medical Surgical Supplies & Equipment,(id:42339) Evelina Surgery Theatres & PICU,EDWARDS LIFESCIENCES LTD,id:12988914  ,1888.08
Department of Health,Guys and St Thomas NHS Foundation Trust,24/04/2020,(81200) Medical Surgical Supplies & Equipment,(id:42339) Evelina Surgery Theatres & PICU,EDWARDS LIFESCIENCES LTD,id:12987922  ,1998.00
Department of Health,Guys and St Thomas NHS Foundation Trust,03/04/2020,(81265) Medical Surgical Supplies & Equipment,(id:42339) Evelina Surgery Theatres & PICU,NHS SUPPLY CHAIN (MAIDSTONE),id:12912734   , 346.08
Department of Health,Guys and St Thomas NHS Foundation Trust,03/04/2020,(83400) Office Equipment,(id:42339) Evelina Surgery Theatres & PICU,NHS SUPPLY CHAIN (MAIDSTONE),id:12891174    , 679.90
Department of Health,Guys and St Thomas NHS Foundation Trust,17/04/2020,(81230) Medical Surgical Supplies & Equipment,(id:42339) Evelina Surgery Theatres & PICU,MAQUET LIMITED,id:12954095  ,1860.00
Department of Health,Guys and St Thomas NHS Foundation Trust,03/04/2020,(83400) Office Equipment,(id:42351) Evelina Surgery Theatres & PICU,NHS SUPPLY CHAIN (MAIDSTONE),id:12912734    ,   5.10
Department of Health,Guys and St Thomas NHS Foundation Trust,03/04/2020,(81200) Medical Surgical Supplies & Equipment,(id:42351) Evelina Surgery Theatres & PICU,STRYKER UK LTD,id:12927620  , 507.36
Department of Health,Guys and St Thomas NHS Foundation Trust,06/04/2020,(83755) Rental under Operating Lease,(id:42351) Evelina Surgery Theatres & PICU,THE TRUSTEES OF THE LETHERHEAD INSTITUTE,id:12925221,1150.00
Department of Health,Guys and St Thomas NHS Foundation Trust,03/04/2020,(81200) Medical Surgical Supplies & Equipment,(id:468409) Evelina Surgery Theatres & PICU,SQUADRON MEDICAL LTD,id:12899200, 227.18
Department of Health,Guys and St Thomas NHS Foundation Trust,09/04/2020,(81200) Medical Surgical Supplies & Equipment,(id:468409) Evelina Surgery Theatres & PICU,SQUADRON MEDICAL LTD,id:12926164,  18.95
Department of Health,Guys and St Thomas NHS Foundation Trust,03/04/2020,(89640) Non-Healthcare from NHS Trusts,(id:468409) Evelina Surgery Theatres & PICU,LEWISHAM AND GREENWICH NHS TRUST,id:12668956,    14127.42
Department of Health,Guys and St Thomas NHS Foundation Trust,03/04/2020,(81100) Dressings,(id:431409) Evelina Surgery Theatres & PICU,SQUADRON MEDICAL LTD,id:12919729   ,   1.75
Department of Health,Guys and St Thomas NHS Foundation Trust,03/04/2020,(81200) Medical Surgical Supplies & Equipment,(id:431409) Evelina Surgery Theatres & PICU,NHS SUPPLY CHAIN (MAIDSTONE),id:12891174  , 772.80
Department of Health,Guys and St Thomas NHS Foundation Trust,17/04/2020,(81200) Medical Surgical Supplies & Equipment,(id:431409) Evelina Surgery Theatres & PICU,T J SMITH & NEPHEW LTD,id:12946090   ,1271.52
Department of Health,Guys and St Thomas NHS Foundation Trust,09/04/2020,(81000) Surgical Appliances,(id:431409) Evelina Surgery Theatres & PICU,JOHN FLORENCE LTD,id:12961777 , 658.49
Department of Health,Guys and St Thomas NHS Foundation Trust,09/04/2020,(81000) Surgical Appliances,(id:431409) Evelina Surgery Theatres & PICU,JOHN FLORENCE LTD,id:12961733 , 717.29
Department of Health,Guys and St Thomas NHS Foundation Trust,03/04/2020,(81200) Medical Surgical Supplies & Equipment,(id:1196421) Evelina Surgery Theatres & PICU,NUVASIVE UK LTD,id:12951790    , 714.00
Department of Health,Guys and St Thomas NHS Foundation Trust,03/04/2020,(81200) Medical Surgical Supplies & Equipment,(id:1196421) Evelina Surgery Theatres & PICU,ZIMMER BIOMET UK LTD,id:12927524    ,3124.80
Department of Health,Guys and St Thomas NHS Foundation Trust,03/04/2020,(81200) Medical Surgical Supplies & Equipment,(id:1196421) Evelina Surgery Theatres & PICU,SQUADRON MEDICAL LTD,id:12827965    , 108.84
Department of Health,Guys and St Thomas NHS Foundation Trust,17/04/2020,(81200) Medical Surgical Supplies & Equipment,(id:1196421) Evelina Surgery Theatres & PICU,NUVASIVE UK LTD,id:12976834    ,    10865.05
Department of Health,Guys and St Thomas NHS Foundation Trust,24/04/2020,(81200) Medical Surgical Supplies & Equipment,(id:1196421) Evelina Surgery Theatres & PICU,MEDTRONIC LTD,id:12982677 , 978.00
Department of Health,Guys and St Thomas NHS Foundation Trust,17/04/2020,(81000) Surgical Appliances,(id:1196421) Evelina Surgery Theatres & PICU,SQUADRON MEDICAL LTD,id:12941004  , 156.46
Department of Health,Guys and St Thomas NHS Foundation Trust,03/04/2020,(82600) Uniforms & Clothing,(id:41914) Evelina Surgery Theatres & PICU,NHS SUPPLY CHAIN (MAIDSTONE),id:12912734 , 410.48
Department of Health,Guys and St Thomas NHS Foundation Trust,03/04/2020,(83400) Office Equipment,(id:41914) Evelina Surgery Theatres & PICU,SQUADRON MEDICAL LTD,id:12885757  , 407.95
Department of Health,Guys and St Thomas NHS Foundation Trust,03/04/2020,(83400) Office Equipment,(id:41914) Evelina Surgery Theatres & PICU,SQUADRON MEDICAL LTD,id:12919729  , 407.95
Department of Health,Guys and St Thomas NHS Foundation Trust,03/04/2020,(82800) Bedding & Linen,(id:41914) Evelina Surgery Theatres & PICU,SQUADRON MEDICAL LTD,id:12885755   ,   5.69
Department of Health,Guys and St Thomas NHS Foundation Trust,03/04/2020,(81200) Medical Surgical Supplies & Equipment,(id:41914) Evelina Surgery Theatres & PICU,NHS SUPPLY CHAIN (MAIDSTONE),id:12891174   ,1302.18
Department of Health,Guys and St Thomas NHS Foundation Trust,03/04/2020,(81200) Medical Surgical Supplies & Equipment,(id:41914) Evelina Surgery Theatres & PICU,SQUADRON MEDICAL LTD,id:12897686 , 174.10
Department of Health,Guys and St Thomas NHS Foundation Trust,09/04/2020,(50562) Qualified Nursing Staff,(id:41914) Evelina Surgery Theatres & PICU,CARE PROVIDERS HEALTHCARE,id:12963288,1151.28
Department of Health,Guys and St Thomas NHS Foundation Trust,17/04/2020,(50562) Qualified Nursing Staff,(id:41914) Evelina Surgery Theatres & PICU,YOUR WORLD RECRUITMENT LIMITED(YOUR WORLD HEALTHCARE),id:12978725  ,1127.10
Department of Health,Guys and St Thomas NHS Foundation Trust,17/04/2020,(50562) Qualified Nursing Staff,(id:41914) Evelina Surgery Theatres & PICU,YOUR WORLD RECRUITMENT LIMITED(YOUR WORLD HEALTHCARE),id:12963329  ,1243.12
Department of Health,Guys and St Thomas NHS Foundation Trust,03/04/2020,(81100) Dressings,(id:41914) Evelina Surgery Theatres & PICU,NHS SUPPLY CHAIN (MAIDSTONE),id:12891174 ,1135.38
Department of Health,Guys and St Thomas NHS Foundation Trust,03/04/2020,(81200) Medical Surgical Supplies & Equipment,(id:41910) Evelina Surgery Theatres & PICU,NHS SUPPLY CHAIN (MAIDSTONE),id:12891174   ,2546.52
Department of Health,Guys and St Thomas NHS Foundation Trust,03/04/2020,(81200) Medical Surgical Supplies & Equipment,(id:41910) Evelina Surgery Theatres & PICU,SQUADRON MEDICAL LTD,id:12915795 , 316.85
Department of Health,Guys and St Thomas NHS Foundation Trust,17/04/2020,(81200) Medical Surgical Supplies & Equipment,(id:41910) Evelina Surgery Theatres & PICU,SQUADRON MEDICAL LTD,id:12941409 , 160.10
Department of Health,Guys and St Thomas NHS Foundation Trust,09/04/2020,(81200) Medical Surgical Supplies & Equipment,(id:41910) Evelina Surgery Theatres & PICU,SQUADRON MEDICAL LTD,id:12910848 , 126.18
Department of Health,Guys and St Thomas NHS Foundation Trust,03/04/2020,(82800) Bedding & Linen,(id:3722419) Evelina Surgery Theatres & PICU,NHS SUPPLY CHAIN (MAIDSTONE),id:12891174   ,  10.08
Department of Health,Guys and St Thomas NHS Foundation Trust,03/04/2020,(82000) Provisions & Kitchens,(id:41958) Gastrointestinal Medicine & Surgery,NHS SUPPLY CHAIN (MAIDSTONE),id:12912734,  51.63
Department of Health,Guys and St Thomas NHS Foundation Trust,03/04/2020,(82800) Bedding & Linen,(id:41958) Gastrointestinal Medicine & Surgery,NHS SUPPLY CHAIN (MAIDSTONE),id:12912734 ,  14.30
Department of Health,Guys and St Thomas NHS Foundation Trust,24/04/2020,(50552) Qualified Nursing Staff,(id:41958) Gastrointestinal Medicine & Surgery,CONTINENTAL NURSE LTD,id:12992821, 677.30
Department of Health,Guys and St Thomas NHS Foundation Trust,24/04/2020,(50552) Qualified Nursing Staff,(id:41958) Gastrointestinal Medicine & Surgery,CONTINENTAL NURSE LTD,id:12989126,1796.19
Department of Health,Guys and St Thomas NHS Foundation Trust,24/04/2020,(50522) Unqualified Nursing Staff,(id:41958) Gastrointestinal Medicine & Surgery,MSI GROUP LTD,id:12989106 , 255.97
Department of Health,Guys and St Thomas NHS Foundation Trust,03/04/2020,(81275) Medical Surgical Supplies & Equipment,(id:41958) Gastrointestinal Medicine & Surgery,NHS SUPPLY CHAIN (MAIDSTONE),id:12891174    ,  12.74
Department of Health,Guys and St Thomas NHS Foundation Trust,03/04/2020,(81200) Medical Surgical Supplies & Equipment,(id:41954) Gastrointestinal Medicine & Surgery,NHS SUPPLY CHAIN (MAIDSTONE),id:12912734    ,1040.27
Department of Health,Guys and St Thomas NHS Foundation Trust,24/04/2020,(81200) Medical Surgical Supplies & Equipment,(id:41949) Gastrointestinal Medicine & Surgery,SQUADRON MEDICAL LTD,id:12960499  ,2249.62
Department of Health,Guys and St Thomas NHS Foundation Trust,09/04/2020,(81200) Medical Surgical Supplies & Equipment,(id:41949) Gastrointestinal Medicine & Surgery,SQUADRON MEDICAL LTD,id:12926292  , 887.71
Department of Health,Guys and St Thomas NHS Foundation Trust,03/04/2020,(81200) Medical Surgical Supplies & Equipment,(id:41949) Gastrointestinal Medicine & Surgery,SQUADRON MEDICAL LTD,id:12897711  , 341.74
Department of Health,Guys and St Thomas NHS Foundation Trust,03/04/2020,(81200) Medical Surgical Supplies & Equipment,(id:41949) Gastrointestinal Medicine & Surgery,NHS SUPPLY CHAIN (MAIDSTONE),id:12891174    , 442.80
Department of Health,Guys and St Thomas NHS Foundation Trust,09/04/2020,(50522) Unqualified Nursing Staff,(id:2367419) Gastrointestinal Medicine & Surgery,GLOBE LOCUMS LTD,id:12963524 , 202.70
Department of Health,Guys and St Thomas NHS Foundation Trust,24/04/2020,(81900) Lab Equipment Purchase,(id:2367419) Gastrointestinal Medicine & Surgery,VIAPATH ANALYTICS LLP,id:12956452    , 987.00
Department of Health,Guys and St Thomas NHS Foundation Trust,03/04/2020,(82800) Bedding & Linen,(id:41957) Gastrointestinal Medicine & Surgery,NHS SUPPLY CHAIN (MAIDSTONE),id:12912734 ,  19.92
Department of Health,Guys and St Thomas NHS Foundation Trust,03/04/2020,(83400) Office Equipment,(id:41917) Gastrointestinal Medicine & Surgery,NHS SUPPLY CHAIN (MAIDSTONE),id:12891174, 230.52
Department of Health,Guys and St Thomas NHS Foundation Trust,03/04/2020,(82700) Uniforms & Clothing,(id:41917) Gastrointestinal Medicine & Surgery,NHS SUPPLY CHAIN (MAIDSTONE),id:12891174  ,  94.75
Department of Health,Guys and St Thomas NHS Foundation Trust,03/04/2020,(81200) Medical Surgical Supplies & Equipment,(id:41917) Gastrointestinal Medicine & Surgery,BOSTON SCIENTIFIC LTD,id:12916064 , 731.95
Department of Health,Guys and St Thomas NHS Foundation Trust,24/04/2020,(81200) Medical Surgical Supplies & Equipment,(id:41917) Gastrointestinal Medicine & Surgery,BOSTON SCIENTIFIC LTD,id:12960241 ,2533.68
Department of Health,Guys and St Thomas NHS Foundation Trust,17/04/2020,(81200) Medical Surgical Supplies & Equipment,(id:41917) Gastrointestinal Medicine & Surgery,MEDTRONIC LTD,id:12947624    ,4500.00
Department of Health,Guys and St Thomas NHS Foundation Trust,03/04/2020,(81100) Dressings,(id:41917) Gastrointestinal Medicine & Surgery,NHS SUPPLY CHAIN (MAIDSTONE),id:12912734  ,  69.60
Department of Health,Guys and St Thomas NHS Foundation Trust,17/04/2020,(83765) Rent,(id:41917) Gastrointestinal Medicine & Surgery,ZIP HEATERS (UK) T/A ZIP WATER,id:12531367,1080.00
Department of Health,Guys and St Thomas NHS Foundation Trust,03/04/2020,(81700) Lab Equipment Purchase,(id:41917) Gastrointestinal Medicine & Surgery,NHS SUPPLY CHAIN (MAIDSTONE),id:12912734    ,  96.00
Department of Health,Guys and St Thomas NHS Foundation Trust,17/04/2020,(50552) Qualified Nursing Staff,(id:41917) Gastrointestinal Medicine & Surgery,PULSE HEALTHCARE LIMITED,id:12978211  ,1007.00
Department of Health,Guys and St Thomas NHS Foundation Trust,24/04/2020,(86300) Healthcare from non-NHS bodies,(id:2534420) Gastrointestinal Medicine & Surgery,18 WEEK SUPPORT LIMITED,id:12925492    ,    23800.00
Department of Health,Guys and St Thomas NHS Foundation Trust,03/04/2020,(86300) Healthcare from non-NHS bodies,(id:2534420) Gastrointestinal Medicine & Surgery,18 WEEK SUPPORT LIMITED,id:12914927    ,    23800.00
Department of Health,Guys and St Thomas NHS Foundation Trust,03/04/2020,(89270) Establishment,(id:3821419) Cancer Strategy,FINN HOLROYD,id:12946668  ,5060.00
Department of Health,Guys and St Thomas NHS Foundation Trust,03/04/2020,(81400) Medical Surgical Supplies & Equipment,(id:3364419) Cancer Strategy,ALLIANCE MEDICAL LTD,id:12630175,6976.70
Department of Health,Guys and St Thomas NHS Foundation Trust,09/04/2020,(89280) Other - Consultancy costs,(id:42282) Cancer Strategy,TAIPAN CONSULTING LIMITED,id:12956595    ,    10500.00
Department of Health,Guys and St Thomas NHS Foundation Trust,06/04/2020,(89595) Non-Healthcare from Foundation Trusts,(id:2744419) Cardiovascular Services,ROYAL BERKSHIRE NHS FOUNDATION TRUST,id:12918339 , 595.00
Department of Health,Guys and St Thomas NHS Foundation Trust,03/04/2020,(81200) Medical Surgical Supplies & Equipment,(id:43038) Cardiovascular Services,NHS SUPPLY CHAIN (MAIDSTONE),id:12891174 ,  24.62
Department of Health,Guys and St Thomas NHS Foundation Trust,24/04/2020,(50552) Qualified Nursing Staff,(id:780420) Cardiovascular Services,FIRSTPOINT HEALTHCARE LTD,id:12992805  , 913.90
Department of Health,Guys and St Thomas NHS Foundation Trust,09/04/2020,(81250) Medical Surgical Supplies & Equipment,(id:639421) Cardiovascular Services,COOK UK LTD,id:12940157  ,    22200.00
Department of Health,Guys and St Thomas NHS Foundation Trust,17/04/2020,(81200) Medical Surgical Supplies & Equipment,(id:639421) Cardiovascular Services,WL GORE & ASSOCIATES (UK) LTD,id:12958894    ,8388.00
Department of Health,Guys and St Thomas NHS Foundation Trust,24/04/2020,(50552) Qualified Nursing Staff,(id:41953) Cardiovascular Services,CONTINENTAL NURSE LTD,id:12989166  , 620.61
Department of Health,Guys and St Thomas NHS Foundation Trust,03/04/2020,(82000) Provisions & Kitchens,(id:41952) Cardiovascular Services,NHS SUPPLY CHAIN (MAIDSTONE),id:12912734  ,   2.49
Department of Health,Guys and St Thomas NHS Foundation Trust,03/04/2020,(81200) Medical Surgical Supplies & Equipment,(id:41952) Cardiovascular Services,NHS SUPPLY CHAIN (MAIDSTONE),id:12891174 , 134.46
Department of Health,Guys and St Thomas NHS Foundation Trust,03/04/2020,(82800) Bedding & Linen,(id:41952) Cardiovascular Services,NHS SUPPLY CHAIN (MAIDSTONE),id:12891174   ,  61.51
Department of Health,Guys and St Thomas NHS Foundation Trust,03/04/2020,(82800) Bedding & Linen,(id:41952) Cardiovascular Services,NHS SUPPLY CHAIN (MAIDSTONE),id:12912734   ,  88.93
Department of Health,Guys and St Thomas NHS Foundation Trust,03/04/2020,(81100) Dressings,(id:41952) Cardiovascular Services,NHS SUPPLY CHAIN (MAIDSTONE),id:12891174    ,1335.53
Department of Health,Guys and St Thomas NHS Foundation Trust,17/04/2020,(81200) Medical Surgical Supplies & Equipment,(id:41950) Cardiovascular Services,COOK UK LTD,id:12911290   , 444.00
Department of Health,Guys and St Thomas NHS Foundation Trust,03/04/2020,(81200) Medical Surgical Supplies & Equipment,(id:41950) Cardiovascular Services,COOK UK LTD,id:12916462   ,1476.00
Department of Health,Guys and St Thomas NHS Foundation Trust,03/04/2020,(81200) Medical Surgical Supplies & Equipment,(id:41950) Cardiovascular Services,KIMAL PLC,id:12926858, 826.70
Department of Health,Guys and St Thomas NHS Foundation Trust,09/04/2020,(81200) Medical Surgical Supplies & Equipment,(id:41950) Cardiovascular Services,COOK UK LTD,id:12931381   , 672.00
Department of Health,Guys and St Thomas NHS Foundation Trust,09/04/2020,(81200) Medical Surgical Supplies & Equipment,(id:41950) Cardiovascular Services,ABBOTT MEDICAL UK LTD,id:12930154   , 726.00
Department of Health,Guys and St Thomas NHS Foundation Trust,09/04/2020,(81200) Medical Surgical Supplies & Equipment,(id:41948) Cardiovascular Services,SQUADRON MEDICAL LTD,id:12928824    , 752.95
Department of Health,Guys and St Thomas NHS Foundation Trust,24/04/2020,(81225) Medical Surgical Supplies & Equipment,(id:41948) Cardiovascular Services,SQUADRON MEDICAL LTD,id:12955607    , 522.10
Department of Health,Guys and St Thomas NHS Foundation Trust,17/04/2020,(83610) IT Costs,(id:42305) Cardiovascular Services,BUSINESS DICTATION LTD,id:12959016 , 717.59
Department of Health,Guys and St Thomas NHS Foundation Trust,03/04/2020,(89670) Non-Healthcare from NHS Trusts,(id:1664419) Cardiovascular Services,DARTFORD AND GRAVESHAM NHS TRUST,id:12880434  ,4485.00
Department of Health,Guys and St Thomas NHS Foundation Trust,20/04/2020,(54072) Technical Officers,(id:1243420) Cardiovascular Services,PRICEWATERHOUSECOOPERS LLP,id:12983678,9748.20
Department of Health,Guys and St Thomas NHS Foundation Trust,03/04/2020,(81100) Dressings,(id:1243420) Cardiovascular Services,NHS SUPPLY CHAIN (MAIDSTONE),id:12891174  ,   2.20
Department of Health,Guys and St Thomas NHS Foundation Trust,03/04/2020,(82800) Bedding & Linen,(id:1243420) Cardiovascular Services,NHS SUPPLY CHAIN (MAIDSTONE),id:12891174 ,  14.40
Department of Health,Guys and St Thomas NHS Foundation Trust,20/04/2020,(52072) Radiographers,(id:1243419) Cardiovascular Services,PRICEWATERHOUSECOOPERS LLP,id:12983554,1450.21
Department of Health,Guys and St Thomas NHS Foundation Trust,20/04/2020,(52072) Radiographers,(id:1243419) Cardiovascular Services,PRICEWATERHOUSECOOPERS LLP,id:12983678,1155.37
Department of Health,Guys and St Thomas NHS Foundation Trust,03/04/2020,(50570) Qualified Nursing Staff,(id:1232419) Cardiovascular Services,KING'S COLLEGE HOSPITAL NHS FOUNDATION TRUST,id:12918490  ,2120.10
Department of Health,Guys and St Thomas NHS Foundation Trust,03/04/2020,(81200) Medical Surgical Supplies & Equipment,(id:42303) Cardiovascular Services,NHS SUPPLY CHAIN (MAIDSTONE),id:12912734 , 735.60
Department of Health,Guys and St Thomas NHS Foundation Trust,20/04/2020,(54072) Technical Officers,(id:42303) Cardiovascular Services,PRICEWATERHOUSECOOPERS LLP,id:12983678  ,5162.35
Department of Health,Guys and St Thomas NHS Foundation Trust,29/04/2020,(51842) Physiotherapists,(id:42303) Cardiovascular Services,PRICEWATERHOUSECOOPERS LLP,id:12999514    ,1479.41
Department of Health,Guys and St Thomas NHS Foundation Trust,20/04/2020,(51842) Physiotherapists,(id:42303) Cardiovascular Services,PRICEWATERHOUSECOOPERS LLP,id:12983678    , 644.17
Department of Health,Guys and St Thomas NHS Foundation Trust,03/04/2020,(83400) Office Equipment,(id:42302) Cardiovascular Services,SQUADRON MEDICAL LTD,id:12897590,  26.05
Department of Health,Guys and St Thomas NHS Foundation Trust,03/04/2020,(82800) Bedding & Linen,(id:42302) Cardiovascular Services,NHS SUPPLY CHAIN (MAIDSTONE),id:12891174   , 112.42
Department of Health,Guys and St Thomas NHS Foundation Trust,03/04/2020,(81200) Medical Surgical Supplies & Equipment,(id:42302) Cardiovascular Services,BOSTON SCIENTIFIC LTD,id:12916068   ,1152.00
Department of Health,Guys and St Thomas NHS Foundation Trust,17/04/2020,(81200) Medical Surgical Supplies & Equipment,(id:42302) Cardiovascular Services,ABBOTT MEDICAL UK LTD,id:12945914   ,1050.00
Department of Health,Guys and St Thomas NHS Foundation Trust,24/04/2020,(81200) Medical Surgical Supplies & Equipment,(id:42302) Cardiovascular Services,BOSTON SCIENTIFIC LTD,id:12970192   ,1008.00
Department of Health,Guys and St Thomas NHS Foundation Trust,03/04/2020,(81100) Dressings,(id:42302) Cardiovascular Services,NHS SUPPLY CHAIN (MAIDSTONE),id:12891174    ,  63.61
Department of Health,Guys and St Thomas NHS Foundation Trust,03/04/2020,(81230) Medical Surgical Supplies & Equipment,(id:42302) Cardiovascular Services,ABBOTT MEDICAL UK LTD,id:12943583   ,2220.00
Department of Health,Guys and St Thomas NHS Foundation Trust,03/04/2020,(81230) Medical Surgical Supplies & Equipment,(id:42302) Cardiovascular Services,BRACCO UK LTD,id:12928248 ,2400.00
Department of Health,Guys and St Thomas NHS Foundation Trust,03/04/2020,(83400) Office Equipment,(id:42301) Cardiovascular Services,NHS SUPPLY CHAIN (MAIDSTONE),id:12891174  , 166.67
Department of Health,Guys and St Thomas NHS Foundation Trust,03/04/2020,(81200) Medical Surgical Supplies & Equipment,(id:42298) Cardiovascular Services,NHS SUPPLY CHAIN (MAIDSTONE),id:12891174 ,1676.87
Department of Health,Guys and St Thomas NHS Foundation Trust,17/04/2020,(81200) Medical Surgical Supplies & Equipment,(id:42298) Cardiovascular Services,BOSTON SCIENTIFIC LTD,id:12970197   ,3600.00
Department of Health,Guys and St Thomas NHS Foundation Trust,17/04/2020,(81200) Medical Surgical Supplies & Equipment,(id:42298) Cardiovascular Services,ABBOTT MEDICAL UK LTD,id:12945775   ,    31320.00
Department of Health,Guys and St Thomas NHS Foundation Trust,17/04/2020,(81200) Medical Surgical Supplies & Equipment,(id:42298) Cardiovascular Services,ABBOTT MEDICAL UK LTD,id:12951394   ,    23400.00
Department of Health,Guys and St Thomas NHS Foundation Trust,17/04/2020,(81200) Medical Surgical Supplies & Equipment,(id:42298) Cardiovascular Services,TELEFLEX MEDICAL,id:12968435   , 750.00
Department of Health,Guys and St Thomas NHS Foundation Trust,24/04/2020,(81200) Medical Surgical Supplies & Equipment,(id:42298) Cardiovascular Services,TELEFLEX MEDICAL,id:12981655   ,1344.00
Department of Health,Guys and St Thomas NHS Foundation Trust,24/04/2020,(81200) Medical Surgical Supplies & Equipment,(id:42298) Cardiovascular Services,SPECTRANETICS UK,id:12984214   ,1440.00
Department of Health,Guys and St Thomas NHS Foundation Trust,24/04/2020,(81200) Medical Surgical Supplies & Equipment,(id:42298) Cardiovascular Services,TELEFLEX MEDICAL,id:12981714   ,2040.00
Department of Health,Guys and St Thomas NHS Foundation Trust,24/04/2020,(81200) Medical Surgical Supplies & Equipment,(id:42298) Cardiovascular Services,ABBOTT MEDICAL UK LTD,id:12945758   ,    43200.00
Department of Health,Guys and St Thomas NHS Foundation Trust,24/04/2020,(81200) Medical Surgical Supplies & Equipment,(id:42298) Cardiovascular Services,EBR SYSTEMS INC,id:12983222    ,    13000.00
Department of Health,Guys and St Thomas NHS Foundation Trust,03/04/2020,(81200) Medical Surgical Supplies & Equipment,(id:42298) Cardiovascular Services,BOSTON SCIENTIFIC LTD,id:12911038   ,2448.00
Department of Health,Guys and St Thomas NHS Foundation Trust,03/04/2020,(81200) Medical Surgical Supplies & Equipment,(id:42298) Cardiovascular Services,ABBOTT MEDICAL UK LTD,id:12950699   , 576.00
Department of Health,Guys and St Thomas NHS Foundation Trust,03/04/2020,(81200) Medical Surgical Supplies & Equipment,(id:42298) Cardiovascular Services,TELEFLEX MEDICAL,id:12915389   , 720.00
Department of Health,Guys and St Thomas NHS Foundation Trust,03/04/2020,(81200) Medical Surgical Supplies & Equipment,(id:42298) Cardiovascular Services,SQUADRON MEDICAL LTD,id:12910887    , 743.18
Department of Health,Guys and St Thomas NHS Foundation Trust,03/04/2020,(81200) Medical Surgical Supplies & Equipment,(id:42298) Cardiovascular Services,MEDTRONIC LTD,id:12693038 , 960.00
Department of Health,Guys and St Thomas NHS Foundation Trust,09/04/2020,(81200) Medical Surgical Supplies & Equipment,(id:42298) Cardiovascular Services,TELEFLEX MEDICAL,id:12931145   ,2400.00
Department of Health,Guys and St Thomas NHS Foundation Trust,09/04/2020,(81200) Medical Surgical Supplies & Equipment,(id:42298) Cardiovascular Services,ABBOTT MEDICAL UK LTD,id:12862934   ,    19800.00
Department of Health,Guys and St Thomas NHS Foundation Trust,29/04/2020,(81200) Medical Surgical Supplies & Equipment,(id:42298) Cardiovascular Services,BAYLIS MEDICAL CO.INC,id:12711393   ,1975.00
Department of Health,Guys and St Thomas NHS Foundation Trust,03/04/2020,(81400) Medical Surgical Supplies & Equipment,(id:42298) Cardiovascular Services,NHS SUPPLY CHAIN (MAIDSTONE),id:12912734 , 108.40
Department of Health,Guys and St Thomas NHS Foundation Trust,17/04/2020,(81250) Medical Surgical Supplies & Equipment,(id:42298) Cardiovascular Services,SPECTRANETICS UK,id:12415652   ,4273.20
Department of Health,Guys and St Thomas NHS Foundation Trust,17/04/2020,(81240) Medical Surgical Supplies & Equipment,(id:42298) Cardiovascular Services,ABBOTT MEDICAL UK LTD,id:12942754   ,7200.00
Department of Health,Guys and St Thomas NHS Foundation Trust,03/04/2020,(83400) Office Equipment,(id:42291) Cardiovascular Services,NHS SUPPLY CHAIN (MAIDSTONE),id:12912734  , 118.07
Department of Health,Guys and St Thomas NHS Foundation Trust,03/04/2020,(81700) Lab Equipment Purchase,(id:42291) Cardiovascular Services,NHS SUPPLY CHAIN (MAIDSTONE),id:12891174 ,  21.47
Department of Health,Guys and St Thomas NHS Foundation Trust,03/04/2020,(82000) Provisions & Kitchens,(id:42291) Cardiovascular Services,NHS SUPPLY CHAIN (MAIDSTONE),id:12912734  ,   5.76
Department of Health,Guys and St Thomas NHS Foundation Trust,03/04/2020,(50552) Qualified Nursing Staff,(id:42291) Cardiovascular Services,CONTINENTAL NURSE LTD,id:12952513  ,2597.56
Department of Health,Guys and St Thomas NHS Foundation Trust,03/04/2020,(81255) Medical Surgical Supplies & Equipment,(id:42291) Cardiovascular Services,NHS SUPPLY CHAIN (MAIDSTONE),id:12912734 ,   4.99
Department of Health,Guys and St Thomas NHS Foundation Trust,03/04/2020,(82600) Uniforms & Clothing,(id:42290) Cardiovascular Services,NHS SUPPLY CHAIN (MAIDSTONE),id:12912734    ,  58.48
Department of Health,Guys and St Thomas NHS Foundation Trust,03/04/2020,(81200) Medical Surgical Supplies & Equipment,(id:42290) Cardiovascular Services,NHS SUPPLY CHAIN (MAIDSTONE),id:12912734 , 622.36
Department of Health,Guys and St Thomas NHS Foundation Trust,24/04/2020,(50552) Qualified Nursing Staff,(id:42290) Cardiovascular Services,GLOBE LOCUMS LTD,id:12982554  ,-345.40
Department of Health,Guys and St Thomas NHS Foundation Trust,24/04/2020,(50522) Unqualified Nursing Staff,(id:42290) Cardiovascular Services,MSI GROUP LTD,id:12989179   , 275.17
Department of Health,Guys and St Thomas NHS Foundation Trust,17/04/2020,(82600) Uniforms & Clothing,(id:42293) Cardiovascular Services,SQUADRON MEDICAL LTD,id:12941277  ,  20.03
Department of Health,Guys and St Thomas NHS Foundation Trust,03/04/2020,(81200) Medical Surgical Supplies & Equipment,(id:42293) Cardiovascular Services,SQUADRON MEDICAL LTD,id:12884055    , 814.71
Department of Health,Guys and St Thomas NHS Foundation Trust,03/04/2020,(81200) Medical Surgical Supplies & Equipment,(id:42293) Cardiovascular Services,SQUADRON MEDICAL LTD,id:12879317    , 584.89
Department of Health,Guys and St Thomas NHS Foundation Trust,03/04/2020,(81200) Medical Surgical Supplies & Equipment,(id:42293) Cardiovascular Services,SQUADRON MEDICAL LTD,id:12910850    , 296.45
Department of Health,Guys and St Thomas NHS Foundation Trust,03/04/2020,(81200) Medical Surgical Supplies & Equipment,(id:42293) Cardiovascular Services,APC CARDIOVASCULAR LTD,id:12711443  ,1045.80
Department of Health,Guys and St Thomas NHS Foundation Trust,09/04/2020,(81200) Medical Surgical Supplies & Equipment,(id:42293) Cardiovascular Services,SQUADRON MEDICAL LTD,id:12928961    , 331.48
Department of Health,Guys and St Thomas NHS Foundation Trust,24/04/2020,(81200) Medical Surgical Supplies & Equipment,(id:42293) Cardiovascular Services,SQUADRON MEDICAL LTD,id:12970579    , 896.62
Department of Health,Guys and St Thomas NHS Foundation Trust,24/04/2020,(81200) Medical Surgical Supplies & Equipment,(id:42293) Cardiovascular Services,SQUADRON MEDICAL LTD,id:12959977    , 485.14
Department of Health,Guys and St Thomas NHS Foundation Trust,24/04/2020,(81200) Medical Surgical Supplies & Equipment,(id:42293) Cardiovascular Services,ATRICURE EUROPE BV(DO NOT RAISE ORDERS IN EUROS),id:12988021 ,4332.00
Department of Health,Guys and St Thomas NHS Foundation Trust,09/04/2020,(81200) Medical Surgical Supplies & Equipment,(id:42293) Cardiovascular Services,SQUADRON MEDICAL LTD,id:12924171    , 903.12
Department of Health,Guys and St Thomas NHS Foundation Trust,03/04/2020,(81100) Dressings,(id:42293) Cardiovascular Services,SQUADRON MEDICAL LTD,id:12885760  , 213.82
Department of Health,Guys and St Thomas NHS Foundation Trust,09/04/2020,(81100) Dressings,(id:42293) Cardiovascular Services,SQUADRON MEDICAL LTD,id:12928651  ,  25.30
Department of Health,Guys and St Thomas NHS Foundation Trust,17/04/2020,(81280) Medical Surgical Supplies & Equipment,(id:42293) Cardiovascular Services,EDWARDS LIFESCIENCES LTD,id:12844000,   -11402.40
Department of Health,Guys and St Thomas NHS Foundation Trust,17/04/2020,(81280) Medical Surgical Supplies & Equipment,(id:42293) Cardiovascular Services,EDWARDS LIFESCIENCES LTD,id:12929657,3420.00
Department of Health,Guys and St Thomas NHS Foundation Trust,17/04/2020,(81280) Medical Surgical Supplies & Equipment,(id:42293) Cardiovascular Services,EDWARDS LIFESCIENCES LTD,id:12693825,5640.00
Department of Health,Guys and St Thomas NHS Foundation Trust,17/04/2020,(81280) Medical Surgical Supplies & Equipment,(id:42293) Cardiovascular Services,EDWARDS LIFESCIENCES LTD,id:12894498,1056.00
Department of Health,Guys and St Thomas NHS Foundation Trust,17/04/2020,(81280) Medical Surgical Supplies & Equipment,(id:42293) Cardiovascular Services,EDWARDS LIFESCIENCES LTD,id:12891214,1440.00
Department of Health,Guys and St Thomas NHS Foundation Trust,17/04/2020,(81280) Medical Surgical Supplies & Equipment,(id:42293) Cardiovascular Services,EDWARDS LIFESCIENCES LTD,id:12896713,   -11402.40
Department of Health,Guys and St Thomas NHS Foundation Trust,17/04/2020,(81280) Medical Surgical Supplies & Equipment,(id:42293) Cardiovascular Services,EDWARDS LIFESCIENCES LTD,id:12896711,   -11402.40
Department of Health,Guys and St Thomas NHS Foundation Trust,17/04/2020,(81280) Medical Surgical Supplies & Equipment,(id:42293) Cardiovascular Services,EDWARDS LIFESCIENCES LTD,id:12896722,   -11402.40
Department of Health,Guys and St Thomas NHS Foundation Trust,24/04/2020,(81280) Medical Surgical Supplies & Equipment,(id:42293) Cardiovascular Services,EDWARDS LIFESCIENCES LTD,id:12989976,2880.00
Department of Health,Guys and St Thomas NHS Foundation Trust,24/04/2020,(81280) Medical Surgical Supplies & Equipment,(id:42293) Cardiovascular Services,EDWARDS LIFESCIENCES LTD,id:12989967,3420.00
Department of Health,Guys and St Thomas NHS Foundation Trust,24/04/2020,(81200) Medical Surgical Supplies & Equipment,(id:42292) Cardiovascular Services,LIVANOVA UK LTD,id:12967479    , 700.85
Department of Health,Guys and St Thomas NHS Foundation Trust,09/04/2020,(81100) Dressings,(id:42292) Cardiovascular Services,MAQUET LIMITED,id:12958836   , 732.00
Department of Health,Guys and St Thomas NHS Foundation Trust,03/04/2020,(82800) Bedding & Linen,(id:42287) Cardiovascular Services,NHS SUPPLY CHAIN (MAIDSTONE),id:12912734   ,  83.19
Department of Health,Guys and St Thomas NHS Foundation Trust,03/04/2020,(81100) Dressings,(id:42287) Cardiovascular Services,NHS SUPPLY CHAIN (MAIDSTONE),id:12912734    , 434.75
Department of Health,Guys and St Thomas NHS Foundation Trust,03/04/2020,(81100) Dressings,(id:42287) Cardiovascular Services,NHS SUPPLY CHAIN (MAIDSTONE),id:12891174    , 209.06
Department of Health,Guys and St Thomas NHS Foundation Trust,20/04/2020,(52072) Radiographers,(id:42368) Clinical Imaging & Med Physics,PRICEWATERHOUSECOOPERS LLP,id:12983554,7620.28
Department of Health,Guys and St Thomas NHS Foundation Trust,03/04/2020,(82000) Provisions & Kitchens,(id:42367) Clinical Imaging & Med Physics,NHS SUPPLY CHAIN (MAIDSTONE),id:12912734,   3.24
Department of Health,Guys and St Thomas NHS Foundation Trust,03/04/2020,(83400) Office Equipment,(id:42367) Clinical Imaging & Med Physics,SQUADRON MEDICAL LTD,id:12911000   ,  93.79
Department of Health,Guys and St Thomas NHS Foundation Trust,03/04/2020,(81100) Dressings,(id:42367) Clinical Imaging & Med Physics,SQUADRON MEDICAL LTD,id:12919096,2434.40
Department of Health,Guys and St Thomas NHS Foundation Trust,09/04/2020,(83610) IT Costs,(id:42367) Clinical Imaging & Med Physics,BUSINESS DICTATION LTD,id:12945126    , 871.19
Department of Health,Guys and St Thomas NHS Foundation Trust,24/04/2020,(50203) Consultants,(id:42367) Clinical Imaging & Med Physics,KINGS COLLEGE LONDON:03529700,id:12929954    ,2354.15
Department of Health,Guys and St Thomas NHS Foundation Trust,03/04/2020,(81200) Medical Surgical Supplies & Equipment,(id:42367) Clinical Imaging & Med Physics,SQUADRON MEDICAL LTD,id:12915465  ,  70.83
Department of Health,Guys and St Thomas NHS Foundation Trust,03/04/2020,(81200) Medical Surgical Supplies & Equipment,(id:42367) Clinical Imaging & Med Physics,SQUADRON MEDICAL LTD,id:12919575  ,   8.06
Department of Health,Guys and St Thomas NHS Foundation Trust,03/04/2020,(81200) Medical Surgical Supplies & Equipment,(id:42367) Clinical Imaging & Med Physics,SQUADRON MEDICAL LTD,id:12919544  ,1024.71
Department of Health,Guys and St Thomas NHS Foundation Trust,03/04/2020,(81200) Medical Surgical Supplies & Equipment,(id:42367) Clinical Imaging & Med Physics,SQUADRON MEDICAL LTD,id:12919182  , 893.48
Department of Health,Guys and St Thomas NHS Foundation Trust,03/04/2020,(81200) Medical Surgical Supplies & Equipment,(id:42367) Clinical Imaging & Med Physics,SQUADRON MEDICAL LTD,id:12853229  , 493.39
Department of Health,Guys and St Thomas NHS Foundation Trust,24/04/2020,(81200) Medical Surgical Supplies & Equipment,(id:42367) Clinical Imaging & Med Physics,SQUADRON MEDICAL LTD,id:12970571  , 188.49
Department of Health,Guys and St Thomas NHS Foundation Trust,24/04/2020,(81200) Medical Surgical Supplies & Equipment,(id:42367) Clinical Imaging & Med Physics,SQUADRON MEDICAL LTD,id:12970266  ,1530.41
Department of Health,Guys and St Thomas NHS Foundation Trust,24/04/2020,(81200) Medical Surgical Supplies & Equipment,(id:42367) Clinical Imaging & Med Physics,BOSTON SCIENTIFIC LTD,id:12970191 ,1260.00
Department of Health,Guys and St Thomas NHS Foundation Trust,24/04/2020,(81200) Medical Surgical Supplies & Equipment,(id:42367) Clinical Imaging & Med Physics,NHS SUPPLY CHAIN ( CAPITAL FUND ONLY),id:12981574,   507730.89
Department of Health,Guys and St Thomas NHS Foundation Trust,17/04/2020,(81200) Medical Surgical Supplies & Equipment,(id:42367) Clinical Imaging & Med Physics,MACROMED (UK) LTD,id:12969873, 966.00
Department of Health,Guys and St Thomas NHS Foundation Trust,17/04/2020,(81200) Medical Surgical Supplies & Equipment,(id:42367) Clinical Imaging & Med Physics,BOSTON SCIENTIFIC LTD,id:12940894 ,1260.00
Department of Health,Guys and St Thomas NHS Foundation Trust,17/04/2020,(81200) Medical Surgical Supplies & Equipment,(id:42367) Clinical Imaging & Med Physics,BOSTON SCIENTIFIC LTD,id:12937714 ,1260.00
Department of Health,Guys and St Thomas NHS Foundation Trust,17/04/2020,(81200) Medical Surgical Supplies & Equipment,(id:42367) Clinical Imaging & Med Physics,SQUADRON MEDICAL LTD,id:12941165  ,2845.80
Department of Health,Guys and St Thomas NHS Foundation Trust,17/04/2020,(81200) Medical Surgical Supplies & Equipment,(id:42367) Clinical Imaging & Med Physics,SQUADRON MEDICAL LTD,id:12941145  , 214.57
Department of Health,Guys and St Thomas NHS Foundation Trust,03/04/2020,(81235) Medical Surgical Supplies & Equipment,(id:42367) Clinical Imaging & Med Physics,NHS SUPPLY CHAIN (MAIDSTONE),id:12891174    , 168.00
Department of Health,Guys and St Thomas NHS Foundation Trust,03/04/2020,(81230) Medical Surgical Supplies & Equipment,(id:42367) Clinical Imaging & Med Physics,SQUADRON MEDICAL LTD,id:12853230  ,1016.41
Department of Health,Guys and St Thomas NHS Foundation Trust,03/04/2020,(81230) Medical Surgical Supplies & Equipment,(id:42367) Clinical Imaging & Med Physics,SQUADRON MEDICAL LTD,id:12916227  , 139.13
Department of Health,Guys and St Thomas NHS Foundation Trust,17/04/2020,(81500) X Ray Equipment Purchase,(id:42367) Clinical Imaging & Med Physics,PHILIPS HEALTHCARE,id:12966835  ,   112548.10
Department of Health,Guys and St Thomas NHS Foundation Trust,09/04/2020,(81200) Medical Surgical Supplies & Equipment,(id:42366) Clinical Imaging & Med Physics,BAYER PLC,id:12956524   ,1680.00
Department of Health,Guys and St Thomas NHS Foundation Trust,09/04/2020,(81200) Medical Surgical Supplies & Equipment,(id:42366) Clinical Imaging & Med Physics,BAYER PLC,id:12958176   ,    -1680.00
Department of Health,Guys and St Thomas NHS Foundation Trust,03/04/2020,(83400) Office Equipment,(id:42366) Clinical Imaging & Med Physics,NHS SUPPLY CHAIN (MAIDSTONE),id:12891174,1023.49
Department of Health,Guys and St Thomas NHS Foundation Trust,03/04/2020,(81230) Medical Surgical Supplies & Equipment,(id:42366) Clinical Imaging & Med Physics,NHS SUPPLY CHAIN (MAIDSTONE),id:12891174    , 396.00
Department of Health,Guys and St Thomas NHS Foundation Trust,03/04/2020,(81225) Medical Surgical Supplies & Equipment,(id:42366) Clinical Imaging & Med Physics,NHS SUPPLY CHAIN (MAIDSTONE),id:12912734    ,  91.10
Department of Health,Guys and St Thomas NHS Foundation Trust,09/04/2020,(81200) Medical Surgical Supplies & Equipment,(id:4187419) Clinical Imaging & Med Physics,ADVANCED ACCELERATOR APPLICATIONS (UK & IRELAND) LTD,id:12946618   ,    -7829.24
Department of Health,Guys and St Thomas NHS Foundation Trust,09/04/2020,(81200) Medical Surgical Supplies & Equipment,(id:4187419) Clinical Imaging & Med Physics,ADVANCED ACCELERATOR APPLICATIONS (UK & IRELAND) LTD,id:12946104   ,    -7829.24
Department of Health,Guys and St Thomas NHS Foundation Trust,09/04/2020,(81200) Medical Surgical Supplies & Equipment,(id:4187419) Clinical Imaging & Med Physics,ADVANCED ACCELERATOR APPLICATIONS (UK & IRELAND) LTD,id:12946458   ,    -7829.24
Department of Health,Guys and St Thomas NHS Foundation Trust,09/04/2020,(81275) Medical Surgical Supplies & Equipment,(id:4187419) Clinical Imaging & Med Physics,CURIUM PHARMA UK LTD,id:12830790,8790.00
Department of Health,Guys and St Thomas NHS Foundation Trust,03/04/2020,(83400) Office Equipment,(id:42372) Clinical Imaging & Med Physics,AQUILANT DISTRIBUTION,id:12946637  ,1115.81
Department of Health,Guys and St Thomas NHS Foundation Trust,24/04/2020,(50203) Consultants,(id:42372) Clinical Imaging & Med Physics,KINGS COLLEGE LONDON:03529700,id:12929602    ,    12401.56
Department of Health,Guys and St Thomas NHS Foundation Trust,03/04/2020,(81100) Dressings,(id:42372) Clinical Imaging & Med Physics,NHS SUPPLY CHAIN (MAIDSTONE),id:12891174  , 323.97
Department of Health,Guys and St Thomas NHS Foundation Trust,03/04/2020,(81400) Medical Surgical Supplies & Equipment,(id:42372) Clinical Imaging & Med Physics,HARRIS GEOSPATIAL SOLUTIONS UK LTD,id:12925488   ,2195.00
Department of Health,Guys and St Thomas NHS Foundation Trust,03/04/2020,(82800) Bedding & Linen,(id:42372) Clinical Imaging & Med Physics,NHS SUPPLY CHAIN (MAIDSTONE),id:12891174 ,  19.82
Department of Health,Guys and St Thomas NHS Foundation Trust,24/04/2020,(81200) Medical Surgical Supplies & Equipment,(id:42372) Clinical Imaging & Med Physics,ADVANCED ACCELERATOR APPLICATIONS (UK & IRELAND) LTD,id:12901981,    16690.50
Department of Health,Guys and St Thomas NHS Foundation Trust,09/04/2020,(81500) X Ray Equipment Purchase,(id:42372) Clinical Imaging & Med Physics,CURIUM PHARMA UK LTD,id:12958938,1717.20
Department of Health,Guys and St Thomas NHS Foundation Trust,24/04/2020,(81500) X Ray Equipment Purchase,(id:42372) Clinical Imaging & Med Physics,AMERCARE LTD,id:12969784   ,1055.40
Department of Health,Guys and St Thomas NHS Foundation Trust,24/04/2020,(81500) X Ray Equipment Purchase,(id:42372) Clinical Imaging & Med Physics,ADVANCED ACCELERATOR APPLICATIONS (UK & IRELAND) LTD,id:12946485   ,    -6524.37
Department of Health,Guys and St Thomas NHS Foundation Trust,03/04/2020,(81500) X Ray Equipment Purchase,(id:42372) Clinical Imaging & Med Physics,CURIUM PHARMA UK LTD,id:12946096,1644.00
Department of Health,Guys and St Thomas NHS Foundation Trust,17/04/2020,(81400) Medical Surgical Supplies & Equipment,(id:42379) Clinical Imaging & Med Physics,AMBU LIMITED,id:12935719,    16495.95
Department of Health,Guys and St Thomas NHS Foundation Trust,17/04/2020,(81200) Medical Surgical Supplies & Equipment,(id:42379) Clinical Imaging & Med Physics,BURLAND TECHNOLOGY SOLUTIONS LTD,id:12967775,4533.00
Department of Health,Guys and St Thomas NHS Foundation Trust,09/04/2020,(84520) Establishment,(id:42377) Clinical Imaging & Med Physics,TRI-TECH ENGINEERING T/A TRI-TECH 3D,id:12940462,  36.00
Department of Health,Guys and St Thomas NHS Foundation Trust,03/04/2020,(50200) Consultants,(id:42377) Clinical Imaging & Med Physics,EAST AND NORTH HERTFORDSHIRE NHS TRUST,id:12918148,9414.92
Department of Health,Guys and St Thomas NHS Foundation Trust,29/04/2020,(52062) Radiographers,(id:42377) Clinical Imaging & Med Physics,PRICEWATERHOUSECOOPERS LLP,id:12999514,1262.49
Department of Health,Guys and St Thomas NHS Foundation Trust,03/04/2020,(81700) Lab Equipment Purchase,(id:42376) Clinical Imaging & Med Physics,PHOENIX DOSIMETRY LTD,id:12920580 ,4530.00
Department of Health,Guys and St Thomas NHS Foundation Trust,17/04/2020,(81700) Lab Equipment Purchase,(id:42374) Clinical Imaging & Med Physics,UKAS,id:12946484   ,3131.40
Department of Health,Guys and St Thomas NHS Foundation Trust,24/04/2020,(84500) Establishment,(id:1348419) Clinical Imaging & Med Physics,CDP  PRINT MANAGEMENT,id:12983192   , 598.38
Department of Health,Guys and St Thomas NHS Foundation Trust,03/04/2020,(81250) Medical Surgical Supplies & Equipment,(id:1348419) Clinical Imaging & Med Physics,BOSTON SCIENTIFIC LTD,id:12937716    ,1320.00
Department of Health,Guys and St Thomas NHS Foundation Trust,09/04/2020,(83765) Rent,(id:1348419) Clinical Imaging & Med Physics,LAZERBEAM FIRE AND SECURITY LTD,id:12959611  ,1905.00
Department of Health,Guys and St Thomas NHS Foundation Trust,17/04/2020,(81200) Medical Surgical Supplies & Equipment,(id:2625419) Transplant Renal and Urology,SQUADRON MEDICAL LTD,id:12937814  ,  30.99
Department of Health,Guys and St Thomas NHS Foundation Trust,09/04/2020,(82600) Uniforms & Clothing,(id:2625419) Transplant Renal and Urology,SQUADRON MEDICAL LTD,id:12926225,  12.02
Department of Health,Guys and St Thomas NHS Foundation Trust,03/04/2020,(82600) Uniforms & Clothing,(id:42419) Transplant Renal and Urology,NHS SUPPLY CHAIN (MAIDSTONE),id:12891174    , 144.12
Department of Health,Guys and St Thomas NHS Foundation Trust,03/04/2020,(82800) Bedding & Linen,(id:42419) Transplant Renal and Urology,NHS SUPPLY CHAIN (MAIDSTONE),id:12912734   , 151.73
Department of Health,Guys and St Thomas NHS Foundation Trust,03/04/2020,(82800) Bedding & Linen,(id:42419) Transplant Renal and Urology,NHS SUPPLY CHAIN (MAIDSTONE),id:12891174   , 210.86
Department of Health,Guys and St Thomas NHS Foundation Trust,03/04/2020,(81100) Dressings,(id:42419) Transplant Renal and Urology,NHS SUPPLY CHAIN (MAIDSTONE),id:12891174    ,3509.82
Department of Health,Guys and St Thomas NHS Foundation Trust,03/04/2020,(81200) Medical Surgical Supplies & Equipment,(id:42419) Transplant Renal and Urology,NHS SUPPLY CHAIN (MAIDSTONE),id:12891174 , 863.58
Department of Health,Guys and St Thomas NHS Foundation Trust,03/04/2020,(83400) Office Equipment,(id:42419) Transplant Renal and Urology,NHS SUPPLY CHAIN (MAIDSTONE),id:12891174  , 166.28
Department of Health,Guys and St Thomas NHS Foundation Trust,03/04/2020,(81275) Medical Surgical Supplies & Equipment,(id:42419) Transplant Renal and Urology,NHS SUPPLY CHAIN (MAIDSTONE),id:12912734 , 194.40
Department of Health,Guys and St Thomas NHS Foundation Trust,09/04/2020,(81200) Medical Surgical Supplies & Equipment,(id:2552419) Transplant Renal and Urology,MEDTRONIC LTD,id:12936315    ,2370.00
Department of Health,Guys and St Thomas NHS Foundation Trust,24/04/2020,(50200) Consultants,(id:2065419) Transplant Renal and Urology,KINGS COLLEGE LONDON:03529700,id:12942135    ,1499.20
Department of Health,Guys and St Thomas NHS Foundation Trust,03/04/2020,(81200) Medical Surgical Supplies & Equipment,(id:969419) Transplant Renal and Urology,NHS SUPPLY CHAIN (MAIDSTONE),id:12912734,  31.32
Department of Health,Guys and St Thomas NHS Foundation Trust,03/04/2020,(82000) Provisions & Kitchens,(id:969419) Transplant Renal and Urology,NHS SUPPLY CHAIN (MAIDSTONE),id:12891174 ,  17.26
Department of Health,Guys and St Thomas NHS Foundation Trust,09/04/2020,(81200) Medical Surgical Supplies & Equipment,(id:42450) Transplant Renal and Urology,SQUADRON MEDICAL LTD,id:12928695    ,1572.89
Department of Health,Guys and St Thomas NHS Foundation Trust,17/04/2020,(81200) Medical Surgical Supplies & Equipment,(id:42450) Transplant Renal and Urology,SQUADRON MEDICAL LTD,id:12941011    , 744.62
Department of Health,Guys and St Thomas NHS Foundation Trust,17/04/2020,(81200) Medical Surgical Supplies & Equipment,(id:42450) Transplant Renal and Urology,STRYKER UK LTD,id:12921339,1227.74
Department of Health,Guys and St Thomas NHS Foundation Trust,03/04/2020,(81200) Medical Surgical Supplies & Equipment,(id:42450) Transplant Renal and Urology,SQUADRON MEDICAL LTD,id:12916483    , 469.47
Department of Health,Guys and St Thomas NHS Foundation Trust,03/04/2020,(81200) Medical Surgical Supplies & Equipment,(id:42450) Transplant Renal and Urology,STRYKER UK LTD,id:12927621, 613.87
Department of Health,Guys and St Thomas NHS Foundation Trust,09/04/2020,(81200) Medical Surgical Supplies & Equipment,(id:42449) Transplant Renal and Urology,DIGITIMER LTD,id:12939174 , 542.40
Department of Health,Guys and St Thomas NHS Foundation Trust,03/04/2020,(81200) Medical Surgical Supplies & Equipment,(id:42449) Transplant Renal and Urology,DIGITIMER LTD,id:12927404 , 500.28
Department of Health,Guys and St Thomas NHS Foundation Trust,03/04/2020,(50552) Qualified Nursing Staff,(id:42449) Transplant Renal and Urology,CONTINENTAL NURSE LTD,id:12945693  ,2792.04
Department of Health,Guys and St Thomas NHS Foundation Trust,03/04/2020,(82000) Provisions & Kitchens,(id:42449) Transplant Renal and Urology,NHS SUPPLY CHAIN (MAIDSTONE),id:12891174  ,  70.56
Department of Health,Guys and St Thomas NHS Foundation Trust,24/04/2020,(50203) Consultants,(id:42447) Transplant Renal and Urology,KINGS COLLEGE LONDON:03529700,id:12914917 ,9600.96
Department of Health,Guys and St Thomas NHS Foundation Trust,24/04/2020,(50200) Consultants,(id:42447) Transplant Renal and Urology,KING'S COLLEGE HOSPITAL NHS FOUNDATION TRUST,id:12974799 ,4871.98
Department of Health,Guys and St Thomas NHS Foundation Trust,03/04/2020,(81200) Medical Surgical Supplies & Equipment,(id:42446) Transplant Renal and Urology,SQUADRON MEDICAL LTD,id:12805031    ,  52.85
Department of Health,Guys and St Thomas NHS Foundation Trust,03/04/2020,(81200) Medical Surgical Supplies & Equipment,(id:42446) Transplant Renal and Urology,COOK UK LTD,id:12904359   , 641.16
Department of Health,Guys and St Thomas NHS Foundation Trust,03/04/2020,(81200) Medical Surgical Supplies & Equipment,(id:42446) Transplant Renal and Urology,SQUADRON MEDICAL LTD,id:12915785    ,  47.06
Department of Health,Guys and St Thomas NHS Foundation Trust,17/04/2020,(81200) Medical Surgical Supplies & Equipment,(id:42446) Transplant Renal and Urology,SQUADRON MEDICAL LTD,id:12937814    , 626.28
Department of Health,Guys and St Thomas NHS Foundation Trust,17/04/2020,(81200) Medical Surgical Supplies & Equipment,(id:42446) Transplant Renal and Urology,MEDTRONIC LTD,id:12946139 , 986.54
Department of Health,Guys and St Thomas NHS Foundation Trust,17/04/2020,(81400) Medical Surgical Supplies & Equipment,(id:42446) Transplant Renal and Urology,INTUITIVE SURGICAL LTD,id:12946679  ,1945.00
Department of Health,Guys and St Thomas NHS Foundation Trust,03/04/2020,(81230) Medical Surgical Supplies & Equipment,(id:42446) Transplant Renal and Urology,SQUADRON MEDICAL LTD,id:12916483    ,  77.28
Department of Health,Guys and St Thomas NHS Foundation Trust,03/04/2020,(83400) Office Equipment,(id:42446) Transplant Renal and Urology,SQUADRON MEDICAL LTD,id:12915785, 204.17
Department of Health,Guys and St Thomas NHS Foundation Trust,03/04/2020,(81200) Medical Surgical Supplies & Equipment,(id:42444) Transplant Renal and Urology,BOSTON SCIENTIFIC LTD,id:12915355   ,1651.80
Department of Health,Guys and St Thomas NHS Foundation Trust,03/04/2020,(50552) Qualified Nursing Staff,(id:42443) Transplant Renal and Urology,CONTINENTAL NURSE LTD,id:12945668  ,3044.95
Department of Health,Guys and St Thomas NHS Foundation Trust,03/04/2020,(81225) Medical Surgical Supplies & Equipment,(id:42443) Transplant Renal and Urology,NHS SUPPLY CHAIN (MAIDSTONE),id:12912734 ,  17.01
Department of Health,Guys and St Thomas NHS Foundation Trust,17/04/2020,(81200) Medical Surgical Supplies & Equipment,(id:3671419) Transplant Renal and Urology,NXSTAGE MEDICAL UK LIMITED,id:12954108 ,6488.64
Department of Health,Guys and St Thomas NHS Foundation Trust,24/04/2020,(81200) Medical Surgical Supplies & Equipment,(id:2653419) Transplant Renal and Urology,MEDTRONIC LTD,id:12982236    ,1140.00
Department of Health,Guys and St Thomas NHS Foundation Trust,03/04/2020,(82700) Uniforms & Clothing,(id:42435) Transplant Renal and Urology,NHS SUPPLY CHAIN (MAIDSTONE),id:12891174    ,  65.93
Department of Health,Guys and St Thomas NHS Foundation Trust,03/04/2020,(83500) Furniture & Fittings,(id:42435) Transplant Renal and Urology,TECHNIBLINDS LTD,id:12905180, 706.87
Department of Health,Guys and St Thomas NHS Foundation Trust,03/04/2020,(81200) Medical Surgical Supplies & Equipment,(id:42435) Transplant Renal and Urology,NHS SUPPLY CHAIN (MAIDSTONE),id:12891174 , 665.08
Department of Health,Guys and St Thomas NHS Foundation Trust,03/04/2020,(83400) Office Equipment,(id:42435) Transplant Renal and Urology,NHS SUPPLY CHAIN (MAIDSTONE),id:12912734  , 122.41
Department of Health,Guys and St Thomas NHS Foundation Trust,17/04/2020,(50552) Qualified Nursing Staff,(id:42435) Transplant Renal and Urology,CONTINENTAL NURSE LTD,id:12975232  , 618.05
Department of Health,Guys and St Thomas NHS Foundation Trust,03/04/2020,(50552) Qualified Nursing Staff,(id:42435) Transplant Renal and Urology,GLOBE LOCUMS LTD,id:12952515  , 291.85
Department of Health,Guys and St Thomas NHS Foundation Trust,03/04/2020,(50552) Qualified Nursing Staff,(id:42435) Transplant Renal and Urology,GLOBE LOCUMS LTD,id:12952478  , 309.64
Department of Health,Guys and St Thomas NHS Foundation Trust,24/04/2020,(50203) Consultants,(id:42433) Transplant Renal and Urology,KINGS COLLEGE LONDON:03529700,id:12942135 ,    30581.59
Department of Health,Guys and St Thomas NHS Foundation Trust,09/04/2020,(81200) Medical Surgical Supplies & Equipment,(id:42433) Transplant Renal and Urology,SQUADRON MEDICAL LTD,id:12928695    , 339.44
Department of Health,Guys and St Thomas NHS Foundation Trust,24/04/2020,(81200) Medical Surgical Supplies & Equipment,(id:42430) Transplant Renal and Urology,B.BRAUN MEDICAL LTD,id:12983649,1030.68
Department of Health,Guys and St Thomas NHS Foundation Trust,24/04/2020,(81200) Medical Surgical Supplies & Equipment,(id:42430) Transplant Renal and Urology,BAXTER HEALTHCARE LTD,id:12975037   ,    10914.60
Department of Health,Guys and St Thomas NHS Foundation Trust,24/04/2020,(81200) Medical Surgical Supplies & Equipment,(id:42430) Transplant Renal and Urology,B.BRAUN MEDICAL LTD,id:12983674,1233.24
Department of Health,Guys and St Thomas NHS Foundation Trust,03/04/2020,(81200) Medical Surgical Supplies & Equipment,(id:42428) Transplant Renal and Urology,NHS SUPPLY CHAIN (MAIDSTONE),id:12891174 , 509.39
Department of Health,Guys and St Thomas NHS Foundation Trust,03/04/2020,(84400) Transport,(id:42428) Transplant Renal and Urology,AMVALE MEDICAL TRANSPORT LTD,id:12899555    ,6677.71
Department of Health,Guys and St Thomas NHS Foundation Trust,03/04/2020,(83400) Office Equipment,(id:42428) Transplant Renal and Urology,NHS SUPPLY CHAIN (MAIDSTONE),id:12912734  ,  81.86
Department of Health,Guys and St Thomas NHS Foundation Trust,17/04/2020,(81200) Medical Surgical Supplies & Equipment,(id:42420) Transplant Renal and Urology,BAXTER HEALTHCARE LTD,id:12944959   ,1138.46
Department of Health,Guys and St Thomas NHS Foundation Trust,24/04/2020,(81200) Medical Surgical Supplies & Equipment,(id:42420) Transplant Renal and Urology,FRESENIUS MEDICAL CARE RENAL SERVICES LT,id:12988680    ,1636.13
Department of Health,Guys and St Thomas NHS Foundation Trust,24/04/2020,(81200) Medical Surgical Supplies & Equipment,(id:42420) Transplant Renal and Urology,BAXTER HEALTHCARE LTD,id:12967034   ,1220.54
Department of Health,Guys and St Thomas NHS Foundation Trust,09/04/2020,(50522) Unqualified Nursing Staff,(id:42420) Transplant Renal and Urology,GLOBE LOCUMS LTD,id:12963402, 222.52
Department of Health,Guys and St Thomas NHS Foundation Trust,03/04/2020,(82000) Provisions & Kitchens,(id:42420) Transplant Renal and Urology,NHS SUPPLY CHAIN (MAIDSTONE),id:12891174  ,  86.40
Department of Health,Guys and St Thomas NHS Foundation Trust,09/04/2020,(50562) Qualified Nursing Staff,(id:42438) Transplant Renal and Urology,GLOBE LOCUMS LTD,id:12963696  ,1717.35
Department of Health,Guys and St Thomas NHS Foundation Trust,24/04/2020,(50562) Qualified Nursing Staff,(id:42438) Transplant Renal and Urology,GLOBE LOCUMS LTD,id:12989014  , 418.87
Department of Health,Guys and St Thomas NHS Foundation Trust,24/04/2020,(81200) Medical Surgical Supplies & Equipment,(id:42425) Transplant Renal and Urology,SQUADRON MEDICAL LTD,id:12950273    ,1159.20
Department of Health,Guys and St Thomas NHS Foundation Trust,03/04/2020,(86300) Healthcare from non-NHS bodies,(id:42424) Transplant Renal and Urology,DIAVERUM UK LTD,id:12819644 ,    53071.20
Department of Health,Guys and St Thomas NHS Foundation Trust,17/04/2020,(81200) Medical Surgical Supplies & Equipment,(id:42422) Transplant Renal and Urology,NXSTAGE MEDICAL UK LIMITED,id:12929998   ,1538.59
Department of Health,Guys and St Thomas NHS Foundation Trust,03/04/2020,(82800) Bedding & Linen,(id:42422) Transplant Renal and Urology,NHS SUPPLY CHAIN (MAIDSTONE),id:12912734   ,  24.00
Department of Health,Guys and St Thomas NHS Foundation Trust,24/04/2020,(81200) Medical Surgical Supplies & Equipment,(id:42421) Transplant Renal and Urology,BAXTER HEALTHCARE LTD,id:12860316   ,1183.23
Department of Health,Guys and St Thomas NHS Foundation Trust,03/04/2020,(82600) Uniforms & Clothing,(id:42025) Dental Services,NHS SUPPLY CHAIN (MAIDSTONE),id:12891174  ,  35.40
Department of Health,Guys and St Thomas NHS Foundation Trust,24/04/2020,(50203) Consultants,(id:42010) Dental Services,KINGS COLLEGE LONDON:03529700,id:12930379    ,    24073.02
Department of Health,Guys and St Thomas NHS Foundation Trust,24/04/2020,(81200) Medical Surgical Supplies & Equipment,(id:42037) Dental Services,QED - QUALITY ENDODONTIC DISTRIBUTORS LTD,id:12985274 , 720.36
Department of Health,Guys and St Thomas NHS Foundation Trust,17/04/2020,(81100) Dressings,(id:42007) Dental Services,JOHNSON & JOHNSON MEDICAL LTD,id:12940950 , 778.66
Department of Health,Guys and St Thomas NHS Foundation Trust,03/04/2020,(81200) Medical Surgical Supplies & Equipment,(id:42007) Dental Services,HENRY SCHEIN,id:12929915, 738.36
Department of Health,Guys and St Thomas NHS Foundation Trust,03/04/2020,(81200) Medical Surgical Supplies & Equipment,(id:42007) Dental Services,HENRY SCHEIN,id:12929702, 943.80
Department of Health,Guys and St Thomas NHS Foundation Trust,24/04/2020,(81200) Medical Surgical Supplies & Equipment,(id:42007) Dental Services,HENRY SCHEIN,id:12970034, 722.40
Department of Health,Guys and St Thomas NHS Foundation Trust,03/04/2020,(81200) Medical Surgical Supplies & Equipment,(id:42005) Dental Services,NHS SUPPLY CHAIN (MAIDSTONE),id:12891174    ,1494.59
Department of Health,Guys and St Thomas NHS Foundation Trust,03/04/2020,(82800) Bedding & Linen,(id:42015) Dental Services,NHS SUPPLY CHAIN (MAIDSTONE),id:12891174 ,  60.26
Department of Health,Guys and St Thomas NHS Foundation Trust,03/04/2020,(81100) Dressings,(id:42027) Dental Services,NHS SUPPLY CHAIN (MAIDSTONE),id:12891174  ,   4.97
Department of Health,Guys and St Thomas NHS Foundation Trust,03/04/2020,(81200) Medical Surgical Supplies & Equipment,(id:42027) Dental Services,HENRY SCHEIN,id:12929683, 761.26
Department of Health,Guys and St Thomas NHS Foundation Trust,03/04/2020,(81200) Medical Surgical Supplies & Equipment,(id:42028) Dental Services,NHS SUPPLY CHAIN (MAIDSTONE),id:12891174    , 863.97
Department of Health,Guys and St Thomas NHS Foundation Trust,03/04/2020,(50343) Other Medical Grades,(id:42017) Dental Services,KINGS COLLEGE LONDON:03529700,id:12918934,    72184.00
Department of Health,Guys and St Thomas NHS Foundation Trust,03/04/2020,(81200) Medical Surgical Supplies & Equipment,(id:42016) Dental Services,DENTSPLY IH LTD,id:12917880  , 747.00
Department of Health,Guys and St Thomas NHS Foundation Trust,17/04/2020,(81200) Medical Surgical Supplies & Equipment,(id:42016) Dental Services,DENTSPLY IH LTD,id:12894130  ,1341.00
Department of Health,Guys and St Thomas NHS Foundation Trust,17/04/2020,(81200) Medical Surgical Supplies & Equipment,(id:42016) Dental Services,DENTSPLY IH LTD,id:12979275  , 788.40
Department of Health,Guys and St Thomas NHS Foundation Trust,24/04/2020,(81200) Medical Surgical Supplies & Equipment,(id:42016) Dental Services,STRAUMANN LTD,id:10169132    , 520.00
Department of Health,Guys and St Thomas NHS Foundation Trust,09/04/2020,(81200) Medical Surgical Supplies & Equipment,(id:42016) Dental Services,NOBEL BIOCARE UK LTD,id:12929685  , 632.04
Department of Health,Guys and St Thomas NHS Foundation Trust,09/04/2020,(81200) Medical Surgical Supplies & Equipment,(id:42016) Dental Services,DENTSPLY LTD,id:12957474, 713.55
Department of Health,Guys and St Thomas NHS Foundation Trust,03/04/2020,(50542) Unqualified Nursing Staff,(id:1885419) Dental Services,HAYS HEALTHCARE LTD,id:12952730   , 466.65
Department of Health,Guys and St Thomas NHS Foundation Trust,03/04/2020,(50542) Unqualified Nursing Staff,(id:1885419) Dental Services,HAYS HEALTHCARE LTD,id:12945600   , 622.20
Department of Health,Guys and St Thomas NHS Foundation Trust,09/04/2020,(50542) Unqualified Nursing Staff,(id:1885419) Dental Services,MSI GROUP LTD,id:12966334    , 480.99
Department of Health,Guys and St Thomas NHS Foundation Trust,03/04/2020,(50542) Unqualified Nursing Staff,(id:1653420) Dental Services,HAYS HEALTHCARE LTD,id:12952774   , 461.47
Department of Health,Guys and St Thomas NHS Foundation Trust,03/04/2020,(50343) Other Medical Grades,(id:42014) Dental Services,KINGS COLLEGE LONDON:03529700,id:12918934,    15118.00
Department of Health,Guys and St Thomas NHS Foundation Trust,03/04/2020,(83400) Office Equipment,(id:42040) Dental Services,NHS SUPPLY CHAIN (MAIDSTONE),id:12912734,   2.42
Department of Health,Guys and St Thomas NHS Foundation Trust,09/04/2020,(81200) Medical Surgical Supplies & Equipment,(id:1634433) Dental Services,HENRY SCHEIN,id:12930095   , 560.64
Department of Health,Guys and St Thomas NHS Foundation Trust,09/04/2020,(81200) Medical Surgical Supplies & Equipment,(id:1634429) Dental Services,DENTSPLY IH LTD,id:11908751, 370.20
Department of Health,Guys and St Thomas NHS Foundation Trust,24/04/2020,(81200) Medical Surgical Supplies & Equipment,(id:1650421) Dental Services,W H W PLASTICS,id:12942955 , 501.12
Department of Health,Guys and St Thomas NHS Foundation Trust,17/04/2020,(81200) Medical Surgical Supplies & Equipment,(id:42011) Dental Services,CENDRES & MEATUX UK LTD,id:12851354    ,1278.80
Department of Health,Guys and St Thomas NHS Foundation Trust,17/04/2020,(81200) Medical Surgical Supplies & Equipment,(id:42011) Dental Services,CENDRES & MEATUX UK LTD,id:12862074    ,9819.08
Department of Health,Guys and St Thomas NHS Foundation Trust,24/04/2020,(50200) Consultants,(id:4225419) Specialist Ambulatory Services,KINGS COLLEGE LONDON:03529700,id:12942774  ,6323.55
Department of Health,Guys and St Thomas NHS Foundation Trust,17/04/2020,(81700) Lab Equipment Purchase,(id:641456) Specialist Ambulatory Services,THERMO FISHER SCIENTIFIC,id:12958075  , 588.95
Department of Health,Guys and St Thomas NHS Foundation Trust,17/04/2020,(81700) Lab Equipment Purchase,(id:641456) Specialist Ambulatory Services,THERMO FISHER SCIENTIFIC,id:12958074  ,2399.71
Department of Health,Guys and St Thomas NHS Foundation Trust,24/04/2020,(55070) Admin & Clerical,(id:334405) Specialist Ambulatory Services,KINGS COLLEGE LONDON:03529700,id:12929595   ,7187.66
Department of Health,Guys and St Thomas NHS Foundation Trust,24/04/2020,(50203) Consultants,(id:42193) Specialist Ambulatory Services,KINGS COLLEGE LONDON:03529700,id:12929609    ,2163.48
Department of Health,Guys and St Thomas NHS Foundation Trust,09/04/2020,(81200) Medical Surgical Supplies & Equipment,(id:4586420) Specialist Ambulatory Services,CONNEVANS LTD,id:12951328  ,2005.52
Department of Health,Guys and St Thomas NHS Foundation Trust,03/04/2020,(81200) Medical Surgical Supplies & Equipment,(id:4586419) Specialist Ambulatory Services,NHS SUPPLY CHAIN (MAIDSTONE),id:12912734  ,2527.40
Department of Health,Guys and St Thomas NHS Foundation Trust,03/04/2020,(83400) Office Equipment,(id:4586419) Specialist Ambulatory Services,NHS SUPPLY CHAIN (MAIDSTONE),id:12912734   ,  44.58
Department of Health,Guys and St Thomas NHS Foundation Trust,03/04/2020,(82600) Uniforms & Clothing,(id:4586419) Specialist Ambulatory Services,1ST BIOTECH LIMITED,id:12915282    ,1080.00
Department of Health,Guys and St Thomas NHS Foundation Trust,03/04/2020,(84501) Establishment,(id:4586419) Specialist Ambulatory Services,INNOVATIVE DISPLAYS (TALKSIGN LTD),id:12939411,1465.00
Department of Health,Guys and St Thomas NHS Foundation Trust,17/04/2020,(81200) Medical Surgical Supplies & Equipment,(id:42684) Specialist Ambulatory Services,TELEFLEX MEDICAL,id:12937756 ,9690.00
Department of Health,Guys and St Thomas NHS Foundation Trust,24/04/2020,(81200) Medical Surgical Supplies & Equipment,(id:42684) Specialist Ambulatory Services,TELEFLEX MEDICAL,id:12981794 ,1530.00
Department of Health,Guys and St Thomas NHS Foundation Trust,09/04/2020,(83420) Office Equipment,(id:42682) Specialist Ambulatory Services,OFFICE DEPOT UK LTD,id:12926031    , 102.60
Department of Health,Guys and St Thomas NHS Foundation Trust,24/04/2020,(50200) Consultants,(id:42358) Specialist Ambulatory Services,KINGS COLLEGE LONDON:03529700,id:12942794    ,5335.72
Department of Health,Guys and St Thomas NHS Foundation Trust,29/04/2020,(81700) Lab Equipment Purchase,(id:42358) Specialist Ambulatory Services,DNA GENOTEK  INC,id:12692136 ,4146.00
Department of Health,Guys and St Thomas NHS Foundation Trust,17/04/2020,(89000) Other - Training courses and conferences,(id:42358) Specialist Ambulatory Services,ALAN PHILLIPS,id:12965194 ,4500.00
Department of Health,Guys and St Thomas NHS Foundation Trust,24/04/2020,(89595) Non-Healthcare from Foundation Trusts,(id:42354) Specialist Ambulatory Services,ST GEORGE'S UNIVERSITY HOSPITALS NHS FOUNDATION TRUST,id:10194792    , 650.00
Department of Health,Guys and St Thomas NHS Foundation Trust,24/04/2020,(89595) Non-Healthcare from Foundation Trusts,(id:42354) Specialist Ambulatory Services,CAMBRIDGE UNIVERSITY HOSPITALS NHS FOUNDATION TRUST,id:12895264 ,5100.00
Department of Health,Guys and St Thomas NHS Foundation Trust,03/04/2020,(81100) Dressings,(id:3608419) Specialist Ambulatory Services,NHS SUPPLY CHAIN (MAIDSTONE),id:12912734, 143.62
Department of Health,Guys and St Thomas NHS Foundation Trust,03/04/2020,(82800) Bedding & Linen,(id:3607419) Specialist Ambulatory Services,NHS SUPPLY CHAIN (MAIDSTONE),id:12912734    ,  40.18
Department of Health,Guys and St Thomas NHS Foundation Trust,03/04/2020,(81700) Lab Equipment Purchase,(id:42094) Specialist Ambulatory Services,NHS SUPPLY CHAIN (MAIDSTONE),id:12891174    ,  62.88
Department of Health,Guys and St Thomas NHS Foundation Trust,09/04/2020,(89595) Non-Healthcare from Foundation Trusts,(id:42092) Specialist Ambulatory Services,LEEDS TEACHING HOSPITALS NHS TRUST,id:11102531   , 896.50
Department of Health,Guys and St Thomas NHS Foundation Trust,09/04/2020,(89640) Non-Healthcare from NHS Trusts,(id:42092) Specialist Ambulatory Services,LEEDS TEACHING HOSPITALS NHS TRUST,id:12893559, 930.57
Department of Health,Guys and St Thomas NHS Foundation Trust,03/04/2020,(82600) Uniforms & Clothing,(id:42088) Specialist Ambulatory Services,NHS SUPPLY CHAIN (MAIDSTONE),id:12891174  ,  16.24
Department of Health,Guys and St Thomas NHS Foundation Trust,03/04/2020,(82800) Bedding & Linen,(id:42088) Specialist Ambulatory Services,NHS SUPPLY CHAIN (MAIDSTONE),id:12891174 ,   9.96
Department of Health,Guys and St Thomas NHS Foundation Trust,24/04/2020,(82600) Uniforms & Clothing,(id:42097) Specialist Ambulatory Services,LASER PHYSICS UK LTD,id:12984860, 930.00
Department of Health,Guys and St Thomas NHS Foundation Trust,03/04/2020,(81100) Dressings,(id:42097) Specialist Ambulatory Services,NHS SUPPLY CHAIN (MAIDSTONE),id:12912734  , 174.93
Department of Health,Guys and St Thomas NHS Foundation Trust,03/04/2020,(81200) Medical Surgical Supplies & Equipment,(id:42097) Specialist Ambulatory Services,NHS SUPPLY CHAIN (MAIDSTONE),id:12912734    ,  70.17
Department of Health,Guys and St Thomas NHS Foundation Trust,03/04/2020,(80010) Drug Costs,(id:42079) Specialist Ambulatory Services,THERAKOS (UK) LIMITED,id:12865962   ,2246.40
Department of Health,Guys and St Thomas NHS Foundation Trust,03/04/2020,(81200) Medical Surgical Supplies & Equipment,(id:42066) Specialist Ambulatory Services,NHS SUPPLY CHAIN (MAIDSTONE),id:12891174    , 763.20
Department of Health,Guys and St Thomas NHS Foundation Trust,17/04/2020,(81000) Surgical Appliances,(id:42066) Specialist Ambulatory Services,MEDI UK LTD,id:12969394    ,  61.89
Department of Health,Guys and St Thomas NHS Foundation Trust,17/04/2020,(81000) Surgical Appliances,(id:42066) Specialist Ambulatory Services,MEDI UK LTD,id:12969415    , 181.01
Department of Health,Guys and St Thomas NHS Foundation Trust,03/04/2020,(82600) Uniforms & Clothing,(id:391417) Specialist Ambulatory Services,NHS SUPPLY CHAIN (MAIDSTONE),id:12891174 ,  20.40
Department of Health,Guys and St Thomas NHS Foundation Trust,03/04/2020,(82600) Uniforms & Clothing,(id:391417) Specialist Ambulatory Services,NHS SUPPLY CHAIN (MAIDSTONE),id:12912734 ,  20.40
Department of Health,Guys and St Thomas NHS Foundation Trust,03/04/2020,(81275) Medical Surgical Supplies & Equipment,(id:42064) Specialist Ambulatory Services,NHS SUPPLY CHAIN (MAIDSTONE),id:12912734    ,  55.50
Department of Health,Guys and St Thomas NHS Foundation Trust,03/04/2020,(83400) Office Equipment,(id:590565) Specialist Ambulatory Services,NHS SUPPLY CHAIN (MAIDSTONE),id:12891174    ,   5.10
Department of Health,Guys and St Thomas NHS Foundation Trust,03/04/2020,(81200) Medical Surgical Supplies & Equipment,(id:42057) Specialist Ambulatory Services,NHS SUPPLY CHAIN (MAIDSTONE),id:12912734    , 742.07
Department of Health,Guys and St Thomas NHS Foundation Trust,03/04/2020,(82800) Bedding & Linen,(id:42055) Specialist Ambulatory Services,NHS SUPPLY CHAIN (MAIDSTONE),id:12891174 ,  20.09
Department of Health,Guys and St Thomas NHS Foundation Trust,03/04/2020,(83400) Office Equipment,(id:42050) Specialist Ambulatory Services,NHS SUPPLY CHAIN (MAIDSTONE),id:12891174, 627.72
Department of Health,Guys and St Thomas NHS Foundation Trust,03/04/2020,(81275) Medical Surgical Supplies & Equipment,(id:42134) Pathology SDU,GRIFOLS UK,id:12883314    ,8550.00
Department of Health,Guys and St Thomas NHS Foundation Trust,24/04/2020,(50200) Consultants,(id:999419) Pharmacy,KINGS COLLEGE LONDON:03529700,id:12914540,1848.64
Department of Health,Guys and St Thomas NHS Foundation Trust,03/04/2020,(83400) Office Equipment,(id:42163) Pharmacy,NOTTINGHAM UNIVERSITY HOSPITALS NHS TRUST,id:12932647    ,   -16320.00
Department of Health,Guys and St Thomas NHS Foundation Trust,29/04/2020,(53662) Pharmacists,(id:42165) Pharmacy,PRICEWATERHOUSECOOPERS LLP,id:12999514    ,1262.78
Department of Health,Guys and St Thomas NHS Foundation Trust,29/04/2020,(53672) Pharmacists,(id:42160) Pharmacy,PRICEWATERHOUSECOOPERS LLP,id:12999514    ,2815.64
Department of Health,Guys and St Thomas NHS Foundation Trust,20/04/2020,(53672) Pharmacists,(id:42160) Pharmacy,PRICEWATERHOUSECOOPERS LLP,id:12983554    ,1425.57
Department of Health,Guys and St Thomas NHS Foundation Trust,20/04/2020,(53672) Pharmacists,(id:42160) Pharmacy,PRICEWATERHOUSECOOPERS LLP,id:12983678    ,3362.77
Department of Health,Guys and St Thomas NHS Foundation Trust,17/04/2020,(81200) Medical Surgical Supplies & Equipment,(id:581409) Pharmacy,HELAPET LTD.,id:12953977 , 506.90
Department of Health,Guys and St Thomas NHS Foundation Trust,24/04/2020,(81200) Medical Surgical Supplies & Equipment,(id:581409) Pharmacy,AMERCARE LTD,id:12969783 , 693.00
Department of Health,Guys and St Thomas NHS Foundation Trust,24/04/2020,(81200) Medical Surgical Supplies & Equipment,(id:581409) Pharmacy,NITRITEX LTD,id:12985037 ,2246.40
Department of Health,Guys and St Thomas NHS Foundation Trust,24/04/2020,(81200) Medical Surgical Supplies & Equipment,(id:581409) Pharmacy,LAZERBEAM FIRE AND SECURITY LTD,id:12990122  ,1985.00
Department of Health,Guys and St Thomas NHS Foundation Trust,24/04/2020,(83400) Office Equipment,(id:581409) Pharmacy,AQUILANT DISTRIBUTION,id:12980423   , 535.69
Department of Health,Guys and St Thomas NHS Foundation Trust,03/04/2020,(83640) IT Costs,(id:581409) Pharmacy,COMPUTACENTER UK LTD,id:12915228  , 923.53
Department of Health,Guys and St Thomas NHS Foundation Trust,03/04/2020,(89270) Establishment,(id:42159) Pharmacy,MARK THOMPSON LIFESCIENCES LTD,id:12778246   ,1550.00
Department of Health,Guys and St Thomas NHS Foundation Trust,21/04/2020,(89270) Establishment,(id:42159) Pharmacy,3CP,id:12831655,2088.00
Department of Health,Guys and St Thomas NHS Foundation Trust,17/04/2020,(84655) Establishment,(id:42178) Medical Specialties,LANGUAGE CONNECT,id:12957232 ,    27122.33
Department of Health,Guys and St Thomas NHS Foundation Trust,20/04/2020,(51262) Dieticians,(id:42251) Medical Specialties,PRICEWATERHOUSECOOPERS LLP,id:12983554    ,1216.95
Department of Health,Guys and St Thomas NHS Foundation Trust,24/04/2020,(50200) Consultants,(id:42223) Medical Specialties,KINGS COLLEGE LONDON:03529700,id:12942035,7533.58
Department of Health,Guys and St Thomas NHS Foundation Trust,03/04/2020,(81225) Medical Surgical Supplies & Equipment,(id:42223) Medical Specialties,MOORFIELDS EYE HOSPITAL NHS FOUNDATION TRUST,id:12950939    ,2230.80
Department of Health,Guys and St Thomas NHS Foundation Trust,03/04/2020,(82000) Provisions & Kitchens,(id:42223) Medical Specialties,NHS SUPPLY CHAIN (MAIDSTONE),id:12891174 , 420.40
Department of Health,Guys and St Thomas NHS Foundation Trust,17/04/2020,(82800) Bedding & Linen,(id:42223) Medical Specialties,SQUADRON MEDICAL LTD,id:12941150,   8.38
Department of Health,Guys and St Thomas NHS Foundation Trust,03/04/2020,(82800) Bedding & Linen,(id:42223) Medical Specialties,NHS SUPPLY CHAIN (MAIDSTONE),id:12912734  , 481.87
Department of Health,Guys and St Thomas NHS Foundation Trust,24/04/2020,(81200) Medical Surgical Supplies & Equipment,(id:42222) Medical Specialties,DAYBREAK MEDICAL LTD,id:12983474   ,4890.00
Department of Health,Guys and St Thomas NHS Foundation Trust,03/04/2020,(81200) Medical Surgical Supplies & Equipment,(id:42221) Medical Specialties,ALCON EYE CARE UK LIMITED,id:12945325   ,2016.00
Department of Health,Guys and St Thomas NHS Foundation Trust,09/04/2020,(81200) Medical Surgical Supplies & Equipment,(id:42221) Medical Specialties,BEAVER-VISITEC INTERNATIONAL (SALES) LTD,id:12939355   ,5400.00
Department of Health,Guys and St Thomas NHS Foundation Trust,20/04/2020,(51062) Chiropodists,(id:42213) Medical Specialties,PRICEWATERHOUSECOOPERS LLP,id:12983678  ,1034.94
Department of Health,Guys and St Thomas NHS Foundation Trust,03/04/2020,(81000) Surgical Appliances,(id:42213) Medical Specialties,MEDI UK LTD,id:12940514,  52.03
Department of Health,Guys and St Thomas NHS Foundation Trust,03/04/2020,(81700) Lab Equipment Purchase,(id:42213) Medical Specialties,NHS SUPPLY CHAIN (MAIDSTONE),id:12912734,  65.04
Department of Health,Guys and St Thomas NHS Foundation Trust,24/04/2020,(50200) Consultants,(id:42213) Medical Specialties,KING'S COLLEGE HOSPITAL NHS FOUNDATION TRUST,id:12974822,    82500.00
Department of Health,Guys and St Thomas NHS Foundation Trust,17/04/2020,(81000) Surgical Appliances,(id:42209) Medical Specialties,TALAR MADE ORTHOTICS LTD,id:12968777  , 228.00
Department of Health,Guys and St Thomas NHS Foundation Trust,03/04/2020,(81200) Medical Surgical Supplies & Equipment,(id:42208) Medical Specialties,DEXCOM UK,id:12928101    , 793.50
Department of Health,Guys and St Thomas NHS Foundation Trust,03/04/2020,(81200) Medical Surgical Supplies & Equipment,(id:42208) Medical Specialties,AIR LIQUIDE (HOMECARE) LTD,id:12953034  ,9504.00
Department of Health,Guys and St Thomas NHS Foundation Trust,09/04/2020,(81200) Medical Surgical Supplies & Equipment,(id:42208) Medical Specialties,DEXCOM UK,id:12929631    , 960.00
Department of Health,Guys and St Thomas NHS Foundation Trust,09/04/2020,(81200) Medical Surgical Supplies & Equipment,(id:42208) Medical Specialties,MEDTRONIC LTD,id:12914559, 503.11
Department of Health,Guys and St Thomas NHS Foundation Trust,09/04/2020,(81200) Medical Surgical Supplies & Equipment,(id:42208) Medical Specialties,MEDTRONIC LTD,id:12936416, 567.00
Department of Health,Guys and St Thomas NHS Foundation Trust,24/04/2020,(81200) Medical Surgical Supplies & Equipment,(id:42208) Medical Specialties,MEDTRONIC LTD,id:12965138, 567.00
Department of Health,Guys and St Thomas NHS Foundation Trust,24/04/2020,(81200) Medical Surgical Supplies & Equipment,(id:42208) Medical Specialties,DEXCOM UK,id:12964979    , 553.50
Department of Health,Guys and St Thomas NHS Foundation Trust,24/04/2020,(81200) Medical Surgical Supplies & Equipment,(id:42208) Medical Specialties,DEXCOM UK,id:12967815    , 553.50
Department of Health,Guys and St Thomas NHS Foundation Trust,24/04/2020,(81200) Medical Surgical Supplies & Equipment,(id:42208) Medical Specialties,MEDTRONIC LTD,id:12967968, 567.00
Department of Health,Guys and St Thomas NHS Foundation Trust,24/04/2020,(81200) Medical Surgical Supplies & Equipment,(id:42208) Medical Specialties,MEDTRONIC LTD,id:12965150, 567.00
Department of Health,Guys and St Thomas NHS Foundation Trust,17/04/2020,(81200) Medical Surgical Supplies & Equipment,(id:42208) Medical Specialties,DEXCOM UK,id:12956898    , 793.50
Department of Health,Guys and St Thomas NHS Foundation Trust,17/04/2020,(81200) Medical Surgical Supplies & Equipment,(id:42208) Medical Specialties,INSULET INTERNATIONAL LTD,id:12942801   ,1182.96
Department of Health,Guys and St Thomas NHS Foundation Trust,17/04/2020,(81200) Medical Surgical Supplies & Equipment,(id:42208) Medical Specialties,INSULET INTERNATIONAL LTD,id:12942304   ,1186.80
Department of Health,Guys and St Thomas NHS Foundation Trust,17/04/2020,(81200) Medical Surgical Supplies & Equipment,(id:42208) Medical Specialties,INSULET INTERNATIONAL LTD,id:12961679   , 706.32
Department of Health,Guys and St Thomas NHS Foundation Trust,17/04/2020,(81200) Medical Surgical Supplies & Equipment,(id:42208) Medical Specialties,INSULET INTERNATIONAL LTD,id:12921983   , 706.32
Department of Health,Guys and St Thomas NHS Foundation Trust,17/04/2020,(81200) Medical Surgical Supplies & Equipment,(id:42208) Medical Specialties,INSULET INTERNATIONAL LTD,id:12958794   , 712.08
Department of Health,Guys and St Thomas NHS Foundation Trust,24/04/2020,(50200) Consultants,(id:42208) Medical Specialties,KINGS COLLEGE LONDON:03529700,id:12930278, 336.57
Department of Health,Guys and St Thomas NHS Foundation Trust,03/04/2020,(81700) Lab Equipment Purchase,(id:42208) Medical Specialties,NHS SUPPLY CHAIN (MAIDSTONE),id:12912734, 425.22
Department of Health,Guys and St Thomas NHS Foundation Trust,03/04/2020,(81100) Dressings,(id:42206) Medical Specialties,NHS SUPPLY CHAIN (MAIDSTONE),id:12891174   ,   9.60
Department of Health,Guys and St Thomas NHS Foundation Trust,03/04/2020,(81200) Medical Surgical Supplies & Equipment,(id:42206) Medical Specialties,NHS SUPPLY CHAIN (MAIDSTONE),id:12891174,   7.20
Department of Health,Guys and St Thomas NHS Foundation Trust,24/04/2020,(89595) Non-Healthcare from Foundation Trusts,(id:42202) Medical Specialties,SALISBURY NHS FOUNDATION TRUST,id:12962114   , 685.00
Department of Health,Guys and St Thomas NHS Foundation Trust,24/04/2020,(89280) Other - Consultancy costs,(id:302405) Medical Specialties,KINGS COLLEGE LONDON:03529700,id:12993080, 822.85
Department of Health,Guys and St Thomas NHS Foundation Trust,03/04/2020,(83610) IT Costs,(id:302405) Medical Specialties,OFFICE DEPOT UK LTD,id:12899191  , 860.36
Department of Health,Guys and St Thomas NHS Foundation Trust,24/04/2020,(50200) Consultants,(id:41938) Medical Specialties,KINGS COLLEGE LONDON:03529700,id:12942276,1311.18
Department of Health,Guys and St Thomas NHS Foundation Trust,24/04/2020,(50200) Consultants,(id:41938) Medical Specialties,KINGS COLLEGE LONDON:03529700,id:12942714,1311.18
Department of Health,Guys and St Thomas NHS Foundation Trust,17/04/2020,(81200) Medical Surgical Supplies & Equipment,(id:41937) Medical Specialties,ABBOTT MEDICAL UK LTD,id:12967919  ,1554.00
Department of Health,Guys and St Thomas NHS Foundation Trust,03/04/2020,(82000) Provisions & Kitchens,(id:41937) Medical Specialties,NHS SUPPLY CHAIN (MAIDSTONE),id:12912734 ,   3.28
Department of Health,Guys and St Thomas NHS Foundation Trust,17/04/2020,(81200) Medical Surgical Supplies & Equipment,(id:4621419) TAP,SQUADRON MEDICAL LTD,id:12946438  , 859.77
Department of Health,Guys and St Thomas NHS Foundation Trust,17/04/2020,(81200) Medical Surgical Supplies & Equipment,(id:4621419) TAP,EDWARDS LIFESCIENCES LTD,id:12939359   ,1015.58
Department of Health,Guys and St Thomas NHS Foundation Trust,24/04/2020,(81200) Medical Surgical Supplies & Equipment,(id:4621419) TAP,TOFFELN (BRISTOL),id:12976344,   -49356.00
Department of Health,Guys and St Thomas NHS Foundation Trust,24/04/2020,(81100) Dressings,(id:4621419) TAP,TELEFLEX MEDICAL,id:12968507    , 852.00
Department of Health,Guys and St Thomas NHS Foundation Trust,17/04/2020,(83400) Office Equipment,(id:4621419) TAP,SQUADRON MEDICAL LTD,id:12941368   ,  13.49
Department of Health,Guys and St Thomas NHS Foundation Trust,17/04/2020,(81700) Lab Equipment Purchase,(id:4621419) TAP,SQUADRON MEDICAL LTD,id:12947483  ,   4.82
Department of Health,Guys and St Thomas NHS Foundation Trust,09/04/2020,(82600) Uniforms & Clothing,(id:4621419) TAP,TOFFELN (BRISTOL),id:12939284   , 923.76
Department of Health,Guys and St Thomas NHS Foundation Trust,17/04/2020,(82600) Uniforms & Clothing,(id:4621419) TAP,FISHER & PAYKEL HEALTHCARE LTD,id:12945198, 324.00
Department of Health,Guys and St Thomas NHS Foundation Trust,09/04/2020,(50562) Qualified Nursing Staff,(id:850419) TAP,JUST NURSES (NURSCO HEALTHCARE LIMITED),id:12963355   , 254.83
Department of Health,Guys and St Thomas NHS Foundation Trust,17/04/2020,(81400) Medical Surgical Supplies & Equipment,(id:41900) TAP,MRI DEVICES LTD,id:12959587    ,    10400.00
Department of Health,Guys and St Thomas NHS Foundation Trust,17/04/2020,(82600) Uniforms & Clothing,(id:41897) TAP,SQUADRON MEDICAL LTD,id:12947409  , 584.16
Department of Health,Guys and St Thomas NHS Foundation Trust,03/04/2020,(83400) Office Equipment,(id:41897) TAP,NHS SUPPLY CHAIN (MAIDSTONE),id:12912734  , 706.91
Department of Health,Guys and St Thomas NHS Foundation Trust,24/04/2020,(81200) Medical Surgical Supplies & Equipment,(id:41897) TAP,SQUADRON MEDICAL LTD,id:12974003    ,   1.99
Department of Health,Guys and St Thomas NHS Foundation Trust,24/04/2020,(81200) Medical Surgical Supplies & Equipment,(id:41897) TAP,SQUADRON MEDICAL LTD,id:12970547    ,   6.29
Department of Health,Guys and St Thomas NHS Foundation Trust,03/04/2020,(50562) Qualified Nursing Staff,(id:41894) TAP,JUST NURSES (NURSCO HEALTHCARE LIMITED),id:12945676    , 696.15
Department of Health,Guys and St Thomas NHS Foundation Trust,03/04/2020,(50562) Qualified Nursing Staff,(id:41894) TAP,JUST NURSES (NURSCO HEALTHCARE LIMITED),id:12945576    ,1516.61
Department of Health,Guys and St Thomas NHS Foundation Trust,03/04/2020,(81200) Medical Surgical Supplies & Equipment,(id:41894) TAP,NHS SUPPLY CHAIN (MAIDSTONE),id:12891174 ,1579.32
Department of Health,Guys and St Thomas NHS Foundation Trust,24/04/2020,(81200) Medical Surgical Supplies & Equipment,(id:41894) TAP,SQUADRON MEDICAL LTD,id:12959977    ,  79.75
Department of Health,Guys and St Thomas NHS Foundation Trust,03/04/2020,(83400) Office Equipment,(id:41892) TAP,NHS SUPPLY CHAIN (MAIDSTONE),id:12891174  ,   9.22
Department of Health,Guys and St Thomas NHS Foundation Trust,03/04/2020,(81100) Dressings,(id:41888) TAP,NHS SUPPLY CHAIN (MAIDSTONE),id:12891174    , 166.80
Department of Health,Guys and St Thomas NHS Foundation Trust,03/04/2020,(81100) Dressings,(id:41883) TAP,SQUADRON MEDICAL LTD,id:12874526  ,  10.56
Department of Health,Guys and St Thomas NHS Foundation Trust,03/04/2020,(81100) Dressings,(id:41883) TAP,SQUADRON MEDICAL LTD,id:12915794  , 131.73
Department of Health,Guys and St Thomas NHS Foundation Trust,03/04/2020,(81100) Dressings,(id:41883) TAP,SQUADRON MEDICAL LTD,id:12910793  ,  31.61
Department of Health,Guys and St Thomas NHS Foundation Trust,24/04/2020,(81100) Dressings,(id:41883) TAP,SQUADRON MEDICAL LTD,id:12955560  ,  25.30
Department of Health,Guys and St Thomas NHS Foundation Trust,03/04/2020,(81200) Medical Surgical Supplies & Equipment,(id:41883) TAP,SQUADRON MEDICAL LTD,id:12897728    ,  58.50
Department of Health,Guys and St Thomas NHS Foundation Trust,03/04/2020,(81200) Medical Surgical Supplies & Equipment,(id:41883) TAP,SQUADRON MEDICAL LTD,id:12916280    , 265.48
Department of Health,Guys and St Thomas NHS Foundation Trust,09/04/2020,(81200) Medical Surgical Supplies & Equipment,(id:41883) TAP,KAPITEX HEALTHCARE LTD,id:12956503  ,2831.44
Department of Health,Guys and St Thomas NHS Foundation Trust,03/04/2020,(81200) Medical Surgical Supplies & Equipment,(id:41883) TAP,SQUADRON MEDICAL LTD,id:12916286    ,   4.61
Department of Health,Guys and St Thomas NHS Foundation Trust,24/04/2020,(50552) Qualified Nursing Staff,(id:41883) TAP,CONTINENTAL NURSE LTD,id:12993330  , 626.30
Department of Health,Guys and St Thomas NHS Foundation Trust,09/04/2020,(83400) Office Equipment,(id:41883) TAP,SQUADRON MEDICAL LTD,id:12915788, 204.17
Department of Health,Guys and St Thomas NHS Foundation Trust,03/04/2020,(81255) Medical Surgical Supplies & Equipment,(id:41907) TAP,NHS SUPPLY CHAIN (MAIDSTONE),id:12891174 ,    .62
Department of Health,Guys and St Thomas NHS Foundation Trust,03/04/2020,(82800) Bedding & Linen,(id:41906) TAP,NHS SUPPLY CHAIN (MAIDSTONE),id:12891174   ,  72.94
Department of Health,Guys and St Thomas NHS Foundation Trust,03/04/2020,(81100) Dressings,(id:41906) TAP,NHS SUPPLY CHAIN (MAIDSTONE),id:12891174    , 502.66
Department of Health,Guys and St Thomas NHS Foundation Trust,09/04/2020,(81200) Medical Surgical Supplies & Equipment,(id:41905) TAP,SQUADRON MEDICAL LTD,id:12931185    , 566.24
Department of Health,Guys and St Thomas NHS Foundation Trust,09/04/2020,(81200) Medical Surgical Supplies & Equipment,(id:41905) TAP,SQUADRON MEDICAL LTD,id:12926377    , 566.24
Department of Health,Guys and St Thomas NHS Foundation Trust,24/04/2020,(81200) Medical Surgical Supplies & Equipment,(id:41905) TAP,SQUADRON MEDICAL LTD,id:12963952    , 960.00
Department of Health,Guys and St Thomas NHS Foundation Trust,03/04/2020,(81200) Medical Surgical Supplies & Equipment,(id:41905) TAP,SQUADRON MEDICAL LTD,id:12915756    ,1262.40
Department of Health,Guys and St Thomas NHS Foundation Trust,24/04/2020,(50200) Consultants,(id:41905) TAP,KINGS COLLEGE LONDON:03529700,id:12942714 ,2567.05
Department of Health,Guys and St Thomas NHS Foundation Trust,24/04/2020,(81200) Medical Surgical Supplies & Equipment,(id:41913) TAP,SQUADRON MEDICAL LTD,id:12970285    ,1275.98
Department of Health,Guys and St Thomas NHS Foundation Trust,03/04/2020,(81200) Medical Surgical Supplies & Equipment,(id:41913) TAP,SQUADRON MEDICAL LTD,id:12853155    , 658.48
Department of Health,Guys and St Thomas NHS Foundation Trust,17/04/2020,(81200) Medical Surgical Supplies & Equipment,(id:41913) TAP,SQUADRON MEDICAL LTD,id:12946200    , 738.62
Department of Health,Guys and St Thomas NHS Foundation Trust,03/04/2020,(81200) Medical Surgical Supplies & Equipment,(id:41913) TAP,SQUADRON MEDICAL LTD,id:12916424    ,1756.56
Department of Health,Guys and St Thomas NHS Foundation Trust,03/04/2020,(82600) Uniforms & Clothing,(id:41913) TAP,NHS SUPPLY CHAIN (MAIDSTONE),id:12912734    , 165.56
Department of Health,Guys and St Thomas NHS Foundation Trust,03/04/2020,(82600) Uniforms & Clothing,(id:41913) TAP,NHS SUPPLY CHAIN (MAIDSTONE),id:12891174    ,  32.88
Department of Health,Guys and St Thomas NHS Foundation Trust,03/04/2020,(83400) Office Equipment,(id:41913) TAP,NHS SUPPLY CHAIN (MAIDSTONE),id:12891174  , 127.80
Department of Health,Guys and St Thomas NHS Foundation Trust,03/04/2020,(81200) Medical Surgical Supplies & Equipment,(id:41918) TAP,SQUADRON MEDICAL LTD,id:12919354    ,  16.00
Department of Health,Guys and St Thomas NHS Foundation Trust,17/04/2020,(81200) Medical Surgical Supplies & Equipment,(id:41918) TAP,SQUADRON MEDICAL LTD,id:12941353    , 931.20
Department of Health,Guys and St Thomas NHS Foundation Trust,17/04/2020,(81100) Dressings,(id:41918) TAP,ELIS UK LIMITED,id:12914580  , 890.35
Department of Health,Guys and St Thomas NHS Foundation Trust,17/04/2020,(81100) Dressings,(id:41918) TAP,ELIS UK LIMITED,id:12964235  , 605.12
Department of Health,Guys and St Thomas NHS Foundation Trust,03/04/2020,(82000) Provisions & Kitchens,(id:41916) TAP,NHS SUPPLY CHAIN (MAIDSTONE),id:12912734  ,  40.71
Department of Health,Guys and St Thomas NHS Foundation Trust,03/04/2020,(82600) Uniforms & Clothing,(id:41916) TAP,NHS SUPPLY CHAIN (MAIDSTONE),id:12912734    , 132.30
Department of Health,Guys and St Thomas NHS Foundation Trust,09/04/2020,(50562) Qualified Nursing Staff,(id:41916) TAP,CARE PROVIDERS HEALTHCARE,id:12963683   , 250.27
Department of Health,Guys and St Thomas NHS Foundation Trust,17/04/2020,(50562) Qualified Nursing Staff,(id:41916) TAP,PULSE HEALTHCARE LIMITED,id:12978240    ,1203.16
Department of Health,Guys and St Thomas NHS Foundation Trust,03/04/2020,(50562) Qualified Nursing Staff,(id:41916) TAP,PULSE HEALTHCARE LIMITED,id:12952616    , 576.51
Department of Health,Guys and St Thomas NHS Foundation Trust,03/04/2020,(50562) Qualified Nursing Staff,(id:41916) TAP,MEDICSPRO LTD,id:12952716, 834.24
Department of Health,Guys and St Thomas NHS Foundation Trust,03/04/2020,(50562) Qualified Nursing Staff,(id:41916) TAP,PULSE HEALTHCARE LIMITED,id:12952763    , 927.44
Department of Health,Guys and St Thomas NHS Foundation Trust,03/04/2020,(81200) Medical Surgical Supplies & Equipment,(id:41916) TAP,NHS SUPPLY CHAIN (MAIDSTONE),id:12891174 , 560.50
Department of Health,Guys and St Thomas NHS Foundation Trust,03/04/2020,(83400) Office Equipment,(id:41924) TAP,NHS SUPPLY CHAIN (MAIDSTONE),id:12912734  ,  14.10
Department of Health,Guys and St Thomas NHS Foundation Trust,03/04/2020,(81700) Lab Equipment Purchase,(id:41923) TAP,NHS SUPPLY CHAIN (MAIDSTONE),id:12912734 ,  41.16
Department of Health,Guys and St Thomas NHS Foundation Trust,03/04/2020,(82800) Bedding & Linen,(id:41922) TAP,NHS SUPPLY CHAIN (MAIDSTONE),id:12912734   ,  92.23
Department of Health,Guys and St Thomas NHS Foundation Trust,03/04/2020,(81200) Medical Surgical Supplies & Equipment,(id:41921) TAP,NHS SUPPLY CHAIN (MAIDSTONE),id:12891174 , 105.90
Department of Health,Guys and St Thomas NHS Foundation Trust,03/04/2020,(81200) Medical Surgical Supplies & Equipment,(id:41921) TAP,NHS SUPPLY CHAIN (MAIDSTONE),id:12912734 ,  96.00
Department of Health,Guys and St Thomas NHS Foundation Trust,03/04/2020,(81200) Medical Surgical Supplies & Equipment,(id:884419) Surgery,NHS SUPPLY CHAIN (MAIDSTONE),id:12891174 , 141.90
Department of Health,Guys and St Thomas NHS Foundation Trust,24/04/2020,(50200) Consultants,(id:42485) Surgery,KING'S COLLEGE HOSPITAL NHS FOUNDATION TRUST,id:12974778  ,1141.94
Department of Health,Guys and St Thomas NHS Foundation Trust,03/04/2020,(81225) Medical Surgical Supplies & Equipment,(id:42485) Surgery,NHS SUPPLY CHAIN (MAIDSTONE),id:12891174  ,   9.18
Department of Health,Guys and St Thomas NHS Foundation Trust,17/04/2020,(81000) Surgical Appliances,(id:42485) Surgery,TALAR MADE ORTHOTICS LTD,id:12968776    ,  29.40
Department of Health,Guys and St Thomas NHS Foundation Trust,03/04/2020,(81200) Medical Surgical Supplies & Equipment,(id:42485) Surgery,NHS SUPPLY CHAIN (MAIDSTONE),id:12912734  , 488.48
Department of Health,Guys and St Thomas NHS Foundation Trust,03/04/2020,(81200) Medical Surgical Supplies & Equipment,(id:42484) Surgery,COOK UK LTD,id:12904363    ,1278.00
Department of Health,Guys and St Thomas NHS Foundation Trust,03/04/2020,(81200) Medical Surgical Supplies & Equipment,(id:42484) Surgery,SQUADRON MEDICAL LTD,id:12915592, 710.82
Department of Health,Guys and St Thomas NHS Foundation Trust,03/04/2020,(81200) Medical Surgical Supplies & Equipment,(id:42484) Surgery,MERCIAN SURGICAL SUPPLY CO LTD,id:12825386, 894.00
Department of Health,Guys and St Thomas NHS Foundation Trust,03/04/2020,(81200) Medical Surgical Supplies & Equipment,(id:42484) Surgery,SQUADRON MEDICAL LTD,id:12895039, 176.23
Department of Health,Guys and St Thomas NHS Foundation Trust,03/04/2020,(81200) Medical Surgical Supplies & Equipment,(id:42484) Surgery,LIPOELASTIC LTD,id:12943840,1106.76
Department of Health,Guys and St Thomas NHS Foundation Trust,03/04/2020,(81225) Medical Surgical Supplies & Equipment,(id:42483) Surgery,NHS SUPPLY CHAIN (MAIDSTONE),id:12891174  ,  17.78
Department of Health,Guys and St Thomas NHS Foundation Trust,03/04/2020,(81200) Medical Surgical Supplies & Equipment,(id:42467) Surgery,JOHNSON & JOHNSON MEDICAL LTD,id:12911116 , 619.76
Department of Health,Guys and St Thomas NHS Foundation Trust,24/04/2020,(81200) Medical Surgical Supplies & Equipment,(id:42467) Surgery,JOHNSON & JOHNSON MEDICAL LTD,id:12960249 ,1502.16
Department of Health,Guys and St Thomas NHS Foundation Trust,17/04/2020,(81100) Dressings,(id:42467) Surgery,ZIMMER BIOMET UK LTD,id:12969799   , 762.00
Department of Health,Guys and St Thomas NHS Foundation Trust,03/04/2020,(82800) Bedding & Linen,(id:42466) Surgery,NHS SUPPLY CHAIN (MAIDSTONE),id:12912734    ,  22.46
Department of Health,Guys and St Thomas NHS Foundation Trust,03/04/2020,(81225) Medical Surgical Supplies & Equipment,(id:42466) Surgery,PROMEDICS ORTHOPAEDICS LTD,id:12925467    , 608.82
Department of Health,Guys and St Thomas NHS Foundation Trust,03/04/2020,(81200) Medical Surgical Supplies & Equipment,(id:42465) Surgery,NHS SUPPLY CHAIN (MAIDSTONE),id:12912734  , 913.98
Department of Health,Guys and St Thomas NHS Foundation Trust,03/04/2020,(81100) Dressings,(id:42465) Surgery,NHS SUPPLY CHAIN (MAIDSTONE),id:12912734, 210.64
Department of Health,Guys and St Thomas NHS Foundation Trust,24/04/2020,(50522) Unqualified Nursing Staff,(id:42465) Surgery,MSI GROUP LTD,id:12989012    , 263.18
Department of Health,Guys and St Thomas NHS Foundation Trust,03/04/2020,(81700) Lab Equipment Purchase,(id:42465) Surgery,NHS SUPPLY CHAIN (MAIDSTONE),id:12891174  ,  21.29
Department of Health,Guys and St Thomas NHS Foundation Trust,03/04/2020,(82600) Uniforms & Clothing,(id:42464) Surgery,NHS SUPPLY CHAIN (MAIDSTONE),id:12891174, 102.48
Department of Health,Guys and St Thomas NHS Foundation Trust,03/04/2020,(82800) Bedding & Linen,(id:42463) Surgery,NHS SUPPLY CHAIN (MAIDSTONE),id:12891174    ,   7.44
Department of Health,Guys and St Thomas NHS Foundation Trust,03/04/2020,(81200) Medical Surgical Supplies & Equipment,(id:42463) Surgery,NHS SUPPLY CHAIN (MAIDSTONE),id:12891174  , 414.06
Department of Health,Guys and St Thomas NHS Foundation Trust,09/04/2020,(81000) Surgical Appliances,(id:42461) Surgery,TALAR MADE ORTHOTICS LTD,id:12962954    , 570.00
Department of Health,Guys and St Thomas NHS Foundation Trust,17/04/2020,(81000) Surgical Appliances,(id:42461) Surgery,TALAR MADE ORTHOTICS LTD,id:12968775    ,  93.00
Department of Health,Guys and St Thomas NHS Foundation Trust,03/04/2020,(81100) Dressings,(id:42459) Surgery,NHS SUPPLY CHAIN (MAIDSTONE),id:12891174,1833.74
Department of Health,Guys and St Thomas NHS Foundation Trust,03/04/2020,(81255) Medical Surgical Supplies & Equipment,(id:42459) Surgery,NHS SUPPLY CHAIN (MAIDSTONE),id:12912734  ,   3.72
Department of Health,Guys and St Thomas NHS Foundation Trust,03/04/2020,(81225) Medical Surgical Supplies & Equipment,(id:42459) Surgery,NHS SUPPLY CHAIN (MAIDSTONE),id:12891174  ,  10.08
Department of Health,Guys and St Thomas NHS Foundation Trust,03/04/2020,(81100) Dressings,(id:42458) Surgery,NHS SUPPLY CHAIN (MAIDSTONE),id:12891174,  43.84
Department of Health,Guys and St Thomas NHS Foundation Trust,03/04/2020,(50522) Unqualified Nursing Staff,(id:42458) Surgery,GLOBE LOCUMS LTD,id:12952600 , 202.06
Department of Health,Guys and St Thomas NHS Foundation Trust,17/04/2020,(50522) Unqualified Nursing Staff,(id:42458) Surgery,GLOBE LOCUMS LTD,id:12975272 , 247.70
Department of Health,Guys and St Thomas NHS Foundation Trust,03/04/2020,(81225) Medical Surgical Supplies & Equipment,(id:42458) Surgery,NHS SUPPLY CHAIN (MAIDSTONE),id:12912734  ,  10.08
Department of Health,Guys and St Thomas NHS Foundation Trust,03/04/2020,(82600) Uniforms & Clothing,(id:42458) Surgery,NHS SUPPLY CHAIN (MAIDSTONE),id:12891174, 102.00
Department of Health,Guys and St Thomas NHS Foundation Trust,03/04/2020,(81200) Medical Surgical Supplies & Equipment,(id:41863) PACCS,RESMED (UK) LTD,id:12920539  ,4800.00
Department of Health,Guys and St Thomas NHS Foundation Trust,03/04/2020,(81100) Dressings,(id:41863) PACCS,NHS SUPPLY CHAIN (MAIDSTONE),id:12912734  ,   8.16
Department of Health,Guys and St Thomas NHS Foundation Trust,03/04/2020,(82000) Provisions & Kitchens,(id:41935) PACCS,NHS SUPPLY CHAIN (MAIDSTONE),id:12912734,  20.99
Department of Health,Guys and St Thomas NHS Foundation Trust,17/04/2020,(81100) Dressings,(id:41935) PACCS,SQUADRON MEDICAL LTD,id:12947353, 573.98
Department of Health,Guys and St Thomas NHS Foundation Trust,03/04/2020,(81200) Medical Surgical Supplies & Equipment,(id:41935) PACCS,RESMED (UK) LTD,id:12928212  ,1441.20
Department of Health,Guys and St Thomas NHS Foundation Trust,03/04/2020,(81200) Medical Surgical Supplies & Equipment,(id:41935) PACCS,BREAS MEDICAL LTD,id:12942275, 823.20
Department of Health,Guys and St Thomas NHS Foundation Trust,17/04/2020,(81200) Medical Surgical Supplies & Equipment,(id:41935) PACCS,EDWARDS LIFESCIENCES LTD,id:12929629   , 960.00
Department of Health,Guys and St Thomas NHS Foundation Trust,17/04/2020,(81200) Medical Surgical Supplies & Equipment,(id:41935) PACCS,FISHER & PAYKEL HEALTHCARE LTD,id:12945156  ,2162.70
Department of Health,Guys and St Thomas NHS Foundation Trust,17/04/2020,(81200) Medical Surgical Supplies & Equipment,(id:41935) PACCS,BREAS MEDICAL LTD,id:12969358,  28.80
Department of Health,Guys and St Thomas NHS Foundation Trust,17/04/2020,(81200) Medical Surgical Supplies & Equipment,(id:41935) PACCS,RESMED (UK) LTD,id:12958675  , 672.00
Department of Health,Guys and St Thomas NHS Foundation Trust,17/04/2020,(81400) Medical Surgical Supplies & Equipment,(id:41935) PACCS,BREAS MEDICAL LTD,id:12969374, 646.20
Department of Health,Guys and St Thomas NHS Foundation Trust,17/04/2020,(81000) Surgical Appliances,(id:41935) PACCS,TALAR MADE ORTHOTICS LTD,id:12968776 ,  66.24
Department of Health,Guys and St Thomas NHS Foundation Trust,24/04/2020,(81200) Medical Surgical Supplies & Equipment,(id:4620419) PACCS,WERFEN LIMITED,id:12982725 ,5784.65
Department of Health,Guys and St Thomas NHS Foundation Trust,24/04/2020,(81200) Medical Surgical Supplies & Equipment,(id:4620419) PACCS,WERFEN LIMITED,id:12985206 ,5785.70
Department of Health,Guys and St Thomas NHS Foundation Trust,24/04/2020,(81200) Medical Surgical Supplies & Equipment,(id:4620419) PACCS,KAPITEX HEALTHCARE LTD,id:12959830   , 880.99
Department of Health,Guys and St Thomas NHS Foundation Trust,24/04/2020,(81200) Medical Surgical Supplies & Equipment,(id:4620419) PACCS,MEDTRONIC LTD,id:12991367  , 648.00
Department of Health,Guys and St Thomas NHS Foundation Trust,03/04/2020,(81200) Medical Surgical Supplies & Equipment,(id:3135419) PACCS,HAMILTON MEDICAL UK (A DIVISION OF HAMILTON SALES & SERVICE UK LTD),id:12953758   , 571.20
Department of Health,Guys and St Thomas NHS Foundation Trust,03/04/2020,(81200) Medical Surgical Supplies & Equipment,(id:3135419) PACCS,SQUADRON MEDICAL LTD,id:12919333, 969.79
Department of Health,Guys and St Thomas NHS Foundation Trust,17/04/2020,(81200) Medical Surgical Supplies & Equipment,(id:3135419) PACCS,EDWARDS LIFESCIENCES LTD,id:12929661 ,1558.46
Department of Health,Guys and St Thomas NHS Foundation Trust,03/04/2020,(81225) Medical Surgical Supplies & Equipment,(id:3135419) PACCS,NHS SUPPLY CHAIN (MAIDSTONE),id:12912734  , 808.50
Department of Health,Guys and St Thomas NHS Foundation Trust,03/04/2020,(81700) Lab Equipment Purchase,(id:3135419) PACCS,ABBOTT LABORATORIES LTD,id:12935654  ,1243.80
Department of Health,Guys and St Thomas NHS Foundation Trust,09/04/2020,(50562) Qualified Nursing Staff,(id:2121419) PACCS,JUST NURSES (NURSCO HEALTHCARE LIMITED),id:12963586, 444.86
Department of Health,Guys and St Thomas NHS Foundation Trust,03/04/2020,(81255) Medical Surgical Supplies & Equipment,(id:2121419) PACCS,NHS SUPPLY CHAIN (MAIDSTONE),id:12891174  ,  16.97
Department of Health,Guys and St Thomas NHS Foundation Trust,03/04/2020,(83400) Office Equipment,(id:2121419) PACCS,NHS SUPPLY CHAIN (MAIDSTONE),id:12891174   ,  29.29
Department of Health,Guys and St Thomas NHS Foundation Trust,03/04/2020,(83400) Office Equipment,(id:2121419) PACCS,NHS SUPPLY CHAIN (MAIDSTONE),id:12912734   , 114.62
Department of Health,Guys and St Thomas NHS Foundation Trust,03/04/2020,(81700) Lab Equipment Purchase,(id:1842421) PACCS,NHS SUPPLY CHAIN (MAIDSTONE),id:12891174  ,  31.03
Department of Health,Guys and St Thomas NHS Foundation Trust,03/04/2020,(81255) Medical Surgical Supplies & Equipment,(id:1842421) PACCS,NHS SUPPLY CHAIN (MAIDSTONE),id:12912734  ,   7.94
Department of Health,Guys and St Thomas NHS Foundation Trust,03/04/2020,(81200) Medical Surgical Supplies & Equipment,(id:863419) PACCS,MAQUET LIMITED,id:11397591  ,    22560.00
Department of Health,Guys and St Thomas NHS Foundation Trust,03/04/2020,(82600) Uniforms & Clothing,(id:41931) PACCS,NHS SUPPLY CHAIN (MAIDSTONE),id:12912734  ,  75.60
Department of Health,Guys and St Thomas NHS Foundation Trust,17/04/2020,(50552) Qualified Nursing Staff,(id:41931) PACCS,CONTINENTAL NURSE LTD,id:12978761,2305.14
Department of Health,Guys and St Thomas NHS Foundation Trust,09/04/2020,(82600) Uniforms & Clothing,(id:41928) PACCS,SQUADRON MEDICAL LTD,id:12928693, 252.00
Department of Health,Guys and St Thomas NHS Foundation Trust,03/04/2020,(82000) Provisions & Kitchens,(id:41928) PACCS,NHS SUPPLY CHAIN (MAIDSTONE),id:12891174, 165.07
Department of Health,Guys and St Thomas NHS Foundation Trust,17/04/2020,(83400) Office Equipment,(id:41928) PACCS,SQUADRON MEDICAL LTD,id:12941251   ,  13.49
Department of Health,Guys and St Thomas NHS Foundation Trust,09/04/2020,(81100) Dressings,(id:41928) PACCS,TELEFLEX MEDICAL,id:12928561    , 561.00
Department of Health,Guys and St Thomas NHS Foundation Trust,09/04/2020,(81200) Medical Surgical Supplies & Equipment,(id:41928) PACCS,SQUADRON MEDICAL LTD,id:12926171  , 626.80
Department of Health,Guys and St Thomas NHS Foundation Trust,24/04/2020,(81200) Medical Surgical Supplies & Equipment,(id:41928) PACCS,SQUADRON MEDICAL LTD,id:12960496  , 766.34
Department of Health,Guys and St Thomas NHS Foundation Trust,09/04/2020,(81200) Medical Surgical Supplies & Equipment,(id:41928) PACCS,JOHNSON & JOHNSON MEDICAL LTD,id:12923963   , 521.03
Department of Health,Guys and St Thomas NHS Foundation Trust,17/04/2020,(81200) Medical Surgical Supplies & Equipment,(id:41928) PACCS,EDWARDS LIFESCIENCES LTD,id:12929624   , 960.00
Department of Health,Guys and St Thomas NHS Foundation Trust,24/04/2020,(81200) Medical Surgical Supplies & Equipment,(id:41928) PACCS,PROTECH MEDICAL LTD,id:12974882   , 853.20
Department of Health,Guys and St Thomas NHS Foundation Trust,17/04/2020,(81200) Medical Surgical Supplies & Equipment,(id:41928) PACCS,STRYKER UK LTD,id:12969720   ,1584.00
Department of Health,Guys and St Thomas NHS Foundation Trust,24/04/2020,(50552) Qualified Nursing Staff,(id:41928) PACCS,CONTINENTAL NURSE LTD,id:12989013, 663.10
Department of Health,Guys and St Thomas NHS Foundation Trust,09/04/2020,(50552) Qualified Nursing Staff,(id:41928) PACCS,CONTINENTAL NURSE LTD,id:12963348,2636.79
Department of Health,Guys and St Thomas NHS Foundation Trust,17/04/2020,(50522) Unqualified Nursing Staff,(id:41928) PACCS,GLOBE LOCUMS LTD,id:12978745   , 503.48
Department of Health,Guys and St Thomas NHS Foundation Trust,24/04/2020,(50522) Unqualified Nursing Staff,(id:41928) PACCS,GLOBE LOCUMS LTD,id:12992777   , 318.17
Department of Health,Guys and St Thomas NHS Foundation Trust,17/04/2020,(89270) Establishment,(id:41928) PACCS,BIOQUELL UK LTD,id:12955115 ,1988.16
Department of Health,Guys and St Thomas NHS Foundation Trust,09/04/2020,(81700) Lab Equipment Purchase,(id:41928) PACCS,SQUADRON MEDICAL LTD,id:12928693  ,   4.82
Department of Health,Guys and St Thomas NHS Foundation Trust,03/04/2020,(81700) Lab Equipment Purchase,(id:41928) PACCS,SQUADRON MEDICAL LTD,id:12915787  ,   4.82
Department of Health,Guys and St Thomas NHS Foundation Trust,09/04/2020,(50562) Qualified Nursing Staff,(id:41928) PACCS,JUST NURSES (NURSCO HEALTHCARE LIMITED),id:12963467  , 444.46
Department of Health,Guys and St Thomas NHS Foundation Trust,09/04/2020,(50562) Qualified Nursing Staff,(id:41928) PACCS,JUST NURSES (NURSCO HEALTHCARE LIMITED),id:12963526  , 444.86
Department of Health,Guys and St Thomas NHS Foundation Trust,09/04/2020,(50562) Qualified Nursing Staff,(id:41928) PACCS,JUST NURSES (NURSCO HEALTHCARE LIMITED),id:12963350  , 444.86
Department of Health,Guys and St Thomas NHS Foundation Trust,17/04/2020,(50562) Qualified Nursing Staff,(id:41928) PACCS,JUST NURSES (NURSCO HEALTHCARE LIMITED),id:12975412  , 444.46
Department of Health,Guys and St Thomas NHS Foundation Trust,17/04/2020,(50562) Qualified Nursing Staff,(id:41928) PACCS,JUST NURSES (NURSCO HEALTHCARE LIMITED),id:12975378  , 889.71
Department of Health,Guys and St Thomas NHS Foundation Trust,24/04/2020,(50562) Qualified Nursing Staff,(id:41928) PACCS,MEDICSPRO LTD,id:12989291   ,1269.73
Department of Health,Guys and St Thomas NHS Foundation Trust,24/04/2020,(50562) Qualified Nursing Staff,(id:41928) PACCS,JUST NURSES (NURSCO HEALTHCARE LIMITED),id:12989134  , 444.86
Department of Health,Guys and St Thomas NHS Foundation Trust,03/04/2020,(50562) Qualified Nursing Staff,(id:41928) PACCS,MEDICSPRO LTD,id:12952618   , 421.03
Department of Health,Guys and St Thomas NHS Foundation Trust,03/04/2020,(50562) Qualified Nursing Staff,(id:41928) PACCS,MEDICSPRO LTD,id:12952574   , 421.20
Department of Health,Guys and St Thomas NHS Foundation Trust,03/04/2020,(50562) Qualified Nursing Staff,(id:41928) PACCS,TFS HEALTHCARE,id:12952460  , 421.20
Department of Health,Guys and St Thomas NHS Foundation Trust,03/04/2020,(50562) Qualified Nursing Staff,(id:41928) PACCS,MEDICSPRO LTD,id:12952744   , 429.52
Department of Health,Guys and St Thomas NHS Foundation Trust,24/04/2020,(81200) Medical Surgical Supplies & Equipment,(id:41927) PACCS,INTERSURGICAL LTD,id:12979654, 830.40
Department of Health,Guys and St Thomas NHS Foundation Trust,17/04/2020,(81200) Medical Surgical Supplies & Equipment,(id:41927) PACCS,CONVATEC LTD,id:12956549, 648.00
Department of Health,Guys and St Thomas NHS Foundation Trust,03/04/2020,(81230) Medical Surgical Supplies & Equipment,(id:41927) PACCS,NHS SUPPLY CHAIN (MAIDSTONE),id:12891174    , 481.79
Department of Health,Guys and St Thomas NHS Foundation Trust,03/04/2020,(81225) Medical Surgical Supplies & Equipment,(id:41927) PACCS,NHS SUPPLY CHAIN (MAIDSTONE),id:12912734    , 179.54
Department of Health,Guys and St Thomas NHS Foundation Trust,17/04/2020,(81200) Medical Surgical Supplies & Equipment,(id:41919) PACCS,ZOLL MEDICAL UK LTD,id:12969861   ,1396.68
Department of Health,Guys and St Thomas NHS Foundation Trust,03/04/2020,(43000) Non NHS: Private patients,(id:42928) Nuffield House,SOLOMON & SOLOMON LTD,id:12941979    , -10.00
Department of Health,Guys and St Thomas NHS Foundation Trust,03/04/2020,(84500) Establishment,(id:42680) Chief Executive,ABSOLUTE PROOF,id:12899547  ,1159.20
Department of Health,Guys and St Thomas NHS Foundation Trust,17/04/2020,(84650) Establishment,(id:42680) Chief Executive,ODGERS BERNDTSON,id:12975894,    15766.10
Department of Health,Guys and St Thomas NHS Foundation Trust,03/04/2020,(89280) Other - Consultancy costs,(id:42680) Chief Executive,NHS NORTH OF ENGLAND CSU,id:12918978,8250.00
Department of Health,Guys and St Thomas NHS Foundation Trust,24/04/2020,(50203) Consultants,(id:42680) Chief Executive,KINGS COLLEGE LONDON:03529700,id:12913473    ,1600.28
Department of Health,Guys and St Thomas NHS Foundation Trust,03/04/2020,(83610) IT Costs,(id:987420) Hosted Services,PERKBOX LIMITED,id:12930254,1188.00
Department of Health,Guys and St Thomas NHS Foundation Trust,17/04/2020,(89570) Other – Other Operating Expenditure,(id:987420) Hosted Services,CROYDON HEALTH SERVICES NHS TRUST,id:12976954    ,3853.00
Department of Health,Guys and St Thomas NHS Foundation Trust,03/04/2020,(89280) Other - Consultancy costs,(id:987420) Hosted Services,SPRINGFIELD MEDICAL CENTRE,id:12946613  ,2944.00
Department of Health,Guys and St Thomas NHS Foundation Trust,03/04/2020,(82000) Provisions & Kitchens,(id:221406) Hosted Services,NHS SUPPLY CHAIN (MAIDSTONE),id:12912734    ,   4.93
Department of Health,Guys and St Thomas NHS Foundation Trust,03/04/2020,(83400) Office Equipment,(id:221406) Hosted Services,NHS SUPPLY CHAIN (MAIDSTONE),id:12912734    ,  17.57
Department of Health,Guys and St Thomas NHS Foundation Trust,03/04/2020,(89270) Establishment,(id:221406) Hosted Services,ACADEMY OF MEDICAL SCIENCES,id:12953354   ,1000.00
Department of Health,Guys and St Thomas NHS Foundation Trust,09/04/2020,(84100) Transport,(id:590619) Central Services,OMD AUTOS LIMITED,id:12962754 , 848.33
Department of Health,Guys and St Thomas NHS Foundation Trust,09/04/2020,(84400) Transport,(id:42579) Central Services,STARCROSS TRADING LTD T/A BEARS,id:12966508   , 539.30
Department of Health,Guys and St Thomas NHS Foundation Trust,09/04/2020,(84400) Transport,(id:42579) Central Services,STARCROSS TRADING LTD T/A BEARS,id:12965166   ,3522.29
Department of Health,Guys and St Thomas NHS Foundation Trust,09/04/2020,(84400) Transport,(id:42579) Central Services,SAVOY VENTURES LTD.,id:12738258,6256.07
Department of Health,Guys and St Thomas NHS Foundation Trust,24/04/2020,(84400) Transport,(id:42579) Central Services,SAVOY VENTURES LTD.,id:12990059,5081.21
Department of Health,Guys and St Thomas NHS Foundation Trust,17/04/2020,(84400) Transport,(id:42579) Central Services,STARCROSS TRADING LTD T/A BEARS,id:12974806   ,4245.82
Department of Health,Guys and St Thomas NHS Foundation Trust,17/04/2020,(84400) Transport,(id:42579) Central Services,STARCROSS TRADING LTD T/A BEARS,id:12974829   ,    25650.00
Department of Health,Guys and St Thomas NHS Foundation Trust,17/04/2020,(84400) Transport,(id:42579) Central Services,STARCROSS TRADING LTD T/A BEARS,id:12974833   ,    25920.00
Department of Health,Guys and St Thomas NHS Foundation Trust,03/04/2020,(84400) Transport,(id:42579) Central Services,STARCROSS TRADING LTD T/A BEARS,id:12951634   ,1049.54
Department of Health,Guys and St Thomas NHS Foundation Trust,03/04/2020,(84400) Transport,(id:42579) Central Services,STARCROSS TRADING LTD T/A BEARS,id:12946763   ,1123.25
Department of Health,Guys and St Thomas NHS Foundation Trust,03/04/2020,(84400) Transport,(id:42579) Central Services,STARCROSS TRADING LTD T/A BEARS,id:12949996   ,5885.46
Department of Health,Guys and St Thomas NHS Foundation Trust,03/04/2020,(84400) Transport,(id:42579) Central Services,STARCROSS TRADING LTD T/A BEARS,id:12949986   ,    16123.25
Department of Health,Guys and St Thomas NHS Foundation Trust,03/04/2020,(84400) Transport,(id:42579) Central Services,STARCROSS TRADING LTD T/A BEARS,id:12949984   ,    18948.75
Department of Health,Guys and St Thomas NHS Foundation Trust,03/04/2020,(84200) Rental under Operating Lease,(id:42579) Central Services,ENTERPRISE RENT A CAR LTD,id:12947075,6768.27
Department of Health,Guys and St Thomas NHS Foundation Trust,24/04/2020,(82400) Contract Hotel Services,(id:907422) Central Services,JOHNSONS STALBRIDGE LINEN SERVICES,id:12979694,1177.71
Department of Health,Guys and St Thomas NHS Foundation Trust,09/04/2020,(83710) Rates,(id:42559) Central Services,LONDON BOROUGH OF SOUTHWARK:69728500,id:12962156  , 865.59
Department of Health,Guys and St Thomas NHS Foundation Trust,09/04/2020,(83710) Rates,(id:42559) Central Services,LONDON BOROUGH OF SOUTHWARK:69728500,id:12962776  ,1055.59
Department of Health,Guys and St Thomas NHS Foundation Trust,03/04/2020,(83400) Office Equipment,(id:42566) Central Services,NHS SUPPLY CHAIN (MAIDSTONE),id:12891174    ,  56.28
Department of Health,Guys and St Thomas NHS Foundation Trust,03/04/2020,(82000) Provisions & Kitchens,(id:42535) Central Services,NHS SUPPLY CHAIN (MAIDSTONE),id:12912734    , 354.34
Department of Health,Guys and St Thomas NHS Foundation Trust,03/04/2020,(82000) Provisions & Kitchens,(id:42526) Central Services,NHS SUPPLY CHAIN (MAIDSTONE),id:12891174    ,  85.92
Department of Health,Guys and St Thomas NHS Foundation Trust,17/04/2020,(83400) Office Equipment,(id:42526) Central Services,COMMONSENSE EPOS LTD,id:12937641  , 689.50
Department of Health,Guys and St Thomas NHS Foundation Trust,24/04/2020,(55422) Ancillary Staff,(id:42524) Central Services,REED EMPLOYMENT PLC,id:12993286    , 465.05
Department of Health,Guys and St Thomas NHS Foundation Trust,03/04/2020,(83400) Office Equipment,(id:42538) Central Services,SIEMENS FINANCIAL SERVICES LIMITED,id:12937499   , 956.63
Department of Health,Guys and St Thomas NHS Foundation Trust,24/04/2020,(83400) Office Equipment,(id:42525) Central Services,TP LEASING LTD,id:12893207   ,3040.33
Department of Health,Guys and St Thomas NHS Foundation Trust,24/04/2020,(81200) Medical Surgical Supplies & Equipment,(id:2195420) Asset Management,ARTINSITE LTD,id:12985874 ,2720.00
Department of Health,Guys and St Thomas NHS Foundation Trust,24/04/2020,(55110) Admin & Clerical,(id:42653) Asset Management,KINGS COLLEGE LONDON:03529700,id:12942396   ,    10418.29
Department of Health,Guys and St Thomas NHS Foundation Trust,03/04/2020,(83400) Office Equipment,(id:1552419) Asset Management,NHS SUPPLY CHAIN (MAIDSTONE),id:12891174  ,  54.34
Department of Health,Guys and St Thomas NHS Foundation Trust,24/04/2020,(84650) Establishment,(id:42603) Essentia Director,THE MANAGEMENT RECRUITMENT GROUP LTD,id:12985614   ,6036.72
Department of Health,Guys and St Thomas NHS Foundation Trust,24/04/2020,(84650) Establishment,(id:42603) Essentia Director,THE MANAGEMENT RECRUITMENT GROUP LTD,id:12990928   ,    14400.00
Department of Health,Guys and St Thomas NHS Foundation Trust,24/04/2020,(83400) Office Equipment,(id:492412) Essentia Community Services,REDWOOD FIRE LTD,id:12986574    ,2600.00
Department of Health,Guys and St Thomas NHS Foundation Trust,09/04/2020,(83400) Office Equipment,(id:492412) Essentia Community Services,TIAA LTD,id:12958195  ,    26390.02
Department of Health,Guys and St Thomas NHS Foundation Trust,17/04/2020,(83220) Water & Sewerage,(id:1116425) Essentia Community Services,BUSINESS STREAM,id:12967216    , 622.87
Department of Health,Guys and St Thomas NHS Foundation Trust,09/04/2020,(83710) Rates,(id:1116425) Essentia Community Services,LONDON BOROUGH OF LAMBETH:24845200,id:12956519 ,    12182.80
Department of Health,Guys and St Thomas NHS Foundation Trust,24/04/2020,(83400) Office Equipment,(id:1116423) Essentia Community Services,KINGS LANDSCAPES,id:12976098   , 228.83
Department of Health,Guys and St Thomas NHS Foundation Trust,17/04/2020,(83120) Energy Costs,(id:1116422) Essentia Community Services,CORONA ENERGY RETAIL 4 LTD,id:12967797  ,1192.86
Department of Health,Guys and St Thomas NHS Foundation Trust,09/04/2020,(83710) Rates,(id:1116421) Essentia Community Services,LONDON BOROUGH OF LAMBETH:24845200,id:12956615 ,    35840.00
Department of Health,Guys and St Thomas NHS Foundation Trust,17/04/2020,(83220) Water & Sewerage,(id:1116421) Essentia Community Services,BUSINESS STREAM,id:12967114    , 323.74
Department of Health,Guys and St Thomas NHS Foundation Trust,17/04/2020,(83342) Premises Services,(id:1116432) Essentia Community Services,BYWATERS (LEYTON) LTD,id:12939362  ,1063.98
Department of Health,Guys and St Thomas NHS Foundation Trust,09/04/2020,(83710) Rates,(id:1129420) Essentia Community Services,LONDON BOROUGH OF SOUTHWARK:04102500,id:12956541    ,8732.50
Department of Health,Guys and St Thomas NHS Foundation Trust,17/04/2020,(83210) Water & Sewerage,(id:1129419) Essentia Community Services,BUSINESS STREAM,id:12967014    , 244.60
Department of Health,Guys and St Thomas NHS Foundation Trust,24/04/2020,(83350) Premises Services,(id:389410) Essentia Community Services,CORPS SECURITY,id:12982054, 916.48
Department of Health,Guys and St Thomas NHS Foundation Trust,03/04/2020,(83400) Office Equipment,(id:492598) Essentia Community Services,NHS SUPPLY CHAIN (MAIDSTONE),id:12891174  , 101.12
Department of Health,Guys and St Thomas NHS Foundation Trust,09/04/2020,(82300) Contract Hotel Services,(id:492598) Essentia Community Services,BIDVEST FOODSERVICE (A/C 30037328),id:12957336    , 512.79
Department of Health,Guys and St Thomas NHS Foundation Trust,03/04/2020,(83400) Office Equipment,(id:492593) Essentia Community Services,NHS SUPPLY CHAIN (MAIDSTONE),id:12912734  , 998.33
Department of Health,Guys and St Thomas NHS Foundation Trust,24/04/2020,(83400) Office Equipment,(id:492580) Essentia Community Services,KINGS LANDSCAPES,id:12970995    , 153.00
Department of Health,Guys and St Thomas NHS Foundation Trust,17/04/2020,(83342) Premises Services,(id:492475) Essentia Commercial,SRCL LTD,id:12974860    , 111.37
Department of Health,Guys and St Thomas NHS Foundation Trust,17/04/2020,(83342) Premises Services,(id:492501) Essentia Commercial,SRCL LTD,id:12974853    ,1659.45
Department of Health,Guys and St Thomas NHS Foundation Trust,09/04/2020,(83342) Premises Services,(id:1771428) Essentia Commercial,SRCL LTD,id:12956504   ,2346.65
Department of Health,Guys and St Thomas NHS Foundation Trust,17/04/2020,(83342) Premises Services,(id:1771422) Essentia Commercial,SRCL LTD,id:12974873   ,3126.75
Department of Health,Guys and St Thomas NHS Foundation Trust,17/04/2020,(83342) Premises Services,(id:1771419) Essentia Commercial,SRCL LTD,id:12974854   ,4960.70
Department of Health,Guys and St Thomas NHS Foundation Trust,17/04/2020,(83880) Building & Engineering,(id:492606) Essentia Infrastructure,SIEMSATEC LIMITED,id:12956896 ,2125.66
Department of Health,Guys and St Thomas NHS Foundation Trust,09/04/2020,(83880) Building & Engineering,(id:492606) Essentia Infrastructure,ROPTEC LTD,id:12947977   ,9900.00
Department of Health,Guys and St Thomas NHS Foundation Trust,03/04/2020,(83880) Building & Engineering,(id:492601) Essentia Infrastructure,K G NORMAN LIMITED,id:12939474,3404.00
Department of Health,Guys and St Thomas NHS Foundation Trust,03/04/2020,(83880) Building & Engineering,(id:492601) Essentia Infrastructure,ESSEX SECURITY SERVICES LTD,id:12902693 ,1368.00
Department of Health,Guys and St Thomas NHS Foundation Trust,17/04/2020,(83820) Building & Engineering,(id:492601) Essentia Infrastructure,MEDLOCK ELECTRICAL DISTRIBUTORS,id:12972654  , 785.00
Department of Health,Guys and St Thomas NHS Foundation Trust,03/04/2020,(83881) Building & Engineering,(id:492601) Essentia Infrastructure,BELLS POWER LTD,id:12904945   , 487.50
Department of Health,Guys and St Thomas NHS Foundation Trust,17/04/2020,(84000) Transport,(id:492418) Essentia Infrastructure,ALLSTAR BUSINESS SOLUTIONS LTD (ARVAL),id:12967803   , 261.15
Department of Health,Guys and St Thomas NHS Foundation Trust,09/04/2020,(83881) Building & Engineering,(id:2528419) Essentia Infrastructure,REDLAND CONSTRUCTION LIMITED,id:12939659    ,3905.00
Department of Health,Guys and St Thomas NHS Foundation Trust,03/04/2020,(82800) Bedding & Linen,(id:492528) Essentia Infrastructure,NHS SUPPLY CHAIN (MAIDSTONE),id:12891174  ,  20.74
Department of Health,Guys and St Thomas NHS Foundation Trust,24/04/2020,(83830) Building & Engineering,(id:42627) Essentia Infrastructure,K G NORMAN LIMITED,id:12939864 ,8794.00
Department of Health,Guys and St Thomas NHS Foundation Trust,09/04/2020,(83120) Energy Costs,(id:42627) Essentia Infrastructure,CORONA ENERGY RETAIL 4 LTD,id:12964954   ,    82067.14
Department of Health,Guys and St Thomas NHS Foundation Trust,17/04/2020,(83110) Energy Costs,(id:42627) Essentia Infrastructure,EDF ENERGY,id:12956315    ,   192078.77
Department of Health,Guys and St Thomas NHS Foundation Trust,24/04/2020,(83880) Building & Engineering,(id:2507419) Essentia Infrastructure,K G NORMAN LIMITED,id:12953321    , 715.00
Department of Health,Guys and St Thomas NHS Foundation Trust,03/04/2020,(83880) Building & Engineering,(id:2507419) Essentia Infrastructure,STATIC SYSTEMS GROUP PLC CIS5,id:12828615   ,1960.50
Department of Health,Guys and St Thomas NHS Foundation Trust,24/04/2020,(83881) Building & Engineering,(id:2507419) Essentia Infrastructure,DRAX (UK) LTD,id:12782011    ,1845.12
Department of Health,Guys and St Thomas NHS Foundation Trust,24/04/2020,(83400) Office Equipment,(id:1270419) Essentia Infrastructure,EDWARDES BROS (DULWICH) LTD,id:12966955 ,2720.22
Department of Health,Guys and St Thomas NHS Foundation Trust,17/04/2020,(83400) Office Equipment,(id:1270419) Essentia Infrastructure,REXEL UK LTD,id:12961744 , 586.80
Department of Health,Guys and St Thomas NHS Foundation Trust,03/04/2020,(83880) Building & Engineering,(id:42634) Essentia Infrastructure,BROWNINGS ELECTRIC CO LTD,id:12876604    ,4058.00
Department of Health,Guys and St Thomas NHS Foundation Trust,24/04/2020,(55652) Maintenance Staff,(id:42633) Essentia Infrastructure,VENN GROUP LTD,id:12992787,5178.01
Department of Health,Guys and St Thomas NHS Foundation Trust,03/04/2020,(82000) Provisions & Kitchens,(id:42632) Essentia Infrastructure,NHS SUPPLY CHAIN (MAIDSTONE),id:12912734  ,  25.75
Department of Health,Guys and St Thomas NHS Foundation Trust,24/04/2020,(83500) Furniture & Fittings,(id:42632) Essentia Infrastructure,1ST BIOTECH LIMITED,id:12988566  , 249.60
Department of Health,Guys and St Thomas NHS Foundation Trust,03/04/2020,(83400) Office Equipment,(id:42631) Essentia Infrastructure,BRITISH SALT LTD,id:12854575    ,1599.36
Department of Health,Guys and St Thomas NHS Foundation Trust,24/04/2020,(83400) Office Equipment,(id:42631) Essentia Infrastructure,RICHMONDS OF LONDON LTD,id:12982596  ,1102.06
Department of Health,Guys and St Thomas NHS Foundation Trust,09/04/2020,(83880) Building & Engineering,(id:42631) Essentia Infrastructure,THERMAL TECH SERVICES LIMITED,id:12917272,1495.31
Department of Health,Guys and St Thomas NHS Foundation Trust,17/04/2020,(83880) Building & Engineering,(id:42631) Essentia Infrastructure,THERMAL TECH SERVICES LIMITED,id:12917273, 837.08
Department of Health,Guys and St Thomas NHS Foundation Trust,17/04/2020,(83880) Building & Engineering,(id:42631) Essentia Infrastructure,FINNING UK LTD,id:12953326,9528.87
Department of Health,Guys and St Thomas NHS Foundation Trust,24/04/2020,(83880) Building & Engineering,(id:42631) Essentia Infrastructure,DUCTCLEAN UK LTD,id:12955335   ,2250.00
Department of Health,Guys and St Thomas NHS Foundation Trust,03/04/2020,(83880) Building & Engineering,(id:42631) Essentia Infrastructure,ABBEY LIFTCARE LTD,id:12806595 , 720.00
Department of Health,Guys and St Thomas NHS Foundation Trust,03/04/2020,(83400) Office Equipment,(id:1271419) Essentia Infrastructure,NHS SUPPLY CHAIN (MAIDSTONE),id:12912734,   7.32
Department of Health,Guys and St Thomas NHS Foundation Trust,24/04/2020,(83400) Office Equipment,(id:1271419) Essentia Infrastructure,EDWARDES BROS (DULWICH) LTD,id:12959836 , 789.00
Department of Health,Guys and St Thomas NHS Foundation Trust,17/04/2020,(83881) Building & Engineering,(id:197406) Essentia Infrastructure,CAMFIL LTD,id:12958857   , 788.21
Department of Health,Guys and St Thomas NHS Foundation Trust,03/04/2020,(83400) Office Equipment,(id:42643) Essentia Infrastructure,SPIRAX-SARCO LTD CIS5,id:12928174    ,6325.12
Department of Health,Guys and St Thomas NHS Foundation Trust,24/04/2020,(83400) Office Equipment,(id:42643) Essentia Infrastructure,VERNACARE,id:12986094 ,6120.00
Department of Health,Guys and St Thomas NHS Foundation Trust,24/04/2020,(83880) Building & Engineering,(id:42643) Essentia Infrastructure,J C COMMISSIONING LTD CIS6,id:12981499   ,3250.00
Department of Health,Guys and St Thomas NHS Foundation Trust,17/04/2020,(83400) Office Equipment,(id:42638) Essentia Infrastructure,RICHMONDS OF LONDON LTD,id:12953698  , 855.26
Department of Health,Guys and St Thomas NHS Foundation Trust,17/04/2020,(83400) Office Equipment,(id:42638) Essentia Infrastructure,CALOMAX LTD,id:12947854    , 888.00
Department of Health,Guys and St Thomas NHS Foundation Trust,24/04/2020,(83400) Office Equipment,(id:42638) Essentia Infrastructure,RICHMONDS OF LONDON LTD,id:12982654  , 970.80
Department of Health,Guys and St Thomas NHS Foundation Trust,17/04/2020,(83880) Building & Engineering,(id:42638) Essentia Infrastructure,SOCOTEC UK LTD,id:12959140, 750.00
Department of Health,Guys and St Thomas NHS Foundation Trust,24/04/2020,(83880) Building & Engineering,(id:42638) Essentia Infrastructure,DUCTCLEAN UK LTD,id:12967275   ,2100.00
Department of Health,Guys and St Thomas NHS Foundation Trust,24/04/2020,(55652) Maintenance Staff,(id:42637) Essentia Infrastructure,MORGAN HUNT UK LTD,id:12993356 ,2050.42
Department of Health,Guys and St Thomas NHS Foundation Trust,24/04/2020,(83880) Building & Engineering,(id:2614419) Guys Site services,NURTURE LANDSCAPES LTD,id:12982134, 636.86
Department of Health,Guys and St Thomas NHS Foundation Trust,03/04/2020,(83400) Office Equipment,(id:373411) Guys Site services,ZENITH HYGIENE SYSTEMS LTD,id:12912474   , 538.80
Department of Health,Guys and St Thomas NHS Foundation Trust,17/04/2020,(83400) Office Equipment,(id:373411) Guys Site services,OPRA PACKAGING LTD,id:12975430 ,2156.94
Department of Health,Guys and St Thomas NHS Foundation Trust,17/04/2020,(83400) Office Equipment,(id:373411) Guys Site services,M P D (UK SALES) LTD,id:12937937    ,1308.00
Department of Health,Guys and St Thomas NHS Foundation Trust,24/04/2020,(83880) Building & Engineering,(id:42662) Guys Site services,GRANTLEIGH LTD,id:12975755,4200.00
Department of Health,Guys and St Thomas NHS Foundation Trust,09/04/2020,(84500) Establishment,(id:42545) Guys Site services,TIME SYSTEMS UK LTD,id:12930008    , 960.00
Department of Health,Guys and St Thomas NHS Foundation Trust,03/04/2020,(83400) Office Equipment,(id:42585) STH Site Services,LAZERBEAM FIRE AND SECURITY LTD,id:12946457, 488.00
Department of Health,Guys and St Thomas NHS Foundation Trust,09/04/2020,(84500) Establishment,(id:42575) STH Site Services,SWISS POST SOLUTIONS LTD,id:12966914, 975.00
Department of Health,Guys and St Thomas NHS Foundation Trust,03/04/2020,(84500) Establishment,(id:42575) STH Site Services,SWISS POST SOLUTIONS LTD,id:12944854,   213075.77
Department of Health,Guys and St Thomas NHS Foundation Trust,03/04/2020,(82000) Provisions & Kitchens,(id:42544) STH Site Services,NHS SUPPLY CHAIN (MAIDSTONE),id:12912734   , 137.60
Department of Health,Guys and St Thomas NHS Foundation Trust,24/04/2020,(83880) Building & Engineering,(id:42664) STH Site Services,GRANTLEIGH LTD,id:12987656 , 895.00
Department of Health,Guys and St Thomas NHS Foundation Trust,09/04/2020,(83880) Building & Engineering,(id:42664) STH Site Services,CITY & KENT CLEANING LTD,id:12875376 ,1892.00
Department of Health,Guys and St Thomas NHS Foundation Trust,09/04/2020,(83400) Office Equipment,(id:42548) STH Site Services,CITY & KENT CLEANING LTD,id:12951920  , 676.68
Department of Health,Guys and St Thomas NHS Foundation Trust,09/04/2020,(83400) Office Equipment,(id:42548) STH Site Services,SQUADRON MEDICAL LTD,id:12928593 , 545.18
Department of Health,Guys and St Thomas NHS Foundation Trust,09/04/2020,(83400) Office Equipment,(id:42548) STH Site Services,OFFICE DEPOT UK LTD,id:12931391  ,5404.00
Department of Health,Guys and St Thomas NHS Foundation Trust,24/04/2020,(83400) Office Equipment,(id:42548) STH Site Services,OFFICE DEPOT UK LTD,id:12973821  , 744.30
Department of Health,Guys and St Thomas NHS Foundation Trust,03/04/2020,(83400) Office Equipment,(id:42548) STH Site Services,OFFICE DEPOT UK LTD,id:12919021  ,3645.00
Department of Health,Guys and St Thomas NHS Foundation Trust,09/04/2020,(84500) Establishment,(id:42548) STH Site Services,OFFICE DEPOT UK LTD,id:12931392, 810.00
Department of Health,Guys and St Thomas NHS Foundation Trust,03/04/2020,(84500) Establishment,(id:42548) STH Site Services,OFFICE DEPOT UK LTD,id:12911151,2025.00
Department of Health,Guys and St Thomas NHS Foundation Trust,24/04/2020,(81100) Dressings,(id:42599) Sterile Services,ELIS UK LIMITED,id:12913336    , 642.80
Department of Health,Guys and St Thomas NHS Foundation Trust,03/04/2020,(81100) Dressings,(id:42599) Sterile Services,ELIS UK LIMITED,id:12948354    , 622.60
Department of Health,Guys and St Thomas NHS Foundation Trust,03/04/2020,(81100) Dressings,(id:42599) Sterile Services,ELIS UK LIMITED,id:12917908    , 704.60
Department of Health,Guys and St Thomas NHS Foundation Trust,09/04/2020,(81100) Dressings,(id:42599) Sterile Services,ELIS UK LIMITED,id:12915202    , 572.80
Department of Health,Guys and St Thomas NHS Foundation Trust,03/04/2020,(84500) Establishment,(id:42599) Sterile Services,KINGFISHER LABELS LTD,id:12953567    ,2134.42
Department of Health,Guys and St Thomas NHS Foundation Trust,03/04/2020,(81200) Medical Surgical Supplies & Equipment,(id:42599) Sterile Services,MEDASIL (SURGICAL) LTD,id:12941986    ,  18.00
Department of Health,Guys and St Thomas NHS Foundation Trust,03/04/2020,(81200) Medical Surgical Supplies & Equipment,(id:42599) Sterile Services,KINGFISHER LABELS LTD,id:12953567, 116.64
Department of Health,Guys and St Thomas NHS Foundation Trust,03/04/2020,(81200) Medical Surgical Supplies & Equipment,(id:42599) Sterile Services,KEY SURGICAL LTD,id:12920117, 564.00
Department of Health,Guys and St Thomas NHS Foundation Trust,24/04/2020,(81200) Medical Surgical Supplies & Equipment,(id:42601) Sterile Services,ADVANCED STERILIZATION PRODUCTS (UK) LTD,id:12988018 ,3680.40
Department of Health,Guys and St Thomas NHS Foundation Trust,03/04/2020,(83340) Premises Services,(id:42576) Security and Site Services,BYWATERS (LEYTON) LTD,id:12927075, 709.56
Department of Health,Guys and St Thomas NHS Foundation Trust,24/04/2020,(84500) Establishment,(id:42576) Security and Site Services,SHRED STATION LTD,id:12990955   ,2880.00
Department of Health,Guys and St Thomas NHS Foundation Trust,24/04/2020,(83400) Office Equipment,(id:42540) Security and Site Services,LAZERBEAM FIRE AND SECURITY LTD,id:12779251 , 960.00
Department of Health,Guys and St Thomas NHS Foundation Trust,24/04/2020,(83400) Office Equipment,(id:42540) Security and Site Services,LAZERBEAM FIRE AND SECURITY LTD,id:12992863 , 760.00
Department of Health,Guys and St Thomas NHS Foundation Trust,03/04/2020,(83400) Office Equipment,(id:42540) Security and Site Services,LAZERBEAM FIRE AND SECURITY LTD,id:12949803 ,1420.00
Department of Health,Guys and St Thomas NHS Foundation Trust,24/04/2020,(84501) Establishment,(id:42580) Security and Site Services,PELEMAN INDUSTRIES LTD (UNIBIND),id:12984906   , 749.05
Department of Health,Guys and St Thomas NHS Foundation Trust,03/04/2020,(84580) Establishment,(id:227405) Chief Nurse,SOUTHWARK NEWSPAPER LTD,id:12950922 , 720.00
Department of Health,Guys and St Thomas NHS Foundation Trust,24/04/2020,(83640) IT Costs,(id:227405) Chief Nurse,CIVICA UK LTD,id:12988288 ,1620.00
Department of Health,Guys and St Thomas NHS Foundation Trust,03/04/2020,(82800) Bedding & Linen,(id:42685) Chief Nurse,NHS SUPPLY CHAIN (MAIDSTONE),id:12912734,  28.37
Department of Health,Guys and St Thomas NHS Foundation Trust,24/04/2020,(55052) Admin & Clerical,(id:3918419) Finance Director,VENN GROUP LTD,id:12989024 ,4439.76
Department of Health,Guys and St Thomas NHS Foundation Trust,24/04/2020,(89280) Other - Consultancy costs,(id:3922419) Finance Director,BEACHCROFT LLP OFFICE ACCOUNT,id:12985031  ,1148.00
Department of Health,Guys and St Thomas NHS Foundation Trust,17/04/2020,(55062) Admin & Clerical,(id:42709) Finance Director,VENN GROUP LTD,id:12975407   ,5572.80
Department of Health,Guys and St Thomas NHS Foundation Trust,24/04/2020,(55422) Ancillary Staff,(id:177407) Finance Director,REED EMPLOYMENT PLC,id:12993295   , 809.58
Department of Health,Guys and St Thomas NHS Foundation Trust,24/04/2020,(55422) Ancillary Staff,(id:177407) Finance Director,REED EMPLOYMENT PLC,id:12993359   , 836.14
Department of Health,Guys and St Thomas NHS Foundation Trust,03/04/2020,(55422) Ancillary Staff,(id:177407) Finance Director,REED EMPLOYMENT PLC,id:12953535   , 861.25
Department of Health,Guys and St Thomas NHS Foundation Trust,03/04/2020,(55422) Ancillary Staff,(id:177407) Finance Director,REED EMPLOYMENT PLC,id:12953515   , 851.77
Department of Health,Guys and St Thomas NHS Foundation Trust,24/04/2020,(86300) Healthcare from non-NHS bodies,(id:847441) Finance Director,TEMPLE CONSULTANCY LTD,id:12980435, 700.00
Department of Health,Guys and St Thomas NHS Foundation Trust,03/04/2020,(89270) Establishment,(id:847436) Finance Director,CLAREMONT MARKETING AND COMMUNICATIONS LTD,id:12933336  ,    18365.00
Department of Health,Guys and St Thomas NHS Foundation Trust,24/04/2020,(55072) Admin & Clerical,(id:847436) Finance Director,MICHAEL PAGE INTERNATIONAL RECRUITMENT LTD,id:12989028    ,1791.37
Department of Health,Guys and St Thomas NHS Foundation Trust,17/04/2020,(88720) Other – Other Operating Expenditure,(id:40456) Finance Director,EDWARDS LIFESCIENCES LTD,id:12883136   ,  -5.66
Department of Health,Guys and St Thomas NHS Foundation Trust,17/04/2020,(88720) Other – Other Operating Expenditure,(id:40456) Finance Director,EDWARDS LIFESCIENCES LTD,id:12929667   ,  -5.96
Department of Health,Guys and St Thomas NHS Foundation Trust,17/04/2020,(88720) Other – Other Operating Expenditure,(id:40456) Finance Director,EDWARDS LIFESCIENCES LTD,id:12929629   ,  -9.60
Department of Health,Guys and St Thomas NHS Foundation Trust,17/04/2020,(88720) Other – Other Operating Expenditure,(id:40456) Finance Director,EDWARDS LIFESCIENCES LTD,id:12912439   , -14.40
Department of Health,Guys and St Thomas NHS Foundation Trust,17/04/2020,(88720) Other – Other Operating Expenditure,(id:40456) Finance Director,EDWARDS LIFESCIENCES LTD,id:12966814   , -34.20
Department of Health,Guys and St Thomas NHS Foundation Trust,17/04/2020,(88720) Other – Other Operating Expenditure,(id:40456) Finance Director,EDWARDS LIFESCIENCES LTD,id:12929621   , -56.40
Department of Health,Guys and St Thomas NHS Foundation Trust,17/04/2020,(88720) Other – Other Operating Expenditure,(id:40456) Finance Director,EDWARDS LIFESCIENCES LTD,id:12883128   , -56.40
Department of Health,Guys and St Thomas NHS Foundation Trust,17/04/2020,(88720) Other – Other Operating Expenditure,(id:40456) Finance Director,EDWARDS LIFESCIENCES LTD,id:12929620   , -56.40
Department of Health,Guys and St Thomas NHS Foundation Trust,24/04/2020,(88720) Other – Other Operating Expenditure,(id:40456) Finance Director,EDWARDS LIFESCIENCES LTD,id:12979035   ,  -5.76
Department of Health,Guys and St Thomas NHS Foundation Trust,17/04/2020,(88720) Other – Other Operating Expenditure,(id:40456) Finance Director,EDWARDS LIFESCIENCES LTD,id:12896709   ,  56.40
Department of Health,Guys and St Thomas NHS Foundation Trust,17/04/2020,(88720) Other – Other Operating Expenditure,(id:40456) Finance Director,EDWARDS LIFESCIENCES LTD,id:12896630   , 114.02
